﻿VENDOR,CATEGORY,AMOUNT,PAYMENT_DATE
"24 Seven Taxi Association","Purchased Transportation","$ 370.75",01/07/2021
"24 Seven Taxi Association","Purchased Transportation","$ 2,899.75",01/13/2021
"24 Seven Taxi Association","Purchased Transportation","$ 1,346.00",02/03/2021
"24 Seven Taxi Association","Purchased Transportation","$ 264.50",02/24/2021
"24 Seven Taxi Association","Purchased Transportation","$ 344.75",03/10/2021
"24 Seven Taxi Association","Purchased Transportation","$ 85.50",03/17/2021
"24 Seven Taxi Association","Purchased Transportation","$ 382.50",05/19/2021
"24 Seven Taxi Association","Purchased Transportation","$ 351.75",06/16/2021
"24 Seven Taxi Association","Purchased Transportation","$ 189.50",07/07/2021
"24 Seven Taxi Association","Purchased Transportation","$ 118.00",07/21/2021
"24 Seven Taxi Association","Purchased Transportation","$ 327.75",08/18/2021
"24 Seven Taxi Association","Purchased Transportation","$ 123.25",08/25/2021
"24 Seven Taxi Association","Purchased Transportation","$ 521.25",09/15/2021
"24 Seven Taxi Association","Purchased Transportation","$ 826.50",09/29/2021
"24 Seven Taxi Association","Purchased Transportation","$ 591.75",10/13/2021
"24 Seven Taxi Association","Purchased Transportation","$ 129.75",10/20/2021
"24 Seven Taxi Association","Purchased Transportation","$ 158.25",11/03/2021
"24 Seven Taxi Association","Purchased Transportation","$ 829.95",11/10/2021
"24 Seven Taxi Association","Purchased Transportation","$ 652.50",11/17/2021
"24 Seven Taxi Association","Purchased Transportation","$ 278.75",12/01/2021
"24 Seven Taxi Association","Purchased Transportation","$ 2,435.50",12/15/2021
"24 Seven Taxi Association","Purchased Transportation","$ 2,251.25",12/30/2021
"303 Taxi","Purchased Transportation","$ 127,403.71",01/27/2021
"303 Taxi","Purchased Transportation","$ 2,464.98",02/03/2021
"303 Taxi","Purchased Transportation","$ 3,804.44",03/02/2021
"303 Taxi","Purchased Transportation","$ 90,183.05",03/05/2021
"303 Taxi","Purchased Transportation","$ 26,865.46",03/10/2021
"303 Taxi","Purchased Transportation","$ 26,107.12",03/17/2021
"303 Taxi","Purchased Transportation","$ 176,920.85",03/29/2021
"303 Taxi","Purchased Transportation","$ 20,914.89",04/01/2021
"303 Taxi","Purchased Transportation","$ 386,447.25",04/30/2021
"303 Taxi","Purchased Transportation","$ 407,957.84",05/25/2021
"303 Taxi","Purchased Transportation","$ 24,458.19",05/28/2021
"303 Taxi","Purchased Transportation","$ 319,467.91",07/07/2021
"303 Taxi","Purchased Transportation","$ 17,886.62",07/08/2021
"303 Taxi","Purchased Transportation","$ 36,973.90",07/09/2021
"303 Taxi","Purchased Transportation","$ 4,475.80",08/03/2021
"303 Taxi","Purchased Transportation","$ 360,076.61",08/11/2021
"303 Taxi","Purchased Transportation","$ 65,685.07",08/31/2021
"303 Taxi","Purchased Transportation","$ 5,998.87",09/02/2021
"303 Taxi","Purchased Transportation","$ 226,603.80",09/17/2021
"303 Taxi","Purchased Transportation","$ 38,893.85",09/29/2021
"303 Taxi","Purchased Transportation","$ 36,559.04",10/13/2021
"303 Taxi","Purchased Transportation","$ 255,197.42",10/22/2021
"303 Taxi","Purchased Transportation","$ 69,227.77",10/27/2021
"303 Taxi","Purchased Transportation","$ 329,466.98",11/03/2021
"303 Taxi","Purchased Transportation","$ 472,834.49",11/24/2021
4imprint,Miscellaneous,"$ 10,554.90",03/31/2021
4imprint,Miscellaneous,"$ 8,892.93",10/21/2021
"5167 Taxi Inc","Purchased Transportation","$ 1,603.00",01/27/2021
"5167 Taxi Inc","Purchased Transportation","$ 1,728.75",02/17/2021
"5167 Taxi Inc","Purchased Transportation","$ 1,607.75",03/17/2021
"5167 Taxi Inc","Purchased Transportation","$ 2,223.25",04/21/2021
"5167 Taxi Inc","Purchased Transportation","$ 1,572.25",05/26/2021
"5167 Taxi Inc","Purchased Transportation","$ 993.75",06/16/2021
"5167 Taxi Inc","Purchased Transportation","$ 673.50",07/14/2021
"5167 Taxi Inc","Purchased Transportation","$ 507.00",08/11/2021
"5167 Taxi Inc","Purchased Transportation","$ 160.50",08/25/2021
"5167 Taxi Inc","Purchased Transportation","$ 206.50",09/02/2021
"5167 Taxi Inc","Purchased Transportation","$ 61.75",09/21/2021
"5167 Taxi Inc","Purchased Transportation","$ 457.75",09/29/2021
"5167 Taxi Inc","Purchased Transportation","$ 246.50",10/20/2021
"5167 Taxi Inc","Purchased Transportation","$ 300.75",11/03/2021
"5167 Taxi Inc","Purchased Transportation","$ 491.25",12/08/2021
"5167 Taxi Inc","Purchased Transportation","$ 342.75",12/21/2021
"A P Private Detective and Security",Services,"$ 12,400.00",01/28/2021
"A P Private Detective and Security",Services,"$ 11,440.00",02/03/2021
"A P Private Detective and Security",Services,"$ 12,180.00",02/10/2021
"A P Private Detective and Security",Services,"$ 12,558.00",02/24/2021
"A P Private Detective and Security",Services,"$ 12,012.00",03/03/2021
"A P Private Detective and Security",Services,"$ 10,332.00",03/24/2021
"A P Private Detective and Security",Services,"$ 12,012.00",04/07/2021
"A P Private Detective and Security",Services,"$ 12,852.00",04/21/2021
"A P Private Detective and Security",Services,"$ 12,012.00",05/05/2021
"A P Private Detective and Security",Services,"$ 23,898.00",05/26/2021
"A P Private Detective and Security",Services,"$ 24,864.00",07/07/2021
"A P Private Detective and Security",Services,"$ 11,676.00",07/28/2021
"A P Private Detective and Security",Services,"$ 12,348.00",08/04/2021
"A P Private Detective and Security",Services,"$ 12,726.00",08/25/2021
"A P Private Detective and Security",Services,"$ 24,696.00",09/15/2021
"A P Private Detective and Security",Services,"$ 12,068.00",10/06/2021
"A P Private Detective and Security",Services,"$ 24,024.00",11/03/2021
"A P Private Detective and Security",Services,"$ 24,834.00",12/01/2021
"A P Private Detective and Security",Services,"$ 12,180.00",12/29/2021
"A&A Auto Parts Stores Inc","Fuel/Parts Inventory","$ 1,422.96",10/06/2021
"A&A Auto Parts Stores Inc","Fuel/Parts Inventory","$ 4,183.86",11/10/2021
"A&A Auto Parts Stores Inc","Fuel/Parts Inventory","$ 4,355.40",11/17/2021
"A&A Auto Parts Stores Inc","Fuel/Parts Inventory","$ 2,412.72",12/08/2021
"AKA Comp Solutions Inc",Equipment,"$ 253,321.65",01/21/2021
"AKA Comp Solutions Inc",Equipment,"$ 41,239.50",04/21/2021
"AKA Comp Solutions Inc",Equipment,"$ 39,485.14",09/03/2021
"AKA Comp Solutions Inc",Services,"$ 9,877.50",10/27/2021
"AKA Comp Solutions Inc",Services,"$ 3,554.00",11/23/2021
"ALGO LLC","Leases and Rentals","$ 42,177.64",01/13/2021
"ALGO LLC","Leases and Rentals","$ 21,088.82",01/27/2021
"ALGO LLC","Leases and Rentals","$ 21,088.82",02/24/2021
"ALGO LLC","Leases and Rentals","$ 21,088.82",04/07/2021
"ALGO LLC","Leases and Rentals","$ 21,088.82",05/05/2021
"ALGO LLC","Leases and Rentals","$ 21,088.82",06/09/2021
"ALGO LLC","Leases and Rentals","$ 21,088.82",07/07/2021
"ALGO LLC","Leases and Rentals","$ 21,088.82",08/04/2021
"ALGO LLC","Leases and Rentals","$ 21,693.89",09/02/2021
"ALGO LLC",Miscellaneous,"$ 339,050.62",09/30/2021
"ALGO LLC","Leases and Rentals","$ 920.00",10/06/2021
"ALGO LLC","Leases and Rentals","$ 920.00",11/17/2021
"AM Best Company",Miscellaneous,"$ 252.25",05/19/2021
"AMS Mechanical Systems Inc","Materials and Supplies","$ 225.26",08/12/2021
"AMS Mechanical Systems Inc","Materials and Supplies","$ 165.00",11/11/2021
"AMS Mechanical Systems Inc",Services,"$ 705.00",11/24/2021
"ANA Laboratories Inc","Materials and Supplies","$ 1,488.00",02/24/2021
"ANA Laboratories Inc","Materials and Supplies","$ 2,232.00",03/03/2021
"ANA Laboratories Inc","Materials and Supplies","$ 1,240.00",03/24/2021
"ANA Laboratories Inc","Materials and Supplies","$ 496.00",03/31/2021
"ANA Laboratories Inc","Materials and Supplies","$ 744.00",04/28/2021
"ANA Laboratories Inc","Materials and Supplies","$ 248.00",05/05/2021
"ANA Laboratories Inc","Materials and Supplies","$ 248.00",06/09/2021
"ANA Laboratories Inc","Materials and Supplies","$ 496.00",06/16/2021
"ANA Laboratories Inc","Materials and Supplies","$ 1,240.00",06/30/2021
"ANA Laboratories Inc","Materials and Supplies","$ 496.00",07/21/2021
"ANA Laboratories Inc","Materials and Supplies","$ 496.00",08/11/2021
"ANA Laboratories Inc","Materials and Supplies","$ 248.00",08/18/2021
"ANA Laboratories Inc","Materials and Supplies","$ 248.00",10/27/2021
"ANA Laboratories Inc","Materials and Supplies","$ 248.00",11/23/2021
"ANA Laboratories Inc","Materials and Supplies","$ 248.00",12/01/2021
"APEX Material Handling Company","Materials and Supplies","$ 1,091.09",03/31/2021
"APEX Material Handling Company","Materials and Supplies","$ 260.00",05/26/2021
"APEX Material Handling Company","Leases and Rentals","$ 5,394.00",11/23/2021
"APEX Material Handling Company","Materials and Supplies","$ 21.00",12/15/2021
"APEX Material Handling Company",Miscellaneous,"$ 612.61",12/15/2021
"ARCO Mechanical Equipment Sales",Services,"$ 1,600.00",02/18/2021
"ARCO Mechanical Equipment Sales",Services,"$ 19,431.00",03/11/2021
"ARCO Mechanical Equipment Sales",Services,"$ 5,964.00",03/25/2021
"ARCO Mechanical Equipment Sales",Services,"$ 1,100.00",04/15/2021
"ARCO Mechanical Equipment Sales",Services,"$ 400.00",04/22/2021
"ARCO Mechanical Equipment Sales",Services,"$ 560.00",06/10/2021
"ARCO Mechanical Equipment Sales",Services,"$ 7,350.00",09/23/2021
"ARCO Mechanical Equipment Sales",Services,"$ 16,610.00",10/21/2021
"ARCO Mechanical Equipment Sales",Services,"$ 17,302.00",12/02/2021
"ASPEN Refrigerants Inc","Fuel/Parts Inventory","$ 516.35",01/21/2021
"ASPEN Refrigerants Inc","Fuel/Parts Inventory","$ 562.35",05/12/2021
"ASPEN Refrigerants Inc","Fuel/Parts Inventory","$ 847.50",06/23/2021
"ASPEN Refrigerants Inc","Fuel/Parts Inventory","$ 2,249.40",06/30/2021
"ASPEN Refrigerants Inc","Fuel/Parts Inventory","$ 1,124.70",07/07/2021
"ASPEN Refrigerants Inc","Fuel/Parts Inventory","$ 1,695.00",07/14/2021
"ASPEN Refrigerants Inc","Fuel/Parts Inventory","$ 4,783.95",08/04/2021
"ASPEN Refrigerants Inc","Fuel/Parts Inventory","$ 562.35",08/25/2021
"ASPEN Refrigerants Inc","Fuel/Parts Inventory","$ 2,298.85",10/13/2021
"ASPEN Refrigerants Inc","Fuel/Parts Inventory","$ 2,298.85",11/17/2021
"ASPEN Refrigerants Inc","Fuel/Parts Inventory","$ 6,962.70",12/01/2021
AT&T,Utilities,"$ 1,536.30",01/06/2021
AT&T,Equipment,"$ 500.00",01/14/2021
AT&T,Services,"$ 49,718.51",01/20/2021
AT&T,Utilities,"$ 217.22",01/20/2021
AT&T,Services,"$ 206.13",01/27/2021
AT&T,Utilities,"$ 8,093.26",01/27/2021
AT&T,Services,"$ 8,949.42",02/03/2021
AT&T,Utilities,"$ 11,594.28",02/03/2021
AT&T,Services,"$ 68,818.60",02/09/2021
AT&T,Utilities,"$ 92,608.88",02/09/2021
AT&T,Services,"$ 3,510.42",02/18/2021
AT&T,Utilities,"$ 1,970.45",02/18/2021
AT&T,Services,"$ 33,587.52",02/24/2021
AT&T,Utilities,"$ 14,879.59",02/24/2021
AT&T,Services,"$ 10,812.84",03/04/2021
AT&T,Utilities,"$ 82,805.43",03/04/2021
AT&T,Services,"$ 1,115.08",03/10/2021
AT&T,Utilities,"$ 4,937.48",03/10/2021
AT&T,Utilities,"$ 29,595.33",03/17/2021
AT&T,Utilities,"$ 7,205.81",03/24/2021
AT&T,Services,"$ 21,247.20",03/31/2021
AT&T,Utilities,"$ 11,213.11",03/31/2021
AT&T,Utilities,"$ 14,371.31",04/07/2021
AT&T,Services,"$ 4,374.35",04/14/2021
AT&T,Services,"$ 2,706.66",04/28/2021
AT&T,Utilities,"$ 12,664.31",04/28/2021
AT&T,Services,"$ 4,381.47",05/05/2021
AT&T,Utilities,"$ 5,292.35",05/05/2021
AT&T,Services,"$ 75,791.17",05/13/2021
AT&T,Utilities,"$ 2,199.64",05/13/2021
AT&T,Services,"$ 8,717.87",05/27/2021
AT&T,Utilities,"$ 50,887.83",05/27/2021
AT&T,Services,"$ 4,185.70",06/02/2021
AT&T,Utilities,"$ 11,100.23",06/02/2021
AT&T,Services,"$ 12,914.18",06/09/2021
AT&T,Utilities,"$ 2,222.10",06/09/2021
AT&T,Services,"$ 31,055.08",06/16/2021
AT&T,Services,"$ 206.79",06/24/2021
AT&T,Utilities,"$ 73,626.41",06/24/2021
AT&T,Services,"$ 18,639.54",06/30/2021
AT&T,Utilities,"$ 235,422.54",06/30/2021
AT&T,Services,"$ 5,920.18",07/07/2021
AT&T,Utilities,"$ 94,013.35",07/07/2021
AT&T,Services,"$ 3,482.70",07/14/2021
AT&T,Services,"$ 56,590.00",07/21/2021
AT&T,Utilities,"$ 93,981.46",07/21/2021
AT&T,Services,"$ 1,916.97",07/28/2021
AT&T,Services,"$ 44,157.08",08/11/2021
AT&T,Utilities,"$ 225,109.17",08/11/2021
AT&T,Services,"$ 479.23",08/18/2021
AT&T,Utilities,"$ 7,402.27",08/18/2021
AT&T,Services,"$ 57.59",08/25/2021
AT&T,Utilities,"$ 20,635.58",08/25/2021
AT&T,Services,"$ 34,099.49",09/02/2021
AT&T,Utilities,"$ 56,637.07",09/02/2021
AT&T,Services,"$ 1,949.60",09/08/2021
AT&T,Utilities,"$ 969.42",09/08/2021
AT&T,Services,"$ 733.32",09/15/2021
AT&T,Services,"$ 1,837.64",09/21/2021
AT&T,Utilities,"$ 22,346.88",09/21/2021
AT&T,Services,"$ 837.91",09/29/2021
AT&T,Utilities,"$ 6,579.68",09/29/2021
AT&T,Services,"$ 33,050.10",10/06/2021
AT&T,Utilities,"$ 65,797.89",10/06/2021
AT&T,Services,"$ 2,399.38",10/13/2021
AT&T,Utilities,"$ 19,013.27",10/13/2021
AT&T,Services,"$ 69,921.70",10/21/2021
AT&T,Utilities,"$ 75,329.49",10/21/2021
AT&T,Services,"$ 125.17",10/27/2021
AT&T,Utilities,"$ 397.54",10/27/2021
AT&T,Services,"$ 3,563.80",11/03/2021
AT&T,Services,"$ 59,583.60",11/10/2021
AT&T,Utilities,"$ 136,940.00",11/10/2021
AT&T,Utilities,"$ 76,143.95",11/18/2021
AT&T,Services,"$ 1,970.78",11/24/2021
AT&T,Utilities,"$ 154,330.24",11/24/2021
AT&T,Services,"$ 31,640.09",12/02/2021
AT&T,Utilities,"$ 21,347.68",12/02/2021
AT&T,Utilities,"$ 3,196.48",12/08/2021
AT&T,Services,"$ 33,250.57",12/16/2021
AT&T,Utilities,"$ 134,674.56",12/16/2021
AT&T,Services,"$ 1,799.93",12/22/2021
AT&T,Utilities,"$ 65,902.74",12/22/2021
AT&T,Utilities,"$ 22,507.70",12/29/2021
"AT&T Mobility National Accounts LLC",Utilities,"$ 17,890.06",01/06/2021
"AT&T Mobility National Accounts LLC",Utilities,"$ 5,080.58",01/13/2021
"AT&T Mobility National Accounts LLC",Utilities,"$ 727.14",01/21/2021
"AT&T Mobility National Accounts LLC",Utilities,"$ 727.14",04/07/2021
"AT&T Mobility National Accounts LLC",Services,"$ 2,181.42",06/30/2021
"AT&T Mobility National Accounts LLC",Utilities,"$ 8,021.79",09/29/2021
"Acme Truck Brake & Supply Co","Fuel/Parts Inventory","$ 371.64",03/17/2021
"Acme Truck Brake & Supply Co","Fuel/Parts Inventory","$ 1,270.08",03/24/2021
"Acme Truck Brake & Supply Co","Fuel/Parts Inventory","$ 76.20",03/31/2021
"Acme Truck Brake & Supply Co","Fuel/Parts Inventory","$ 316.98",11/10/2021
"Action Fire Equipment Inc",Services,"$ 352.00",04/01/2021
"Action Truck Parts Inc","Fuel/Parts Inventory","$ 300.00",12/16/2021
"Adams Contracts Consulting LLC",Services,"$ 1,632.07",09/30/2021
"Adrian Cab Co","Purchased Transportation","$ 51.25",02/24/2021
"Adrian Cab Co","Purchased Transportation","$ 27.00",04/21/2021
"Adrian Cab Co","Purchased Transportation","$ 19.75",11/03/2021
Adsposure,Services,"$ 294.00",04/01/2021
"Advanced Disposal Services Solid Waste Midwest LLC",Services,"$ 210.00",01/07/2021
"Advanced Disposal Services Solid Waste Midwest LLC",Services,"$ 202.64",01/14/2021
"Advanced Disposal Services Solid Waste Midwest LLC",Services,"$ 115.95",01/20/2021
"Advanced Disposal Services Solid Waste Midwest LLC",Services,"$ 142.00",01/21/2021
"Advanced Disposal Services Solid Waste Midwest LLC",Services,"$ 240.80",02/04/2021
"Advanced Disposal Services Solid Waste Midwest LLC",Services,"$ 468.70",02/18/2021
"Advanced Disposal Services Solid Waste Midwest LLC",Services,"$ 626.30",04/02/2021
"Advanced Disposal Services Solid Waste Midwest LLC",Services,"$ 669.37",04/22/2021
"Advanced Disposal Services Solid Waste Midwest LLC",Services,"$ 213.59",05/06/2021
"Advanced Disposal Services Solid Waste Midwest LLC",Services,"$ 248.75",05/27/2021
"Advanced Disposal Services Solid Waste Midwest LLC",Services,"$ 297.95",06/10/2021
"Advanced Disposal Services Solid Waste Midwest LLC",Services,"$ 82.95",06/17/2021
"Advanced Disposal Services Solid Waste Midwest LLC",Services,"$ 209.90",07/08/2021
"Advanced Disposal Services Solid Waste Midwest LLC",Services,"$ 482.74",07/15/2021
"Advanced Disposal Services Solid Waste Midwest LLC",Services,"$ 82.95",07/22/2021
"Advanced Disposal Services Solid Waste Midwest LLC",Services,"$ 241.37",08/19/2021
"Advanced Disposal Services Solid Waste Midwest LLC",Services,"$ 230.00",08/26/2021
"Advanced Disposal Services Solid Waste Midwest LLC",Services,"$ 78.21",09/16/2021
"Advanced Disposal Services Solid Waste Midwest LLC",Services,"$ 91.53",09/23/2021
"Advanced Disposal Services Solid Waste Midwest LLC",Services,"$ 72.00",11/04/2021
"Advantage Marketing Group Ltd","Materials and Supplies","$ 315.43",02/10/2021
"Advantage Marketing Group Ltd",Services,"$ 431.00",02/10/2021
"Advantage Marketing Group Ltd","Materials and Supplies","$ 306.74",02/24/2021
"Advantage Marketing Group Ltd",Services,"$ 371.50",02/24/2021
"Advantage Marketing Group Ltd","Materials and Supplies","$ 379.51",03/17/2021
"Advantage Marketing Group Ltd",Services,"$ 379.00",03/17/2021
"Advantage Marketing Group Ltd","Materials and Supplies","$ 304.62",03/31/2021
"Advantage Marketing Group Ltd",Services,"$ 357.00",03/31/2021
"Advantage Marketing Group Ltd","Materials and Supplies","$ 298.78",04/14/2021
"Advantage Marketing Group Ltd",Services,"$ 317.00",04/14/2021
"Advantage Marketing Group Ltd",Services,"$ 616.36",05/12/2021
"Advantage Marketing Group Ltd","Materials and Supplies","$ 295.36",06/09/2021
"Advantage Marketing Group Ltd",Services,"$ 293.50",06/09/2021
"Advantage Marketing Group Ltd","Materials and Supplies","$ 293.82",07/07/2021
"Advantage Marketing Group Ltd",Services,"$ 283.00",07/07/2021
"Advantage Marketing Group Ltd",Services,"$ 545.31",09/02/2021
"Advantage Marketing Group Ltd",Services,"$ 543.02",09/15/2021
"Advantage Marketing Group Ltd",Services,"$ 1,074.84",11/23/2021
"Advantage Marketing Group Ltd",Services,"$ 529.28",12/21/2021
"Advantage Technologies Inc",Services,"$ 2,412.90",02/18/2021
"Advantage Trailers & Hitches",Services,"$ 845.69",10/28/2021
Adventus,Miscellaneous,"$ 211.69",03/25/2021
Advocate,Services,"$ 4,280.00",01/07/2021
Advocate,Services,"$ 5,614.00",02/11/2021
Advocate,Services,"$ 1,016.00",02/18/2021
Advocate,Services,"$ 2,729.00",03/19/2021
Advocate,Services,"$ 68.00",03/25/2021
Advocate,Services,"$ 26,003.00",04/01/2021
Advocate,Services,"$ 5,143.00",04/08/2021
Advocate,Services,"$ 9,325.00",04/22/2021
Advocate,Services,"$ 9,813.00",05/06/2021
Advocate,Services,"$ 1,254.00",06/03/2021
Advocate,Services,"$ 570.00",06/17/2021
Advocate,Services,"$ 3,049.00",07/08/2021
Advocate,Services,"$ 25.00",07/22/2021
Advocate,Services,"$ 2,768.00",09/09/2021
Advocate,Services,"$ 621.00",09/16/2021
Advocate,Services,"$ 1,221.00",12/28/2021
"Advocate Health Care",Equipment,"$ 7,800.00",07/29/2021
"Advocate Health Care Sherman Occ Health",Services,"$ 5,611.00",04/08/2021
"Ahead Of Our Time Publishing",Miscellaneous,"$ 500.00",08/05/2021
"Air Comfort Corp","Building/Bldg Improvement","$ 21,225.00",02/11/2021
"Airstream Pressure Washing Inc",Services,"$ 10,280.00",02/10/2021
"Airstream Pressure Washing Inc",Services,"$ 5,280.00",03/03/2021
"Airstream Pressure Washing Inc",Services,"$ 5,600.00",04/07/2021
"Airstream Pressure Washing Inc",Services,"$ 6,260.00",04/28/2021
"Airstream Pressure Washing Inc",Services,"$ 4,180.00",05/26/2021
"Airstream Pressure Washing Inc",Services,"$ 3,100.00",06/23/2021
"Airstream Pressure Washing Inc",Services,"$ 3,100.00",08/04/2021
"Airstream Pressure Washing Inc",Services,"$ 1,400.00",09/02/2021
"Airstream Pressure Washing Inc",Services,"$ 3,080.00",09/29/2021
"Airstream Pressure Washing Inc",Services,"$ 2,240.00",10/20/2021
"Airstream Pressure Washing Inc",Services,"$ 2,760.00",12/01/2021
"Airstream Pressure Washing Inc",Services,"$ 1,400.00",12/29/2021
"Alarm Detection Systems Of Illinois",Services,"$ 1,778.52",02/10/2021
"Alarm Detection Systems Of Illinois",Services,"$ 1,715.52",04/07/2021
"Alarm Detection Systems Of Illinois",Services,"$ 66.00",04/28/2021
"Alarm Detection Systems Of Illinois",Services,"$ 66.00",07/07/2021
"Alarm Detection Systems Of Illinois",Services,"$ 1,112.52",07/14/2021
"Alarm Detection Systems Of Illinois",Services,"$ 611.43",08/25/2021
"Alarm Detection Systems Of Illinois",Services,"$ 677.43",09/29/2021
"Alarm Detection Systems Of Illinois",Services,"$ 1,112.52",10/06/2021
"Alarm Detection Systems Of Illinois",Services,"$ 966.00",12/29/2021
"Alesig Consulting LLC",Services,"$ 5,460.00",08/12/2021
"All City Environmental Services Inc",Services,"$ 3,926.25",02/03/2021
"All City Environmental Services Inc",Services,"$ 6,647.25",03/10/2021
"All City Environmental Services Inc",Services,"$ 4,020.00",03/24/2021
"All City Environmental Services Inc",Services,"$ 1,668.75",03/31/2021
"All City Environmental Services Inc",Services,"$ 5,336.25",05/12/2021
"All City Environmental Services Inc",Services,"$ 1,335.00",06/30/2021
"All City Environmental Services Inc",Services,"$ 1,575.00",07/14/2021
"All City Environmental Services Inc",Services,"$ 1,387.50",07/21/2021
"All City Environmental Services Inc",Services,"$ 5,343.75",08/18/2021
"All City Environmental Services Inc",Services,"$ 3,622.50",10/27/2021
"All City Environmental Services Inc",Services,"$ 1,095.00",12/01/2021
"All City Environmental Services Inc",Services,"$ 986.25",12/21/2021
"Alliance Taxi","Purchased Transportation","$ 39,965.28",01/27/2021
"Alliance Taxi","Purchased Transportation","$ 29,957.56",03/02/2021
"Alliance Taxi","Purchased Transportation","$ 36,607.85",03/29/2021
"Alliance Taxi","Purchased Transportation","$ 51,609.88",04/30/2021
"Alliance Taxi","Purchased Transportation","$ 58,389.94",05/25/2021
"Alliance Taxi","Purchased Transportation","$ 57,642.18",06/24/2021
"Alliance Taxi","Purchased Transportation","$ 54,193.02",08/03/2021
"Alliance Taxi","Purchased Transportation","$ 55,488.77",08/31/2021
"Alliance Taxi","Purchased Transportation","$ 63,956.64",09/29/2021
"Alliance Taxi","Purchased Transportation","$ 71,884.60",10/27/2021
"Alliance Taxi","Purchased Transportation","$ 77,234.17",11/24/2021
"Allied Electronics Inc","Materials and Supplies","$ 260.97",02/11/2021
"Amalgamated Services Inc",Services,"$ 385.00",04/15/2021
"Amalgamated Services Inc",Services,"$ 447.50",04/22/2021
"Amalgamated Services Inc",Services,"$ 977.46",09/02/2021
"Amber Mechanical","Building/Bldg Improvement","$ 98,704.00",01/29/2021
"American Arbitration Association Inc",Services,"$ 150.00",02/04/2021
"American Defensive Driving School Inc",Services,"$ 1,380.00",01/20/2021
"American Defensive Driving School Inc",Services,"$ 690.00",03/10/2021
"American Defensive Driving School Inc",Services,"$ 690.00",04/14/2021
"American Defensive Driving School Inc",Services,"$ 690.00",05/05/2021
"American Defensive Driving School Inc",Services,"$ 1,380.00",06/02/2021
"American Defensive Driving School Inc",Services,"$ 690.00",07/07/2021
"American Defensive Driving School Inc",Services,"$ 690.00",08/04/2021
"American Defensive Driving School Inc",Services,"$ 1,580.00",08/25/2021
"American Defensive Driving School Inc",Services,"$ 890.00",09/29/2021
"American Defensive Driving School Inc",Services,"$ 690.00",10/06/2021
"American Defensive Driving School Inc",Services,"$ 690.00",11/03/2021
"American Defensive Driving School Inc",Services,"$ 690.00",12/15/2021
"American Gases Corp",Services,"$ 48.00",01/08/2021
"American Gases Corp",Services,"$ 24.00",01/20/2021
"American Gases Corp",Services,"$ 24.00",03/10/2021
"American Gases Corp",Services,"$ 24.00",04/21/2021
"American Gases Corp",Services,"$ 24.00",05/26/2021
"American Gases Corp",Services,"$ 72.00",07/28/2021
"American Gases Corp",Services,"$ 24.00",08/25/2021
"American Gases Corp",Services,"$ 24.00",09/29/2021
"American Gases Corp",Services,"$ 24.00",11/03/2021
"American Gases Corp",Services,"$ 24.00",12/01/2021
"American Gases Corp",Services,"$ 24.00",12/21/2021
"American Public Transportation Assoc - APTA",Miscellaneous,"$ 112.50",09/30/2021
"American Welding & Gas","Materials and Supplies","$ 89.60",01/06/2021
"American Welding & Gas","Materials and Supplies","$ 56.35",01/13/2021
"American Welding & Gas","Materials and Supplies","$ 212.80",02/17/2021
"American Welding & Gas","Materials and Supplies","$ 145.95",02/24/2021
"American Welding & Gas",Services,"$ 176.00",02/24/2021
"American Welding & Gas","Materials and Supplies","$ 56.35",03/10/2021
"American Welding & Gas",Services,"$ 44.65",03/31/2021
"American Welding & Gas","Materials and Supplies","$ 291.90",04/28/2021
"American Welding & Gas","Materials and Supplies","$ 56.35",06/16/2021
"American Welding & Gas","Materials and Supplies","$ 33.60",07/21/2021
"American Welding & Gas","Materials and Supplies","$ 136.79",07/28/2021
"American Welding & Gas","Materials and Supplies","$ 58.50",08/11/2021
"American Welding & Gas","Materials and Supplies","$ 318.98",08/18/2021
"American Welding & Gas","Materials and Supplies","$ 98.35",08/25/2021
"American Welding & Gas","Materials and Supplies","$ 217.50",09/15/2021
"American Welding & Gas","Materials and Supplies","$ 114.00",10/14/2021
"American Welding & Gas","Materials and Supplies","$ 99.10",11/03/2021
"American Welding & Gas","Materials and Supplies","$ 240.30",12/21/2021
"Amezquita, Anibal Humberto",Equipment,"$ 192.50",05/21/2021
"Amezquita, Anibal Humberto",Miscellaneous,"$ 27.50",05/21/2021
"Amy Carol Priestley",Services,"$ 47.50",06/23/2021
"Anagnos Door Company LLC","Building/Bldg Improvement","$ 8,253.00",12/02/2021
"Anderson Lock",Services,"$ 1,224.00",01/13/2021
"Anderson Lock",Services,"$ 44.99",01/27/2021
"Anderson Lock",Services,"$ 415.02",02/24/2021
"Anderson Lock",Services,"$ 72.04",03/31/2021
"Anderson Lock",Services,"$ 302.50",05/05/2021
"Anderson Lock",Services,"$ 211.00",06/09/2021
"Anderson Lock",Services,"$ 1,117.76",09/15/2021
"Anthony Roofing",Services,"$ 523.23",02/24/2021
"Anthony Roofing",Services,"$ 628.86",06/23/2021
"Anthony Roofing",Services,"$ 5,029.85",09/15/2021
"Anthony Roofing",Services,"$ 1,570.00",11/17/2021
"Anthony Roofing",Services,"$ 602.25",12/29/2021
"Appraisal Associates",Services,"$ 1,500.00",07/01/2021
"Area Diesel Service Inc","Fuel/Parts Inventory","$ 53,216.56",01/08/2021
"Area Diesel Service Inc","Materials and Supplies","$ 3,292.00",01/08/2021
"Area Diesel Service Inc","Fuel/Parts Inventory","$ 30,044.98",01/20/2021
"Area Diesel Service Inc","Materials and Supplies","$ -2,638.25",01/20/2021
"Area Diesel Service Inc","Fuel/Parts Inventory","$ 579.60",01/27/2021
"Area Diesel Service Inc","Fuel/Parts Inventory","$ 9,049.05",02/03/2021
"Area Diesel Service Inc","Fuel/Parts Inventory","$ 22,507.90",03/03/2021
"Area Diesel Service Inc","Fuel/Parts Inventory","$ 47,421.57",03/10/2021
"Area Diesel Service Inc","Materials and Supplies","$ 33.03",03/10/2021
"Area Diesel Service Inc","Fuel/Parts Inventory","$ 44,111.21",03/24/2021
"Area Diesel Service Inc","Fuel/Parts Inventory","$ 2,285.44",04/07/2021
"Area Diesel Service Inc","Fuel/Parts Inventory","$ 11,846.65",04/14/2021
"Area Diesel Service Inc","Fuel/Parts Inventory","$ 30,138.94",04/22/2021
"Area Diesel Service Inc","Fuel/Parts Inventory","$ 24,320.17",04/28/2021
"Area Diesel Service Inc","Fuel/Parts Inventory","$ 14,086.27",05/06/2021
"Area Diesel Service Inc","Fuel/Parts Inventory","$ 13,017.01",05/12/2021
"Area Diesel Service Inc","Fuel/Parts Inventory","$ 10,281.26",05/19/2021
"Area Diesel Service Inc","Fuel/Parts Inventory","$ 5,986.19",05/27/2021
"Area Diesel Service Inc","Fuel/Parts Inventory","$ 16,728.89",06/02/2021
"Area Diesel Service Inc","Fuel/Parts Inventory","$ 13,852.64",06/09/2021
"Area Diesel Service Inc","Fuel/Parts Inventory","$ 7,961.72",06/16/2021
"Area Diesel Service Inc","Fuel/Parts Inventory","$ 3,703.60",06/23/2021
"Area Diesel Service Inc","Fuel/Parts Inventory","$ 2,015.46",06/30/2021
"Area Diesel Service Inc","Materials and Supplies","$ 1,435.69",06/30/2021
"Area Diesel Service Inc","Fuel/Parts Inventory","$ 23,245.00",07/07/2021
"Area Diesel Service Inc","Fuel/Parts Inventory","$ 326.18",07/14/2021
"Area Diesel Service Inc","Fuel/Parts Inventory","$ 6,785.72",07/21/2021
"Area Diesel Service Inc","Fuel/Parts Inventory","$ 12,590.67",07/28/2021
"Area Diesel Service Inc","Materials and Supplies","$ -.36",07/28/2021
"Area Diesel Service Inc","Fuel/Parts Inventory","$ 2,727.34",08/04/2021
"Area Diesel Service Inc","Fuel/Parts Inventory","$ 1,326.12",08/11/2021
"Area Diesel Service Inc","Fuel/Parts Inventory","$ 9,826.17",08/25/2021
"Area Diesel Service Inc","Fuel/Parts Inventory","$ 5,686.07",09/21/2021
"Area Diesel Service Inc","Fuel/Parts Inventory","$ 21,612.76",09/29/2021
"Area Diesel Service Inc","Fuel/Parts Inventory","$ 30,943.68",10/06/2021
"Area Diesel Service Inc","Fuel/Parts Inventory","$ 3,463.92",10/20/2021
"Area Diesel Service Inc","Fuel/Parts Inventory","$ 14,972.31",10/27/2021
"Area Diesel Service Inc","Fuel/Parts Inventory","$ 26,444.31",11/03/2021
"Area Diesel Service Inc","Fuel/Parts Inventory","$ 30,001.09",11/10/2021
"Area Diesel Service Inc","Fuel/Parts Inventory","$ 10,621.44",11/17/2021
"Area Diesel Service Inc","Fuel/Parts Inventory","$ 10,054.48",11/23/2021
"Area Diesel Service Inc","Fuel/Parts Inventory","$ 4,009.13",12/01/2021
"Area Diesel Service Inc","Fuel/Parts Inventory","$ 12,361.44",12/08/2021
"Area Diesel Service Inc","Fuel/Parts Inventory","$ 14,494.00",12/15/2021
"Area Diesel Service Inc","Fuel/Parts Inventory","$ 2,492.25",12/29/2021
"Area Sales & Service","Materials and Supplies","$ 532.57",06/17/2021
"Argon Electric Company Inc",Services,"$ 6,977.00",03/11/2021
"Argon Electric Company Inc",Services,"$ 3,471.00",04/15/2021
"Argon Electric Company Inc",Services,"$ 2,104.00",06/10/2021
"Argon Electric Company Inc",Services,"$ 2,715.12",12/22/2021
"Arrow Messenger Service",Miscellaneous,"$ 520.20",02/24/2021
"Arrow Messenger Service",Miscellaneous,"$ 346.80",03/03/2021
"Arrow Messenger Service",Miscellaneous,"$ 578.00",04/28/2021
"Arrow Messenger Service",Miscellaneous,"$ 346.80",05/19/2021
"Arrow Messenger Service",Miscellaneous,"$ 350.86",06/16/2021
"Arrow Messenger Service",Miscellaneous,"$ 236.42",07/07/2021
"Arrow Messenger Service",Miscellaneous,"$ 178.62",07/21/2021
"Arrow Messenger Service",Miscellaneous,"$ 377.44",07/28/2021
"Arrow Messenger Service",Miscellaneous,"$ 533.25",08/25/2021
"Arrow Messenger Service",Miscellaneous,"$ 267.93",09/21/2021
"Arrow Messenger Service",Miscellaneous,"$ 148.85",10/06/2021
"Arrow Messenger Service",Miscellaneous,"$ 89.31",10/20/2021
"Arrow Messenger Service",Miscellaneous,"$ 178.62",10/27/2021
"Arrow Messenger Service",Miscellaneous,"$ 178.62",11/10/2021
"Arrow Messenger Service",Miscellaneous,"$ 178.62",11/17/2021
"Arrow Messenger Service",Miscellaneous,"$ 178.62",12/08/2021
"Arrow Messenger Service",Miscellaneous,"$ 178.62",12/21/2021
"Arrow Messenger Service",Miscellaneous,"$ 89.31",12/29/2021
"Assyrian Wheels Inc","Purchased Transportation","$ 70.75",03/11/2021
"Assyrian Wheels Inc","Purchased Transportation","$ 137.00",04/22/2021
"Assyrian Wheels Inc","Purchased Transportation","$ 222.25",05/20/2021
"Assyrian Wheels Inc","Purchased Transportation","$ 511.75",06/10/2021
"Assyrian Wheels Inc","Purchased Transportation","$ 236.00",09/02/2021
"Assyrian Wheels Inc","Purchased Transportation","$ 47.75",09/16/2021
"Atlas Bobcat Inc",Services,"$ 670.55",11/23/2021
"Atlas Copco Compressors LLC",Services,"$ 1,712.00",05/12/2021
"Atlas Copco Compressors LLC",Services,"$ 506.50",05/19/2021
"Atlas Copco Compressors LLC",Services,"$ 533.00",05/26/2021
"Atlas Copco Compressors LLC",Services,"$ 748.69",06/16/2021
"Atlas Copco Compressors LLC","Materials and Supplies","$ 3,463.28",06/30/2021
"Atlas Copco Compressors LLC",Services,"$ 772.09",09/21/2021
"Atlas Copco Compressors LLC",Services,"$ 6,141.51",10/27/2021
"Atlas Copco Compressors LLC",Services,"$ 554.00",12/01/2021
"Atlas Copco Compressors LLC",Services,"$ 590.00",12/08/2021
"Atlas Copco Compressors LLC",Services,"$ 1,152.17",12/29/2021
"Atlas Translation Services Inc",Services,"$ 250.00",11/17/2021
"Atlas World Class Body Shop Inc","Casualty and Liability","$ 8,047.00",01/20/2021
"Atlas World Class Body Shop Inc","Casualty and Liability","$ 14,673.00",02/10/2021
"Atlas World Class Body Shop Inc","Casualty and Liability","$ 10,817.00",03/24/2021
"Atlas World Class Body Shop Inc","Casualty and Liability","$ 14,553.00",04/28/2021
"Atlas World Class Body Shop Inc","Casualty and Liability","$ 29,283.00",05/26/2021
"Atlas World Class Body Shop Inc",Services,"$ 4,574.00",05/26/2021
"Atlas World Class Body Shop Inc","Casualty and Liability","$ 12,069.00",07/07/2021
"Atlas World Class Body Shop Inc","Casualty and Liability","$ 4,015.00",07/21/2021
"Atlas World Class Body Shop Inc",Services,"$ 9,634.00",07/21/2021
"Atlas World Class Body Shop Inc","Casualty and Liability","$ 13,024.00",08/04/2021
"Atlas World Class Body Shop Inc",Services,"$ 4,882.00",08/04/2021
"Atlas World Class Body Shop Inc","Casualty and Liability","$ 3,780.00",09/15/2021
"Atlas World Class Body Shop Inc","Casualty and Liability","$ 4,638.00",09/29/2021
"Atlas World Class Body Shop Inc",Services,"$ 19,013.00",12/08/2021
"Atlas World Class Body Shop Inc","Casualty and Liability","$ 8,017.00",12/21/2021
"Attorney Registration & Disciplinary",Miscellaneous,"$ 1,925.00",11/11/2021
"Audimation Services Inc",Services,"$ 605.01",03/04/2021
"Auriga Corporation",Services,"$ 4,400.00",02/25/2021
"Auriga Corporation",Services,"$ 1,650.00",05/20/2021
"Auriga Corporation",Services,"$ 2,200.00",07/15/2021
"Aurora Area Interfaith Food Pantry",Miscellaneous,"$ 211.69",03/25/2021
"Aurora Health Care",Services,"$ 742.00",02/04/2021
"Aurora Health Care",Services,"$ 183.00",05/13/2021
"Aurora Health Care",Services,"$ 183.00",08/19/2021
"Aurora Health Care",Services,"$ 157.00",09/09/2021
"Aurora Health Care",Services,"$ 222.00",11/11/2021
"Aurora Township","Purchased Transportation","$ 9,779.64",01/07/2021
"Aurora Township","Purchased Transportation","$ 8,706.92",02/09/2021
"Aurora Township","Purchased Transportation","$ 11,518.82",03/04/2021
"Aurora Township","Purchased Transportation","$ 13,248.58",04/08/2021
"Aurora Township","Purchased Transportation","$ 16,908.52",04/30/2021
"Aurora Township","Purchased Transportation","$ 18,922.28",06/09/2021
"Aurora Township","Purchased Transportation","$ 21,434.52",07/07/2021
"Aurora Township","Purchased Transportation","$ 22,516.29",08/11/2021
"Aurora Township","Purchased Transportation","$ 23,787.70",09/07/2021
"Aurora Township","Purchased Transportation","$ 24,735.70",10/15/2021
"Aurora Township","Purchased Transportation","$ 27,146.83",10/28/2021
"Aurora Township","Purchased Transportation","$ 26,534.79",12/03/2021
"Austin Electric",Services,"$ 1,735.00",01/20/2021
"Austin Electric",Services,"$ 25,644.80",02/17/2021
"Austin Electric",Services,"$ 2,207.00",06/09/2021
"Austin Electric",Services,"$ 720.00",07/28/2021
"Austin Electric",Services,"$ 3,970.35",08/18/2021
"Austin Electric",Services,"$ 3,244.04",09/15/2021
"Austin Electric",Services,"$ 1,526.00",09/21/2021
"Austin Electric",Services,"$ 3,608.14",10/27/2021
"Austin Electric",Services,"$ 1,672.00",11/10/2021
"Austin Electric",Services,"$ 5,039.44",12/01/2021
"Autex Automotive Devices","Fuel/Parts Inventory","$ 616.00",03/03/2021
"Autex Automotive Devices","Fuel/Parts Inventory","$ 176.00",03/10/2021
"Autex Automotive Devices","Fuel/Parts Inventory","$ 1,144.00",04/14/2021
"Autex Automotive Devices","Fuel/Parts Inventory","$ 354.00",05/19/2021
"Autex Automotive Devices","Fuel/Parts Inventory","$ 240.00",06/23/2021
"Autex Automotive Devices","Fuel/Parts Inventory","$ 180.00",09/29/2021
"Autex Automotive Devices","Fuel/Parts Inventory","$ 455.00",10/20/2021
"Autex Automotive Devices","Fuel/Parts Inventory","$ 225.00",12/01/2021
"Autex Automotive Devices","Fuel/Parts Inventory","$ 1,066.00",12/08/2021
"Avaya Inc",Services,"$ 86,261.52",12/09/2021
"Award Concepts Inc",Services,"$ 2,817.08",02/17/2021
"Award Concepts Inc",Services,"$ 2,094.41",02/24/2021
"Award Concepts Inc",Services,"$ 1,884.00",03/03/2021
"Award Concepts Inc",Services,"$ 1,734.00",03/24/2021
"Award Concepts Inc",Services,"$ 10,626.55",03/31/2021
"Award Concepts Inc",Services,"$ 4,708.00",04/28/2021
"Award Concepts Inc",Services,"$ 1,342.00",06/02/2021
"Award Concepts Inc",Services,"$ 2,566.00",06/30/2021
"Award Concepts Inc",Services,"$ 2,242.00",07/21/2021
"Award Concepts Inc",Services,"$ 346.62",08/18/2021
"Award Concepts Inc",Services,"$ 225.72",08/25/2021
"Award Concepts Inc",Services,"$ 439.00",09/21/2021
"Award Concepts Inc",Services,"$ 204.00",09/29/2021
"Award Concepts Inc",Services,"$ 658.00",10/27/2021
"Award Concepts Inc",Services,"$ 2,703.99",11/17/2021
"Aztec Supply Corp","Materials and Supplies","$ 1,103.36",01/13/2021
"Aztec Supply Corp","Materials and Supplies","$ 2,293.93",03/31/2021
"B2Gnow AskReply Inc",Equipment,"$ 36,815.02",08/26/2021
"BBJ Group LLC","Building/Bldg Improvement","$ 840.00",01/27/2021
"BBJ Group LLC","Building/Bldg Improvement","$ 2,180.00",02/05/2021
"BBJ Group LLC","Building/Bldg Improvement","$ 755.00",02/17/2021
"BBJ Group LLC","Building/Bldg Improvement","$ 5,122.50",11/17/2021
"BHFX LLC",Miscellaneous,"$ 1,000.00",12/16/2021
"Back To Health Chiropractic Medical Ctr",Services,"$ 1,184.00",01/13/2021
"Back To Health Chiropractic Medical Ctr",Services,"$ 8,733.00",02/03/2021
"Back To Health Chiropractic Medical Ctr",Services,"$ 709.00",02/10/2021
"Back To Health Chiropractic Medical Ctr",Services,"$ 3,055.00",03/03/2021
"Back To Health Chiropractic Medical Ctr",Services,"$ 830.00",03/17/2021
"Back To Health Chiropractic Medical Ctr",Services,"$ 2,655.00",04/07/2021
"Back To Health Chiropractic Medical Ctr",Services,"$ 3,685.00",04/14/2021
"Back To Health Chiropractic Medical Ctr",Services,"$ 2,153.00",05/12/2021
"Back To Health Chiropractic Medical Ctr",Services,"$ 891.00",06/23/2021
"Back To Health Chiropractic Medical Ctr",Services,"$ 6,865.00",07/14/2021
"Back To Health Chiropractic Medical Ctr",Services,"$ 3,664.00",08/11/2021
"Back To Health Chiropractic Medical Ctr",Services,"$ 4,084.00",09/29/2021
"Back To Health Chiropractic Medical Ctr",Services,"$ 4,690.00",10/13/2021
"Back To Health Chiropractic Medical Ctr",Services,"$ 717.00",11/17/2021
"Back To Health Chiropractic Medical Ctr",Services,"$ 5,860.00",12/15/2021
"Baker Tilly US LLP",Services,"$ 17,812.00",08/11/2021
"Baker Tilly Virchow Krause LLP",Services,"$ 8,000.00",02/17/2021
"Baker Tilly Virchow Krause LLP",Services,"$ 13,000.00",03/31/2021
"Baker Tilly Virchow Krause LLP",Services,"$ 30,000.00",04/28/2021
"Baker Tilly Virchow Krause LLP",Services,"$ 20,000.00",06/23/2021
"Battery Service Corporation","Materials and Supplies","$ 863.57",05/20/2021
"Battery Service Corporation","Fuel/Parts Inventory","$ 680.00",07/01/2021
"Battery Service Corporation","Fuel/Parts Inventory","$ 5,700.00",09/02/2021
"Battery Service Corporation","Fuel/Parts Inventory","$ 8,235.00",09/23/2021
"Battery Service Corporation","Fuel/Parts Inventory","$ 22,483.08",11/24/2021
"Battery Service Corporation","Fuel/Parts Inventory","$ 26,090.00",12/02/2021
"Battery Service Corporation","Fuel/Parts Inventory","$ 8,250.00",12/16/2021
"Battery Systems Inc","Fuel/Parts Inventory","$ 14,210.00",03/24/2021
"Battery Systems Inc","Fuel/Parts Inventory","$ 12,740.00",05/26/2021
"Battery Systems Inc","Fuel/Parts Inventory","$ 8,070.00",08/18/2021
"Battery Systems Inc","Materials and Supplies","$ -2,736.00",08/18/2021
"Battery Systems Inc","Fuel/Parts Inventory","$ 12,288.00",11/10/2021
"Battery Systems Inc","Materials and Supplies","$ -528.00",11/10/2021
"Beary Landscape Management Inc",Services,"$ 12,515.00",02/03/2021
"Beary Landscape Management Inc",Services,"$ 3,910.00",03/10/2021
"Beary Landscape Management Inc",Services,"$ 1,975.00",03/17/2021
"Beary Landscape Management Inc",Services,"$ 4,410.00",03/26/2021
"Beary Landscape Management Inc",Services,"$ 8,565.00",04/21/2021
"Beary Landscape Management Inc",Services,"$ 475.00",04/28/2021
"Beary Landscape Management Inc",Services,"$ 3,230.00",05/26/2021
"Beary Landscape Management Inc",Services,"$ 3,080.00",06/16/2021
"Beary Landscape Management Inc",Services,"$ 300.00",06/23/2021
"Beary Landscape Management Inc",Services,"$ 150.00",07/21/2021
"Beary Landscape Management Inc",Services,"$ 6,085.00",08/18/2021
"Beary Landscape Management Inc",Services,"$ 3,080.00",09/15/2021
"Beary Landscape Management Inc",Services,"$ 150.00",09/29/2021
"Beary Landscape Management Inc",Services,"$ 3,080.00",10/13/2021
"Beary Landscape Management Inc",Services,"$ 6,085.00",11/23/2021
"Beary Landscape Management Inc",Services,"$ 375.00",12/08/2021
"Beary Landscape Management Inc",Services,"$ 2,855.00",12/21/2021
"Benatha Trans Inc","Purchased Transportation","$ 255.25",01/27/2021
"Benatha Trans Inc","Purchased Transportation","$ 442.50",03/17/2021
"Benatha Trans Inc","Purchased Transportation","$ 800.75",05/26/2021
"Benatha Trans Inc","Purchased Transportation","$ 384.25",06/30/2021
"Benatha Trans Inc","Purchased Transportation","$ 704.25",07/14/2021
"Benatha Trans Inc","Purchased Transportation","$ 81.25",08/11/2021
"Benatha Trans Inc","Purchased Transportation","$ 60.50",09/02/2021
"Benatha Trans Inc","Purchased Transportation","$ 146.00",10/20/2021
"Benatha Trans Inc","Purchased Transportation","$ 152.75",11/03/2021
"Benatha Trans Inc","Purchased Transportation","$ 344.00",12/15/2021
"Benatha Trans Inc","Purchased Transportation","$ 135.25",12/21/2021
"Benefit Express","Health Insurance","$ 13,352.66",01/05/2021
"Benefit Express","Health Insurance","$ 21,836.04",02/03/2021
"Benefit Express","Health Insurance","$ 12,241.12",02/24/2021
"Benefit Express","Health Insurance","$ 11,236.88",03/18/2021
"Benefit Express","Health Insurance","$ 18,417.57",04/28/2021
"Benefit Express","Health Insurance","$ 12,294.87",05/19/2021
"Benefit Express","Health Insurance","$ 10,404.09",06/09/2021
"Benefit Express","Health Insurance","$ 14,001.17",08/11/2021
"Benefit Express","Health Insurance","$ 11,332.27",08/25/2021
"Benefit Express","Health Insurance","$ 12,058.83",09/15/2021
"Benefit Express","Health Insurance","$ 11,527.98",11/03/2021
"Best Quality Cleaning",Services,"$ 1,775.00",01/20/2021
"Best Quality Cleaning","Materials and Supplies","$ 13,549.16",02/10/2021
"Best Quality Cleaning",Services,"$ 7,855.91",02/10/2021
"Best Quality Cleaning","Materials and Supplies","$ 2,146.25",02/17/2021
"Best Quality Cleaning",Services,"$ 2,760.00",02/17/2021
"Best Quality Cleaning","Materials and Supplies","$ 2,043.75",03/03/2021
"Best Quality Cleaning",Services,"$ 6,531.66",03/03/2021
"Best Quality Cleaning","Materials and Supplies","$ 18,052.21",03/10/2021
"Best Quality Cleaning",Services,"$ 14,044.98",03/10/2021
"Best Quality Cleaning",Services,"$ 1,025.00",03/17/2021
"Best Quality Cleaning",Services,"$ 11,863.00",03/24/2021
"Best Quality Cleaning","Materials and Supplies","$ 3,270.50",03/31/2021
"Best Quality Cleaning",Services,"$ 1,440.00",03/31/2021
"Best Quality Cleaning",Services,"$ 1,330.00",04/07/2021
"Best Quality Cleaning",Services,"$ 3,019.78",04/14/2021
"Best Quality Cleaning","Materials and Supplies","$ 2,599.99",04/28/2021
"Best Quality Cleaning",Services,"$ 4,821.66",04/28/2021
"Best Quality Cleaning",Services,"$ 670.00",05/05/2021
"Best Quality Cleaning",Services,"$ 3,301.66",05/12/2021
"Best Quality Cleaning",Services,"$ 1,545.00",05/19/2021
"Best Quality Cleaning","Materials and Supplies","$ 2,599.99",05/26/2021
"Best Quality Cleaning",Services,"$ 2,075.00",05/26/2021
"Best Quality Cleaning","Materials and Supplies","$ 1,038.75",06/02/2021
"Best Quality Cleaning",Services,"$ 6,930.00",06/02/2021
"Best Quality Cleaning","Materials and Supplies","$ 775.00",06/09/2021
"Best Quality Cleaning",Services,"$ 6,710.00",06/09/2021
"Best Quality Cleaning","Materials and Supplies","$ 1,400.00",06/16/2021
"Best Quality Cleaning",Services,"$ 5,890.00",06/16/2021
"Best Quality Cleaning","Materials and Supplies","$ 2,599.99",06/23/2021
"Best Quality Cleaning",Services,"$ 541.66",06/23/2021
"Best Quality Cleaning","Materials and Supplies","$ 3,116.75",07/14/2021
"Best Quality Cleaning",Services,"$ 1,545.00",07/14/2021
"Best Quality Cleaning","Materials and Supplies","$ 23,866.24",07/22/2021
"Best Quality Cleaning",Services,"$ 9,813.66",07/22/2021
"Best Quality Cleaning","Materials and Supplies","$ 11,911.99",07/28/2021
"Best Quality Cleaning",Services,"$ 17,430.66",07/28/2021
"Best Quality Cleaning","Materials and Supplies","$ 6,791.50",08/11/2021
"Best Quality Cleaning",Services,"$ 6,560.00",08/11/2021
"Best Quality Cleaning","Materials and Supplies","$ 4,096.25",08/18/2021
"Best Quality Cleaning","Materials and Supplies","$ 1,925.00",08/25/2021
"Best Quality Cleaning","Materials and Supplies","$ 7,251.74",09/21/2021
"Best Quality Cleaning",Services,"$ 8,771.66",09/21/2021
"Best Quality Cleaning","Materials and Supplies","$ 549.00",09/29/2021
"Best Quality Cleaning",Services,"$ 1,545.00",09/29/2021
"Best Quality Cleaning","Materials and Supplies","$ 8,789.99",10/27/2021
"Best Quality Cleaning",Services,"$ 7,076.66",10/27/2021
"Best Quality Cleaning","Materials and Supplies","$ 550.00",11/03/2021
"Best Quality Cleaning",Services,"$ 3,100.00",11/03/2021
"Best Quality Cleaning","Materials and Supplies","$ 3,143.50",11/10/2021
"Best Quality Cleaning",Services,"$ 6,714.03",11/10/2021
"Best Quality Cleaning","Materials and Supplies","$ 3,328.74",11/17/2021
"Best Quality Cleaning",Services,"$ 1,514.78",11/17/2021
"Best Quality Cleaning","Materials and Supplies","$ 1,025.00",11/23/2021
"Best Quality Cleaning",Services,"$ 541.66",12/01/2021
"Best Quality Cleaning","Materials and Supplies","$ 9,249.49",12/08/2021
"Best Quality Cleaning",Services,"$ 11,951.41",12/08/2021
"Best Quality Cleaning","Materials and Supplies","$ 3,165.00",12/15/2021
"Best Quality Cleaning",Services,"$ 4,144.32",12/15/2021
"Best Quality Cleaning","Materials and Supplies","$ 2,009.50",12/21/2021
"Best Quality Cleaning",Services,"$ 669.34",12/21/2021
"Betty Nellum","Purchased Transportation","$ 32.50",08/12/2021
"Bill's Grove Florist Ltd","Materials and Supplies","$ 2,550.00",03/17/2021
"Bill's Grove Florist Ltd","Materials and Supplies","$ 77.00",04/28/2021
"Bill's Grove Florist Ltd","Materials and Supplies","$ 231.00",05/05/2021
"Bill's Grove Florist Ltd","Materials and Supplies","$ 154.00",09/08/2021
"Bill's Grove Florist Ltd","Materials and Supplies","$ 77.00",09/15/2021
"Bill's Grove Florist Ltd","Materials and Supplies","$ 77.00",11/10/2021
"Bill's Grove Florist Ltd","Materials and Supplies","$ 231.00",12/08/2021
"Bloom Companies LLC","Building/Bldg Improvement","$ 13,514.14",04/21/2021
"Bloom Companies LLC","Building/Bldg Improvement","$ 269,577.47",06/11/2021
"Bloom Township Center","Purchased Transportation","$ 2,145.00",01/21/2021
"Bloom Township Center","Purchased Transportation","$ 1,718.00",02/04/2021
"Bloom Township Center","Purchased Transportation","$ 1,610.00",03/11/2021
"Bloom Township Center","Purchased Transportation","$ 1,659.00",04/08/2021
"Bloom Township Center","Purchased Transportation","$ 1,713.00",05/06/2021
"Bloom Township Center","Purchased Transportation","$ 2,664.00",06/03/2021
"Bloom Township Center",Equipment,"$ 3,350.00",06/25/2021
"Bloom Township Center","Purchased Transportation","$ 2,307.00",07/08/2021
"Bloom Township Center","Purchased Transportation","$ 2,316.00",08/12/2021
"Bloom Township Center","Purchased Transportation","$ 2,964.00",09/09/2021
"Bloom Township Center","Purchased Transportation","$ 3,480.00",10/07/2021
"Bloom Township Center","Purchased Transportation","$ 3,471.00",11/04/2021
"Bloom Township Center","Purchased Transportation","$ 3,696.00",12/02/2021
"Bloomberg BNA",Services,"$ 6,952.00",02/11/2021
"Blue Apple Health LLC","Health Insurance","$ 16,038.00",01/21/2021
"Blue Cross Blue Shield of Illinois","Health Insurance","$ 2,118,892.56",01/29/2021
"Blue Cross Blue Shield of Illinois","Health Insurance","$ 1,963,152.16",02/26/2021
"Blue Cross Blue Shield of Illinois","Health Insurance","$ 2,060,504.82",03/26/2021
"Blue Cross Blue Shield of Illinois","Health Insurance","$ 2,059,476.73",04/29/2021
"Blue Cross Blue Shield of Illinois","Health Insurance","$ 2,045,188.18",05/25/2021
"Blue Cross Blue Shield of Illinois","Health Insurance","$ 2,084,389.81",06/24/2021
"Blue Cross Blue Shield of Illinois","Health Insurance","$ 2,045,619.92",07/23/2021
"Blue Cross Blue Shield of Illinois","Health Insurance","$ 1,927,295.98",08/25/2021
"Blue Cross Blue Shield of Illinois","Health Insurance","$ 2,131,772.19",09/30/2021
"Blue Cross Blue Shield of Illinois","Health Insurance","$ 1,928,822.52",11/02/2021
"Blue Cross Blue Shield of Illinois","Health Insurance","$ 2,010,792.93",12/01/2021
"Blue Cross Blue Shield of Illinois","Health Insurance","$ 1,918,896.65",12/22/2021
"Blue Ribbon Taxi Association","Purchased Transportation","$ 14,371.50",01/07/2021
"Blue Ribbon Taxi Association","Purchased Transportation","$ 3,351.27",01/13/2021
"Blue Ribbon Taxi Association","Purchased Transportation","$ 19,330.00",01/27/2021
"Blue Ribbon Taxi Association","Purchased Transportation","$ 2,680.21",02/24/2021
"Blue Ribbon Taxi Association","Purchased Transportation","$ 39,162.50",03/03/2021
"Blue Ribbon Taxi Association","Purchased Transportation","$ 26,736.67",03/24/2021
"Blue Ribbon Taxi Association","Purchased Transportation","$ 9,925.25",03/31/2021
"Blue Ribbon Taxi Association","Purchased Transportation","$ 840.50",04/08/2021
"Blue Ribbon Taxi Association","Purchased Transportation","$ 14,396.96",04/21/2021
"Blue Ribbon Taxi Association","Purchased Transportation","$ 66,551.75",05/28/2021
"Blue Ribbon Taxi Association","Purchased Transportation","$ 33,608.25",06/16/2021
"Blue Ribbon Taxi Association","Purchased Transportation","$ 106,139.69",06/21/2021
"Blue Ribbon Taxi Association","Purchased Transportation","$ 128,035.08",08/05/2021
"Blue Ribbon Taxi Association","Purchased Transportation","$ 41,865.50",08/11/2021
"Blue Ribbon Taxi Association","Purchased Transportation","$ 25,392.05",08/25/2021
"Blue Ribbon Taxi Association","Purchased Transportation","$ 156,380.50",09/02/2021
"Blue Ribbon Taxi Association","Purchased Transportation","$ 457.47",09/08/2021
"Blue Ribbon Taxi Association","Purchased Transportation","$ 27,680.97",09/29/2021
"Blue Ribbon Taxi Association","Purchased Transportation","$ 209,591.15",10/13/2021
"Blue Ribbon Taxi Association","Purchased Transportation","$ 14,792.82",10/20/2021
"Blue Ribbon Taxi Association","Purchased Transportation","$ 28,406.00",10/27/2021
"Blue Ribbon Taxi Association","Purchased Transportation","$ 3,522.71",11/03/2021
"Blue Ribbon Taxi Association","Purchased Transportation","$ 217,886.92",11/04/2021
"Blue Ribbon Taxi Association","Purchased Transportation","$ 12,789.75",11/10/2021
"Blue Ribbon Taxi Association","Purchased Transportation","$ 19,659.74",11/17/2021
"Blue Ribbon Taxi Association","Purchased Transportation","$ 17,162.24",11/23/2021
"Blue Ribbon Taxi Association","Purchased Transportation","$ 1,983.34",12/01/2021
"Blue Ribbon Taxi Association","Purchased Transportation","$ 248,047.30",12/03/2021
"Blue Ribbon Taxi Association","Purchased Transportation","$ 13,441.75",12/08/2021
"Blue Ribbon Taxi Association","Purchased Transportation","$ 20,663.26",12/15/2021
"Blue Ribbon Taxi Association","Purchased Transportation","$ 16,803.42",12/21/2021
"Blue Ribbon Taxi Association","Purchased Transportation","$ 36,420.50",12/29/2021
"Blue Ribbon Taxi Association","Purchased Transportation","$ 2,636.75",12/30/2021
"Bolingbrook Taxi","Purchased Transportation","$ 354.75",02/02/2021
"Brasco International",Equipment,"$ 168,597.00",01/28/2021
"Brasco International",Equipment,"$ 162,925.00",05/07/2021
"Brasco International",Equipment,"$ 201,735.00",08/11/2021
"Brasco International",Equipment,"$ 24,500.00",12/29/2021
"Brent Hassert Consulting LLC",Services,"$ 4,000.00",02/24/2021
"Brent Hassert Consulting LLC",Services,"$ 4,000.00",05/12/2021
"Brent Hassert Consulting LLC",Services,"$ 4,000.00",07/07/2021
"Brent Hassert Consulting LLC",Services,"$ 4,000.00",09/08/2021
"Brent Hassert Consulting LLC",Services,"$ 4,000.00",10/27/2021
"Brent Hassert Consulting LLC",Services,"$ 2,000.00",12/15/2021
"Brent Hassert Consulting LLC",Services,"$ 2,000.00",12/21/2021
"Brian Gralewski","Purchased Transportation","$ 32.50",04/08/2021
"Bridgestone Americas Tire Operations LLC","Materials and Supplies","$ 45,481.73",01/20/2021
"Bridgestone Americas Tire Operations LLC","Materials and Supplies","$ 176,176.96",02/04/2021
"Bridgestone Americas Tire Operations LLC","Materials and Supplies","$ 77,235.73",03/18/2021
"Bridgestone Americas Tire Operations LLC","Materials and Supplies","$ 35,678.19",03/31/2021
"Bridgestone Americas Tire Operations LLC","Materials and Supplies","$ 171,782.90",05/05/2021
"Bridgestone Americas Tire Operations LLC","Materials and Supplies","$ 85,028.95",06/11/2021
"Bridgestone Americas Tire Operations LLC","Materials and Supplies","$ 82,809.63",07/21/2021
"Bridgestone Americas Tire Operations LLC","Materials and Supplies","$ 83,506.85",08/12/2021
"Bridgestone Americas Tire Operations LLC","Materials and Supplies","$ 83,240.39",09/16/2021
"Bridgestone Americas Tire Operations LLC","Materials and Supplies","$ 84,983.87",10/06/2021
"Bridgestone Americas Tire Operations LLC","Materials and Supplies","$ 40,372.62",10/14/2021
"Bridgestone Americas Tire Operations LLC","Materials and Supplies","$ 92,830.21",11/24/2021
"Bridgestone Americas Tire Operations LLC","Materials and Supplies","$ 93,387.31",12/22/2021
"Bristol Hose & Fitting","Materials and Supplies","$ 342.43",01/20/2021
"Bristol Hose & Fitting","Materials and Supplies","$ 240.83",05/12/2021
"Bristol Hose & Fitting","Materials and Supplies","$ 202.37",06/30/2021
"Bristol Hose & Fitting","Materials and Supplies","$ 733.30",07/14/2021
"Bristol Hose & Fitting","Materials and Supplies","$ 383.90",12/29/2021
"Buck Bros Inc",Equipment,"$ 2,875.59",09/16/2021
"Buck Bros Inc",Vehicle,"$ 21,655.41",09/16/2021
"Builders Chicago Corporation",Services,"$ 759.00",01/13/2021
"Builders Chicago Corporation",Services,"$ 10,107.33",01/20/2021
"Builders Chicago Corporation",Services,"$ 4,363.00",02/03/2021
"Builders Chicago Corporation",Services,"$ 6,976.48",02/17/2021
"Builders Chicago Corporation",Services,"$ 1,377.41",02/24/2021
"Builders Chicago Corporation",Services,"$ 342.85",03/10/2021
"Builders Chicago Corporation",Services,"$ 4,529.34",03/17/2021
"Builders Chicago Corporation",Services,"$ 1,074.18",03/31/2021
"Builders Chicago Corporation",Services,"$ 16,159.99",04/14/2021
"Builders Chicago Corporation",Services,"$ 9,942.06",04/28/2021
"Builders Chicago Corporation",Services,"$ 7,280.00",06/23/2021
"Builders Chicago Corporation",Services,"$ 835.00",06/30/2021
"Builders Chicago Corporation",Services,"$ 8,894.58",07/14/2021
"Builders Chicago Corporation",Services,"$ 19,090.26",07/21/2021
"Builders Chicago Corporation",Services,"$ 4,183.11",07/28/2021
"Builders Chicago Corporation",Services,"$ 6,379.17",08/18/2021
"Builders Chicago Corporation",Services,"$ 2,504.64",09/02/2021
"Builders Chicago Corporation",Services,"$ 12,548.43",09/15/2021
"Builders Chicago Corporation",Services,"$ 860.18",09/21/2021
"Builders Chicago Corporation",Services,"$ 2,585.00",10/20/2021
"Builders Chicago Corporation",Services,"$ 2,691.79",10/27/2021
"Builders Chicago Corporation",Services,"$ 205.00",11/10/2021
"Builders Chicago Corporation",Services,"$ 5,722.16",12/01/2021
"Builders Chicago Corporation",Services,"$ 7,877.40",12/08/2021
"Builders Chicago Corporation",Services,"$ 26,909.89",12/21/2021
"Builders Chicago Corporation",Services,"$ 3,034.07",12/29/2021
"Bus & Truck of Chicago Inc","Casualty and Liability","$ 4,004.41",01/06/2021
"Bus & Truck of Chicago Inc","Casualty and Liability","$ 5,961.31",02/10/2021
"Bus & Truck of Chicago Inc","Casualty and Liability","$ 9,795.92",03/17/2021
"Bus & Truck of Chicago Inc",Services,"$ 3,380.00",03/17/2021
"Bus & Truck of Chicago Inc","Casualty and Liability","$ 12,109.85",04/28/2021
"Bus & Truck of Chicago Inc","Casualty and Liability","$ 4,567.50",05/12/2021
"Bus & Truck of Chicago Inc",Services,"$ 8,778.99",05/12/2021
"Bus & Truck of Chicago Inc","Casualty and Liability","$ 4,592.09",09/21/2021
"Bus & Truck of Chicago Inc","Casualty and Liability","$ 5,559.15",12/08/2021
"Bus & Truck of Chicago Inc",Services,"$ 2,303.75",12/08/2021
"Bus & Truck of Chicago Inc",Services,"$ 19,118.48",12/15/2021
"Bus & Truck of Chicago Inc","Casualty and Liability","$ 11,002.67",12/21/2021
"CBM US Inc","Fuel/Parts Inventory","$ 619.90",01/06/2021
"CBM US Inc","Fuel/Parts Inventory","$ 744.08",01/13/2021
"CBM US Inc","Fuel/Parts Inventory","$ 2,083.81",03/10/2021
"CBM US Inc","Fuel/Parts Inventory","$ 3,292.15",03/31/2021
"CBM US Inc","Fuel/Parts Inventory","$ 378.40",04/14/2021
"CBM US Inc","Fuel/Parts Inventory","$ 1,621.58",04/21/2021
"CBM US Inc","Fuel/Parts Inventory","$ 1,665.30",05/26/2021
"CBM US Inc","Fuel/Parts Inventory","$ 202.00",08/18/2021
"CBM US Inc","Fuel/Parts Inventory","$ 1,326.91",09/08/2021
"CBM US Inc","Fuel/Parts Inventory","$ 1,630.82",09/29/2021
"CBM US Inc","Fuel/Parts Inventory","$ 482.50",10/06/2021
"CBM US Inc","Fuel/Parts Inventory","$ 214.58",10/27/2021
"CBM US Inc","Fuel/Parts Inventory","$ 970.00",12/01/2021
"CBM US Inc","Fuel/Parts Inventory","$ 830.04",12/15/2021
"CCH Incorporated",Miscellaneous,"$ 511.41",04/15/2021
"CCH a Wolters Kluwer Business",Services,"$ 6,560.00",01/21/2021
"CCH a Wolters Kluwer Business",Miscellaneous,"$ 541.41",08/05/2021
"CDS Office Technologies","Leases and Rentals","$ 3,797.45",01/22/2021
"CDS Office Technologies","Leases and Rentals","$ 345.00",02/10/2021
"CDS Office Technologies","Leases and Rentals","$ 1,050.00",02/18/2021
"CDS Office Technologies","Leases and Rentals","$ 1,395.00",03/31/2021
"CDS Office Technologies","Leases and Rentals","$ 2,592.45",04/14/2021
"CDS Office Technologies","Leases and Rentals","$ 1,429.50",05/12/2021
"CDS Office Technologies","Leases and Rentals","$ 4,176.58",06/30/2021
"CDS Office Technologies","Leases and Rentals","$ 1,429.50",08/18/2021
"CDS Office Technologies","Leases and Rentals","$ 1,429.50",09/02/2021
"CDS Office Technologies","Leases and Rentals","$ 2,367.58",09/21/2021
"CDS Office Technologies","Leases and Rentals","$ 379.50",10/06/2021
"CDS Office Technologies","Leases and Rentals","$ 1,050.00",10/27/2021
"CDS Office Technologies","Leases and Rentals","$ 1,809.00",11/23/2021
"CDS Office Technologies","Leases and Rentals","$ 2,747.08",12/21/2021
"CDW Government LLC",Services,"$ 17,183.40",01/06/2021
"CDW Government LLC",Services,"$ 76,500.00",01/20/2021
"CDW Government LLC",Equipment,"$ 27,729.78",02/05/2021
"CDW Government LLC",Services,"$ 22,715.00",04/21/2021
"CDW Government LLC",Services,"$ 12,175.28",04/28/2021
"CDW Government LLC",Services,"$ 36,292.32",12/29/2021
"CHK America",Utilities,"$ 33,264.00",08/26/2021
"CSI 3000 Inc",Services,"$ 113,275.94",01/21/2021
"CTI USA Inc dba Globe Ticket Company","Materials and Supplies","$ 11,140.10",05/13/2021
"Cabconnect Inc",Miscellaneous,"$ 37,111.30",01/13/2021
"Cabconnect Inc",Miscellaneous,"$ 37,569.50",03/03/2021
"Cabconnect Inc",Miscellaneous,"$ 35,431.75",03/10/2021
"Cabconnect Inc",Miscellaneous,"$ 42,307.70",04/21/2021
"Cabconnect Inc",Miscellaneous,"$ 42,911.30",05/12/2021
"Cabconnect Inc",Miscellaneous,"$ 44,856.25",06/16/2021
"Cabconnect Inc",Miscellaneous,"$ 42,036.65",07/14/2021
"Cabconnect Inc",Miscellaneous,"$ 40,552.05",08/11/2021
"Cabconnect Inc",Miscellaneous,"$ 40,888.35",09/08/2021
"Cabconnect Inc",Miscellaneous,"$ 44,046.35",10/13/2021
"Cabconnect Inc",Miscellaneous,"$ 47,595.45",11/10/2021
"Cabconnect Inc",Miscellaneous,"$ 48,239.35",12/08/2021
"Cal City Bakery",Miscellaneous,"$ 519.00",01/07/2021
"Cal City Bakery",Miscellaneous,"$ 211.69",03/25/2021
"Cal City Bakery",Miscellaneous,"$ -519.00",07/31/2020
"Calumet City Plumbing Co Inc",Services,"$ 843.00",01/27/2021
"Calumet City Plumbing Co Inc",Services,"$ 10,630.60",02/03/2021
"Calumet City Plumbing Co Inc",Services,"$ 2,615.00",03/10/2021
"Calumet City Plumbing Co Inc",Services,"$ 1,635.00",04/07/2021
"Calumet City Plumbing Co Inc",Services,"$ 597.00",04/21/2021
"Calumet City Plumbing Co Inc",Services,"$ 363.12",05/05/2021
"Calumet City Plumbing Co Inc",Services,"$ 599.00",05/12/2021
"Calumet City Plumbing Co Inc",Services,"$ 655.00",06/09/2021
"Calumet City Plumbing Co Inc",Services,"$ 1,372.51",07/14/2021
"Calumet City Plumbing Co Inc",Services,"$ 623.19",07/21/2021
"Calumet City Plumbing Co Inc",Services,"$ 5,744.00",08/25/2021
"Calumet City Plumbing Co Inc",Services,"$ 2,517.19",09/21/2021
"Calumet City Plumbing Co Inc",Services,"$ 2,566.82",10/13/2021
"Calumet City Plumbing Co Inc",Services,"$ 449.00",10/27/2021
"Calumet City Plumbing Co Inc",Services,"$ 342.84",12/01/2021
"Calumet City Plumbing Co Inc",Services,"$ 6,856.26",12/08/2021
"Calumet City Plumbing Co Inc",Services,"$ 480.00",12/15/2021
"Calumet City Plumbing Co Inc",Services,"$ 277.00",12/21/2021
"Canon Solutions America Inc","Leases and Rentals","$ 56,692.03",05/11/2021
"Canon Solutions America Inc","Leases and Rentals","$ 30,654.23",08/04/2021
"Canon Solutions America Inc","Leases and Rentals","$ 9,624.93",09/08/2021
"Canon Solutions America Inc","Leases and Rentals","$ 9,347.25",10/06/2021
"Canon Solutions America Inc","Leases and Rentals","$ 9,532.53",11/10/2021
"Canon Solutions America Inc","Leases and Rentals","$ 9,162.41",12/08/2021
"Canteen Refreshment Services","Materials and Supplies","$ 515.80",02/24/2021
"Canteen Refreshment Services","Materials and Supplies","$ 457.66",03/25/2021
"Canteen Refreshment Services","Materials and Supplies","$ 16.14",03/31/2021
"Canteen Refreshment Services","Materials and Supplies","$ 505.80",05/12/2021
"Canteen Refreshment Services",Miscellaneous,"$ 296.81",05/26/2021
"Canteen Refreshment Services","Materials and Supplies","$ 728.52",08/18/2021
"Canteen Refreshment Services","Materials and Supplies","$ 132.72",09/02/2021
"Canteen Refreshment Services","Materials and Supplies","$ 484.34",11/03/2021
"Capital Painting & Decorating Inc",Services,"$ 12,160.00",10/28/2021
"CapitolHall Partners LLC",Services,"$ 3,000.00",01/20/2021
"CapitolHall Partners LLC",Services,"$ 3,000.00",02/24/2021
"CapitolHall Partners LLC",Services,"$ 3,000.00",03/24/2021
"CapitolHall Partners LLC",Services,"$ 3,000.00",04/28/2021
"CapitolHall Partners LLC",Services,"$ 3,000.00",05/19/2021
"CapitolHall Partners LLC",Services,"$ 3,000.00",06/23/2021
"CapitolHall Partners LLC",Services,"$ 3,000.00",07/28/2021
"CapitolHall Partners LLC",Services,"$ 3,000.00",08/25/2021
"CapitolHall Partners LLC",Services,"$ 3,000.00",10/06/2021
"CapitolHall Partners LLC",Services,"$ 3,000.00",10/27/2021
"CapitolHall Partners LLC",Services,"$ 3,000.00",11/23/2021
"CapitolHall Partners LLC",Services,"$ 3,000.00",12/21/2021
"Carahsoft Technology Corp",Services,"$ 14,192.43",10/21/2021
"Chandler Services Inc","Casualty and Liability","$ 36,684.82",01/13/2021
"Chandler Services Inc",Services,"$ 6,366.66",02/10/2021
"Chandler Services Inc",Services,"$ 11,969.66",02/18/2021
"Chandler Services Inc","Casualty and Liability","$ 12,438.64",03/17/2021
"Chandler Services Inc",Services,"$ 2,091.60",03/17/2021
"Chandler Services Inc",Services,"$ 499.15",03/31/2021
"Chandler Services Inc","Casualty and Liability","$ 3,851.10",04/14/2021
"Chandler Services Inc",Services,"$ 521.50",04/14/2021
"Chandler Services Inc",Services,"$ 2,860.00",05/26/2021
"Chandler Services Inc",Services,"$ 12,726.21",08/25/2021
"Chandler Services Inc",Services,"$ 7,366.41",10/06/2021
"Chandler Services Inc","Casualty and Liability","$ 12,232.03",10/27/2021
"Chandler Services Inc",Services,"$ 4,910.60",11/17/2021
"Chandler Services Inc","Fuel/Parts Inventory","$ 2,216.31",12/08/2021
"Charles Equipment Energy Systems",Services,"$ 2,011.00",01/14/2021
"Charles Equipment Energy Systems",Services,"$ 2,779.00",02/11/2021
"Charles Equipment Energy Systems",Services,"$ 7,113.50",04/01/2021
"Charles Equipment Energy Systems",Services,"$ 24,017.38",04/08/2021
"Charles Equipment Energy Systems",Services,"$ 4,013.92",06/10/2021
"Charles Equipment Energy Systems",Services,"$ 8,450.83",06/25/2021
"Charles Equipment Energy Systems",Services,"$ 6,903.05",07/01/2021
"Charles Equipment Energy Systems",Services,"$ 1,783.90",07/15/2021
"Charles Equipment Energy Systems",Services,"$ 21,085.46",08/12/2021
"Charles Equipment Energy Systems",Services,"$ 5,745.25",09/16/2021
"Charles Equipment Energy Systems",Services,"$ 7,626.42",10/14/2021
"Charles Equipment Energy Systems",Services,"$ 3,242.92",10/21/2021
"Charles Equipment Energy Systems",Services,"$ 2,165.60",11/10/2021
"Charles Equipment Energy Systems",Services,"$ 290.00",12/01/2021
"Charles Lauderdale","Fringe Benefits","$ 405.00",03/26/2021
"Charles Thomas","Health Insurance","$ 128.42",03/11/2021
"Chicago Bar Association",Miscellaneous,"$ 170.00",04/22/2021
"Chicago Communication Systems",Services,"$ 231.00",06/23/2021
"Chicago Heights Park District","Purchased Transportation","$ 100.00",12/16/2021
"Chicago Parts & Sound LLC","Fuel/Parts Inventory","$ 108.86",03/04/2021
"Chicago Parts & Sound LLC","Fuel/Parts Inventory","$ 108.24",04/22/2021
"Chicago Power Clean",Services,"$ 2,600.00",06/17/2021
"Chicago Power Clean",Services,"$ 1,050.00",08/26/2021
"Chicago Power Clean",Services,"$ 1,550.00",09/16/2021
"Chicago Power Clean",Services,"$ 1,050.00",11/11/2021
"Chicago Tower Leasing Corporation",Services,"$ 6,232.56",10/27/2021
"Chicago Transit Authority",Services,"$ 230.00",09/02/2021
"Chicago United Industries Ltd",Services,"$ 5,504.87",04/15/2021
"Chicago United Industries Ltd","Materials and Supplies","$ 2,012.02",07/14/2021
"Chicago United Industries Ltd",Services,"$ 4,014.83",09/02/2021
"Chicago United Industries Ltd","Fuel/Parts Inventory","$ 3,710.00",11/23/2021
"Chicago Voice & Data Authority",Services,"$ 1,548.85",01/21/2021
"Chicago Voice & Data Authority",Services,"$ 755.94",05/27/2021
"Chicago Voice & Data Authority",Services,"$ 368.50",07/08/2021
"Chicago Voice & Data Authority",Equipment,"$ 24,832.00",10/28/2021
"Chicago Voice & Data Authority",Services,"$ 2,420.00",10/28/2021
"Chicago Voice & Data Authority",Services,"$ 20,525.00",12/09/2021
"Choice Taxi Association","Purchased Transportation","$ 17.00",04/22/2021
"Choice Taxi Association","Purchased Transportation","$ 16.25",05/20/2021
"Choice Taxi Association","Purchased Transportation","$ 44.25",06/03/2021
"Choice Taxi Association","Purchased Transportation","$ 58.75",06/10/2021
"Choice Taxi Association","Purchased Transportation","$ 47.75",07/08/2021
"Choice Taxi Association","Purchased Transportation","$ 7.50",07/29/2021
"Choice Taxi Association","Purchased Transportation","$ 195.50",08/19/2021
"Choice Taxi Association","Purchased Transportation","$ 185.00",08/26/2021
"Choice Taxi Association","Purchased Transportation","$ 104.25",09/09/2021
"Choice Taxi Association","Purchased Transportation","$ 90.50",09/16/2021
"Choice Taxi Association","Purchased Transportation","$ 57.00",09/30/2021
"Choice Taxi Association","Purchased Transportation","$ 322.50",10/21/2021
"Choice Taxi Association","Purchased Transportation","$ 1,326.75",11/11/2021
"Choice Taxi Association","Purchased Transportation","$ 1,021.50",11/24/2021
"Choice Taxi Association","Purchased Transportation","$ 1,189.50",12/16/2021
"Choice Taxi Association","Purchased Transportation","$ 530.50",12/22/2021
"Choose DuPage",Miscellaneous,"$ 6,250.00",05/27/2021
"Cicero Mfg & Supply Company Inc","Building/Bldg Improvement","$ 3,612.74",01/21/2021
"Cicero Mfg & Supply Company Inc",Equipment,"$ 5,962.30",05/06/2021
"Cicero Mfg & Supply Company Inc","Materials and Supplies","$ 673.27",10/14/2021
"Ciorba Group Inc","Building/Bldg Improvement","$ 4,193.54",12/02/2021
"City Service Taxi Association","Purchased Transportation","$ 3,601.25",01/06/2021
"City Service Taxi Association","Purchased Transportation","$ 17,172.25",01/27/2021
"City Service Taxi Association","Purchased Transportation","$ 12,387.25",02/03/2021
"City Service Taxi Association","Purchased Transportation","$ 4,559.50",02/10/2021
"City Service Taxi Association","Purchased Transportation","$ 11,048.75",02/24/2021
"City Service Taxi Association","Purchased Transportation","$ 16,844.60",03/17/2021
"City Service Taxi Association","Purchased Transportation","$ 6,207.50",03/31/2021
"City Service Taxi Association","Purchased Transportation","$ 8,816.50",04/07/2021
"City Service Taxi Association","Purchased Transportation","$ 17,508.25",04/21/2021
"City Service Taxi Association","Purchased Transportation","$ 3,790.75",04/28/2021
"City Service Taxi Association","Purchased Transportation","$ 6,182.75",05/05/2021
"City Service Taxi Association","Purchased Transportation","$ 5,485.75",05/12/2021
"City Service Taxi Association","Purchased Transportation","$ 11,903.75",05/19/2021
"City Service Taxi Association","Purchased Transportation","$ 7,728.50",05/26/2021
"City Service Taxi Association","Purchased Transportation","$ 17,179.00",06/02/2021
"City Service Taxi Association","Purchased Transportation","$ 2,577.25",06/09/2021
"City Service Taxi Association","Purchased Transportation","$ 18,916.75",06/16/2021
"City Service Taxi Association","Purchased Transportation","$ 7,967.00",06/23/2021
"City Service Taxi Association","Purchased Transportation","$ 16,737.00",07/07/2021
"City Service Taxi Association","Purchased Transportation","$ 6,899.50",07/21/2021
"City Service Taxi Association","Purchased Transportation","$ 33,579.25",07/28/2021
"City Service Taxi Association","Purchased Transportation","$ 11,873.50",08/11/2021
"City Service Taxi Association","Purchased Transportation","$ 45,213.63",08/25/2021
"City Service Taxi Association","Purchased Transportation","$ 3,673.00",09/02/2021
"City Service Taxi Association","Purchased Transportation","$ 16,279.25",09/08/2021
"City Service Taxi Association","Purchased Transportation","$ 12,716.75",09/21/2021
"City Service Taxi Association","Purchased Transportation","$ 29,521.00",09/29/2021
"City Service Taxi Association","Purchased Transportation","$ 44,761.75",10/20/2021
"City Service Taxi Association","Purchased Transportation","$ 34,726.00",10/27/2021
"City Service Taxi Association","Purchased Transportation","$ 23,206.75",11/03/2021
"City Service Taxi Association","Purchased Transportation","$ 4,346.00",11/10/2021
"City Service Taxi Association","Purchased Transportation","$ 25,152.00",11/17/2021
"City Service Taxi Association","Purchased Transportation","$ 46,557.15",12/08/2021
"City Service Taxi Association","Purchased Transportation","$ 27,421.00",12/15/2021
"City Service Taxi Association","Purchased Transportation","$ 20,694.50",12/21/2021
"City Welding Sales & Service Inc","Materials and Supplies","$ 13.79",03/04/2021
"City Welding Sales & Service Inc",Services,"$ 200.59",03/04/2021
"City Welding Sales & Service Inc","Materials and Supplies","$ 119.50",03/25/2021
"City Welding Sales & Service Inc","Materials and Supplies","$ 71.70",04/15/2021
"City Welding Sales & Service Inc",Services,"$ 69.72",04/15/2021
"City Welding Sales & Service Inc","Materials and Supplies","$ 501.12",04/22/2021
"City Welding Sales & Service Inc","Materials and Supplies","$ 95.60",05/06/2021
"City Welding Sales & Service Inc",Services,"$ 578.93",05/06/2021
"City Welding Sales & Service Inc","Materials and Supplies","$ 71.70",05/13/2021
"City Welding Sales & Service Inc","Materials and Supplies","$ 143.40",05/27/2021
"City Welding Sales & Service Inc",Services,"$ 6.30",05/27/2021
"City Welding Sales & Service Inc",Services,"$ 119.96",06/10/2021
"City Welding Sales & Service Inc","Materials and Supplies","$ 95.60",07/01/2021
"City Welding Sales & Service Inc",Services,"$ 143.40",07/08/2021
"City Welding Sales & Service Inc","Materials and Supplies","$ 358.50",07/15/2021
"City Welding Sales & Service Inc",Services,"$ 318.60",07/15/2021
"City Welding Sales & Service Inc","Materials and Supplies","$ 24.42",08/12/2021
"City Welding Sales & Service Inc",Services,"$ 65.99",08/12/2021
"City Welding Sales & Service Inc","Materials and Supplies","$ 262.90",10/13/2021
"City Welding Sales & Service Inc",Services,"$ 168.00",10/13/2021
"City Welding Sales & Service Inc","Materials and Supplies","$ 95.60",10/20/2021
"City Welding Sales & Service Inc","Materials and Supplies","$ 119.50",11/10/2021
"City Welding Sales & Service Inc",Services,"$ 317.20",11/10/2021
"City Welding Sales & Service Inc",Services,"$ 144.00",11/17/2021
"City Welding Sales & Service Inc","Materials and Supplies","$ 95.60",12/01/2021
"City Welding Sales & Service Inc","Materials and Supplies","$ 119.50",12/08/2021
"City of Aurora",Miscellaneous,"$ 4,022.13",03/25/2021
"City of Berwyn",Miscellaneous,"$ 1,058.46",03/25/2021
"City of Blue Island",Miscellaneous,"$ 3,175.37",03/25/2021
"City of Calumet City",Miscellaneous,"$ 3,598.75",03/25/2021
"City of Chicago",Miscellaneous,"$ 8,000.00",02/04/2021
"City of Chicago Heights",Services,"$ 80.06",01/21/2021
"City of Chicago Heights",Services,"$ 112.13",02/11/2021
"City of Chicago Heights",Services,"$ 110.39",03/11/2021
"City of Chicago Heights",Miscellaneous,"$ 4,233.82",03/25/2021
"City of Chicago Heights",Services,"$ 112.13",04/08/2021
"City of Chicago Heights",Services,"$ 144.21",05/13/2021
"City of Chicago Heights",Services,"$ 122.83",06/17/2021
"City of Chicago Heights",Services,"$ 136.43",07/01/2021
"City of Chicago Heights",Services,"$ 133.52",07/29/2021
"City of Chicago Heights",Services,"$ 123.62",09/16/2021
"City of Chicago Heights",Services,"$ 134.39",10/07/2021
"City of Chicago Heights",Services,"$ 156.44",11/11/2021
"City of Chicago Heights",Services,"$ 147.70",12/02/2021
"City of Country Club Hills",Miscellaneous,"$ 423.38",03/25/2021
"City of Crest Hill",Miscellaneous,"$ 846.76",03/25/2021
"City of Des Plaines",Utilities,"$ 7,276.11",02/18/2021
"City of Des Plaines",Utilities,"$ 3,658.28",02/25/2021
"City of Des Plaines",Utilities,"$ 3,960.53",03/25/2021
"City of Des Plaines",Utilities,"$ 3,686.23",04/22/2021
"City of Des Plaines",Utilities,"$ 5,368.34",05/27/2021
"City of Des Plaines",Services,"$ 100.00",06/17/2021
"City of Des Plaines",Utilities,"$ 5,041.51",06/25/2021
"City of Des Plaines",Utilities,"$ 4,927.18",07/22/2021
"City of Des Plaines",Utilities,"$ 4,335.40",09/16/2021
"City of Des Plaines",Utilities,"$ 4,947.26",09/23/2021
"City of Des Plaines",Utilities,"$ 10,348.93",11/24/2021
"City of Elgin",Services,"$ 83.73",01/14/2021
"City of Elgin",Utilities,"$ 2,579.27",01/21/2021
"City of Elgin",Utilities,"$ 101.09",01/28/2021
"City of Elgin",Services,"$ 100.04",02/11/2021
"City of Elgin",Utilities,"$ 126.15",02/11/2021
"City of Elgin",Utilities,"$ 2,325.16",02/25/2021
"City of Elgin",Utilities,"$ 50.70",03/11/2021
"City of Elgin",Utilities,"$ 3,108.21",03/25/2021
"City of Elgin",Services,"$ 86.72",04/08/2021
"City of Elgin",Utilities,"$ 113.27",04/08/2021
"City of Elgin",Utilities,"$ 2,540.76",04/22/2021
"City of Elgin",Services,"$ 336.90",05/13/2021
"City of Elgin",Utilities,"$ 2,388.27",05/20/2021
"City of Elgin",Services,"$ 9.86",06/10/2021
"City of Elgin",Utilities,"$ 1,883.43",06/25/2021
"City of Elgin",Services,"$ 124.59",07/15/2021
"City of Elgin",Utilities,"$ 2,241.30",07/22/2021
"City of Elgin",Services,"$ 661.92",08/12/2021
"City of Elgin",Utilities,"$ 1,951.89",08/26/2021
"City of Elgin",Services,"$ 134.45",09/16/2021
"City of Elgin",Utilities,"$ 2,395.41",09/23/2021
"City of Elgin",Services,"$ 125.40",10/07/2021
"City of Elgin",Services,"$ 206.42",10/21/2021
"City of Elgin",Utilities,"$ 2,231.52",10/21/2021
"City of Elgin",Services,"$ 225.71",11/11/2021
"City of Elgin",Utilities,"$ 2,177.59",11/18/2021
"City of Elgin",Services,"$ 92.17",12/09/2021
"City of Elgin",Services,"$ 128.61",12/16/2021
"City of Elgin",Utilities,"$ 2,331.71",12/22/2021
"City of Evanston",Utilities,"$ 4,415.52",01/28/2021
"City of Evanston",Utilities,"$ 4,099.48",03/19/2021
"City of Evanston",Utilities,"$ 2,130.16",05/20/2021
"City of Evanston",Utilities,"$ 4,462.28",07/22/2021
"City of Evanston","Building/Bldg Improvement","$ 41,535.85",09/23/2021
"City of Evanston",Utilities,"$ 2,594.38",09/23/2021
"City of Evanston",Utilities,"$ 2,375.02",11/18/2021
"City of Harvard",Miscellaneous,"$ 211.69",03/25/2021
"City of Harvey",Miscellaneous,"$ 4,445.52",03/25/2021
"City of Highland Park","Purchased Transportation","$ 85,096.53",01/21/2021
"City of Highland Park","Purchased Transportation","$ 81,449.32",02/11/2021
"City of Highland Park","Fuel/Parts Inventory","$ 1,790.67",03/11/2021
"City of Highland Park","Purchased Transportation","$ 86,729.69",03/11/2021
"City of Highland Park","Purchased Transportation","$ 117,005.96",04/08/2021
"City of Highland Park","Purchased Transportation","$ 71,604.51",05/06/2021
"City of Highland Park","Purchased Transportation","$ 52,825.06",06/03/2021
"City of Highland Park","Purchased Transportation","$ 139,466.26",07/08/2021
"City of Highland Park","Purchased Transportation","$ 126,044.17",08/12/2021
"City of Highland Park","Purchased Transportation","$ 178,294.62",09/09/2021
"City of Highland Park","Purchased Transportation","$ 171,755.65",10/07/2021
"City of Highland Park","Purchased Transportation","$ 12,654.93",12/02/2021
"City of Hometown",Miscellaneous,"$ 211.69",03/25/2021
"City of Joliet",Miscellaneous,"$ 2,540.29",03/25/2021
"City of Joliet","Building/Bldg Improvement","$ 456,475.58",06/11/2021
"City of Joliet","Building/Bldg Improvement","$ 359,555.81",06/24/2021
"City of Joliet",Utilities,"$ 88.38",08/12/2021
"City of Joliet","Building/Bldg Improvement","$ 1,285,433.10",08/19/2021
"City of Joliet","Building/Bldg Improvement","$ 689,332.50",09/03/2021
"City of Joliet",Utilities,"$ 1,335.47",09/16/2021
"City of Joliet",Utilities,"$ 1,307.53",10/07/2021
"City of Joliet","Building/Bldg Improvement","$ 598,808.70",10/14/2021
"City of Joliet",Utilities,"$ 1,361.23",11/11/2021
"City of Joliet","Building/Bldg Improvement","$ 1,981,888.23",12/01/2021
"City of Joliet",Utilities,"$ 1,396.06",12/09/2021
"City of Lockport",Miscellaneous,"$ 846.76",03/25/2021
"City of Markham",Utilities,"$ 1,372.84",01/07/2021
"City of Markham",Utilities,"$ 1,841.52",01/28/2021
"City of Markham",Utilities,"$ 1,882.52",02/25/2021
"City of Markham",Miscellaneous,"$ 2,540.29",03/25/2021
"City of Markham",Utilities,"$ 1,439.32",03/25/2021
"City of Markham",Utilities,"$ 1,583.36",04/22/2021
"City of Markham",Utilities,"$ 2,370.04",06/10/2021
"City of Markham",Utilities,"$ 1,428.24",06/25/2021
"City of Markham",Utilities,"$ 2,517.84",07/22/2021
"City of Markham",Utilities,"$ 1,339.60",08/26/2021
"City of Markham",Utilities,"$ 1,461.49",09/30/2021
"City of Markham",Utilities,"$ 1,428.25",10/28/2021
"City of Markham",Utilities,"$ 1,793.89",12/02/2021
"City of McHenry",Services,"$ 270.00",01/21/2021
"City of McHenry",Services,"$ 270.00",02/04/2021
"City of McHenry",Miscellaneous,"$ 423.38",03/25/2021
"City of McHenry",Services,"$ 270.00",04/08/2021
"City of McHenry",Services,"$ 270.00",07/15/2021
"City of McHenry",Services,"$ 270.00",12/28/2021
"City of North Chicago",Miscellaneous,"$ 1,693.53",03/25/2021
"City of Oak Forest",Miscellaneous,"$ 1,905.22",03/25/2021
"City of Palos Hills","Purchased Transportation","$ 1,232.50",07/08/2021
"City of Palos Hills","Purchased Transportation","$ 612.00",08/12/2021
"City of Palos Hills","Purchased Transportation","$ 603.00",09/09/2021
"City of Palos Hills","Purchased Transportation","$ 618.00",10/07/2021
"City of Palos Hills","Purchased Transportation","$ 840.00",11/04/2021
"City of Palos Hills","Purchased Transportation","$ 630.00",12/02/2021
"City of Park City",Miscellaneous,"$ 423.38",03/25/2021
"City of Park Ridge",Equipment,"$ 500.00",01/28/2021
"City of Rolling Meadows",Miscellaneous,"$ 2,328.60",03/25/2021
"City of Waukegan",Utilities,"$ 111.80",01/14/2021
"City of Waukegan",Utilities,"$ 1,641.77",02/11/2021
"City of Waukegan",Utilities,"$ 163.06",03/01/2021
"City of Waukegan",Utilities,"$ 2,002.83",03/04/2021
"City of Waukegan",Miscellaneous,"$ 5,080.59",03/25/2021
"City of Waukegan",Utilities,"$ 1,613.67",04/01/2021
"City of Waukegan",Utilities,"$ 1,754.67",04/29/2021
"City of Waukegan",Utilities,"$ 1,338.23",06/10/2021
"City of Waukegan",Utilities,"$ 1,127.93",07/01/2021
"City of Waukegan",Utilities,"$ 720.85",08/05/2021
"City of Waukegan",Utilities,"$ 3,655.69",09/30/2021
"City of Waukegan",Utilities,"$ 1,809.31",11/24/2021
"City of Waukegan",Utilities,"$ 1,561.69",12/09/2021
"City of Woodstock",Miscellaneous,"$ 1,058.46",03/25/2021
Claims,Claims,"$ 237.00",01/04/2021
Claims,Claims,"$ 50,958.48",01/06/2021
Claims,Claims,"$ 28,869.55",01/07/2021
Claims,Claims,"$ 2,575.25",01/13/2021
Claims,Claims,"$ 5,503.91",01/14/2021
Claims,Claims,"$ 15,852.64",01/20/2021
Claims,Claims,"$ 4,015.57",01/21/2021
Claims,Claims,"$ 56,902.70",01/27/2021
Claims,Claims,"$ 4,055.48",01/28/2021
Claims,Claims,"$ 345.58",02/01/2021
Claims,Claims,"$ 8,276.57",02/03/2021
Claims,Claims,"$ 2,081.00",02/04/2021
Claims,Claims,"$ 17,601.37",02/10/2021
Claims,Claims,"$ 21,516.81",02/11/2021
Claims,Claims,"$ 13,093.16",02/17/2021
Claims,Claims,"$ 17,869.32",02/18/2021
Claims,Claims,"$ 4,345.32",02/24/2021
Claims,Claims,"$ 11,970.59",02/25/2021
Claims,Claims,"$ 14,128.75",03/03/2021
Claims,Claims,"$ 68,165.11",03/04/2021
Claims,Claims,"$ -31.20",03/06/2020
Claims,Claims,"$ 16,341.64",03/10/2021
Claims,Claims,"$ 25,971.19",03/11/2021
Claims,Claims,"$ 39,745.15",03/17/2021
Claims,Claims,"$ 29,531.05",03/19/2021
Claims,Claims,"$ 2,332.65",03/25/2021
Claims,Claims,"$ 14,647.71",03/31/2021
Claims,Claims,"$ 90,284.50",04/01/2021
Claims,Claims,"$ 4,897.85",04/07/2021
Claims,Claims,"$ 76,298.13",04/08/2021
Claims,Claims,"$ 33,147.37",04/14/2021
Claims,Claims,"$ 14,304.17",04/15/2021
Claims,Claims,"$ 4,246.95",04/16/2021
Claims,Claims,"$ 16,255.16",04/21/2021
Claims,Claims,"$ 22,351.64",04/22/2021
Claims,Claims,"$ 109,380.24",04/28/2021
Claims,Claims,"$ 21,394.69",04/29/2021
Claims,Claims,"$ 580.80",05/03/2021
Claims,Claims,"$ 86,998.09",05/06/2021
Claims,Claims,"$ 62,565.19",05/12/2021
Claims,Claims,"$ 1,001,691.66",05/13/2021
Claims,Claims,"$ 7,819.76",05/19/2021
Claims,Claims,"$ 6,448.61",05/20/2021
Claims,Claims,"$ 21,935.93",05/26/2021
Claims,Claims,"$ 6,852.75",05/27/2021
Claims,Claims,"$ 7,734.00",06/02/2021
Claims,Claims,"$ 199.60",06/03/2021
Claims,Claims,"$ 63,236.60",06/04/2021
Claims,Claims,"$ 15,856.79",06/09/2021
Claims,Claims,"$ 4,281.59",06/16/2021
Claims,Claims,"$ 15,060.17",06/17/2021
Claims,Claims,"$ 767.00",06/18/2021
Claims,Claims,"$ 39,770.39",06/23/2021
Claims,Claims,"$ 13,162.10",06/25/2021
Claims,Claims,"$ 9,607.74",06/30/2021
Claims,Claims,"$ 3,556.00",07/01/2021
Claims,Claims,"$ 51,564.04",07/07/2021
Claims,Claims,"$ 351,288.60",07/08/2021
Claims,Claims,"$ 13,815.73",07/14/2021
Claims,Claims,"$ 22,017.00",07/15/2021
Claims,Claims,"$ 17,320.93",07/21/2021
Claims,Claims,"$ 10,075.00",07/22/2021
Claims,Claims,"$ 45,294.37",07/28/2021
Claims,Claims,"$ 20,542.19",08/04/2021
Claims,Claims,"$ 3,558.75",08/05/2021
Claims,Claims,"$ 17,309.61",08/12/2021
Claims,Claims,"$ 10,137.81",08/18/2021
Claims,Claims,"$ 14,755.80",08/19/2021
Claims,Claims,"$ 7,001.32",08/25/2021
Claims,Claims,"$ 4,048.00",08/26/2021
Claims,Claims,"$ 55,657.48",09/02/2021
Claims,Claims,"$ 4,304.87",09/08/2021
Claims,Claims,"$ 31,292.14",09/09/2021
Claims,Claims,"$ 3,432.64",09/14/2021
Claims,Claims,"$ 6,767.10",09/15/2021
Claims,Claims,"$ 14,583.30",09/16/2021
Claims,Claims,"$ 2,471.81",09/22/2021
Claims,Claims,"$ 13,539.82",09/23/2021
Claims,Claims,"$ 8,268.59",09/29/2021
Claims,Claims,"$ 10,223.00",09/30/2021
Claims,Claims,"$ 69,786.55",10/06/2021
Claims,Claims,"$ 1,417.51",10/07/2021
Claims,Claims,"$ 13,977.14",10/13/2021
Claims,Claims,"$ 28,069.79",10/14/2021
Claims,Claims,"$ 9,783.92",10/20/2021
Claims,Claims,"$ 7,561.25",10/21/2021
Claims,Claims,"$ 15,656.43",10/27/2021
Claims,Claims,"$ 2,707.42",10/28/2021
Claims,Claims,"$ 33,499.66",11/04/2021
Claims,Claims,"$ 55,618.06",11/10/2021
Claims,Claims,"$ 1,219.21",11/11/2021
Claims,Claims,"$ 13,872.14",11/17/2021
Claims,Claims,"$ 1,012.20",11/18/2021
Claims,Claims,"$ 39,295.16",11/24/2021
Claims,Claims,"$ 185,000.00",11/29/2021
Claims,Claims,"$ 785.27",12/01/2021
Claims,Claims,"$ 20,139.00",12/02/2021
Claims,Claims,"$ 53,050.77",12/08/2021
Claims,Claims,"$ 32,465.39",12/09/2021
Claims,Claims,"$ 29,177.33",12/15/2021
Claims,Claims,"$ 6,250.80",12/16/2021
Claims,Claims,"$ 55,046.52",12/22/2021
Claims,Claims,"$ 6,506.98",12/28/2021
Claims,Claims,"$ 3,561.00",12/29/2021
Claims,Claims,"$ 24,118.45",12/30/2021
"Clarity Partners LLC",Services,"$ 5,150.43",01/06/2021
"Clarity Partners LLC",Services,"$ 2,308.35",02/03/2021
"Clarity Partners LLC",Services,"$ 1,873.22",03/17/2021
"Clarity Partners LLC",Services,"$ 2,681.04",04/07/2021
"Clarity Partners LLC",Services,"$ 1,956.61",05/12/2021
"Clarity Partners LLC",Services,"$ 1,669.82",06/30/2021
"Clarity Partners LLC",Services,"$ 3,735.82",07/14/2021
"Clarity Partners LLC",Services,"$ 1,644.43",08/18/2021
"Clarity Partners LLC",Services,"$ 492.70",09/15/2021
"Clarity Partners LLC",Services,"$ 480.00",10/20/2021
"Clarity Partners LLC",Services,"$ 5,094.94",11/17/2021
"Clarke Aquatic Services Inc",Services,"$ 838.40",05/12/2021
"Clarke Aquatic Services Inc",Services,"$ 838.40",07/15/2021
"Clarke Aquatic Services Inc",Services,"$ 838.40",08/25/2021
"Clarke Aquatic Services Inc",Services,"$ 838.40",09/08/2021
"Clarke Aquatic Services Inc",Services,"$ 838.40",09/29/2021
"Cleaning Specialist Inc","Materials and Supplies","$ 1,052.00",09/02/2021
"Cleaning Specialist Inc","Materials and Supplies","$ 2,190.00",11/03/2021
"Clear Height Properties Lively LLC","Leases and Rentals","$ 14,420.00",03/03/2021
"Clear Height Properties Lively LLC","Leases and Rentals","$ 7,210.00",05/26/2021
"Clear Height Properties Lively LLC","Leases and Rentals","$ 7,210.00",06/09/2021
"Clear Height Properties Lively LLC","Leases and Rentals","$ 14,420.00",07/21/2021
"Clear Height Properties Lively LLC","Leases and Rentals","$ 7,210.00",09/02/2021
"Clear Height Properties Lively LLC","Leases and Rentals","$ 7,210.00",10/06/2021
"Clear Height Properties Lively LLC","Leases and Rentals","$ 14,420.00",10/13/2021
"Coffman Truck Sales Inc","Fuel/Parts Inventory","$ 4,206.21",01/06/2021
"Coffman Truck Sales Inc","Materials and Supplies","$ -3,730.00",01/06/2021
"Coffman Truck Sales Inc",Services,"$ 43.00",01/06/2021
"Coffman Truck Sales Inc","Fuel/Parts Inventory","$ 868.04",01/27/2021
"Coffman Truck Sales Inc","Fuel/Parts Inventory","$ 1,128.20",02/03/2021
"Coffman Truck Sales Inc","Fuel/Parts Inventory","$ 7,351.05",02/10/2021
"Coffman Truck Sales Inc","Fuel/Parts Inventory","$ 39,552.51",02/24/2021
"Coffman Truck Sales Inc","Materials and Supplies","$ -200.00",02/24/2021
"Coffman Truck Sales Inc",Services,"$ 279.00",02/24/2021
"Coffman Truck Sales Inc",Services,"$ 86.00",03/03/2021
"Coffman Truck Sales Inc","Fuel/Parts Inventory","$ 13,123.11",03/24/2021
"Coffman Truck Sales Inc","Fuel/Parts Inventory","$ 28,722.68",03/31/2021
"Coffman Truck Sales Inc",Services,"$ 86.00",03/31/2021
"Coffman Truck Sales Inc","Fuel/Parts Inventory","$ 20,826.20",04/07/2021
"Coffman Truck Sales Inc","Fuel/Parts Inventory","$ 39,463.69",04/15/2021
"Coffman Truck Sales Inc",Miscellaneous,"$ -.60",04/15/2021
"Coffman Truck Sales Inc","Fuel/Parts Inventory","$ 306.02",04/21/2021
"Coffman Truck Sales Inc","Materials and Supplies","$ 34.03",04/21/2021
"Coffman Truck Sales Inc","Fuel/Parts Inventory","$ 5,794.02",04/28/2021
"Coffman Truck Sales Inc","Fuel/Parts Inventory","$ 47,980.34",05/05/2021
"Coffman Truck Sales Inc","Materials and Supplies","$ -62.00",05/05/2021
"Coffman Truck Sales Inc",Services,"$ 344.00",05/05/2021
"Coffman Truck Sales Inc","Fuel/Parts Inventory","$ 3,666.13",05/12/2021
"Coffman Truck Sales Inc","Materials and Supplies","$ 35.00",05/12/2021
"Coffman Truck Sales Inc","Fuel/Parts Inventory","$ 13,437.98",05/19/2021
"Coffman Truck Sales Inc",Services,"$ 43.00",05/19/2021
"Coffman Truck Sales Inc","Fuel/Parts Inventory","$ 1,730.00",06/02/2021
"Coffman Truck Sales Inc","Materials and Supplies","$ 100.00",06/02/2021
"Coffman Truck Sales Inc","Fuel/Parts Inventory","$ 13,819.14",06/09/2021
"Coffman Truck Sales Inc",Services,"$ 301.00",06/09/2021
"Coffman Truck Sales Inc","Fuel/Parts Inventory","$ 1,301.44",06/16/2021
"Coffman Truck Sales Inc","Materials and Supplies","$ 105.00",06/16/2021
"Coffman Truck Sales Inc","Fuel/Parts Inventory","$ 13,597.05",07/01/2021
"Coffman Truck Sales Inc","Materials and Supplies","$ -500.00",07/01/2021
"Coffman Truck Sales Inc",Services,"$ 43.00",07/01/2021
"Coffman Truck Sales Inc","Fuel/Parts Inventory","$ 7,685.60",07/07/2021
"Coffman Truck Sales Inc","Fuel/Parts Inventory","$ 10,936.62",07/14/2021
"Coffman Truck Sales Inc","Fuel/Parts Inventory","$ 19,119.63",07/21/2021
"Coffman Truck Sales Inc",Services,"$ 107.50",07/21/2021
"Coffman Truck Sales Inc","Fuel/Parts Inventory","$ 26,534.22",07/28/2021
"Coffman Truck Sales Inc","Fuel/Parts Inventory","$ 26,978.25",08/04/2021
"Coffman Truck Sales Inc","Materials and Supplies","$ 51.84",08/04/2021
"Coffman Truck Sales Inc",Services,"$ 129.00",08/04/2021
"Coffman Truck Sales Inc","Fuel/Parts Inventory","$ 10,259.98",08/11/2021
"Coffman Truck Sales Inc","Fuel/Parts Inventory","$ 15,736.20",08/18/2021
"Coffman Truck Sales Inc","Materials and Supplies","$ -73.00",08/18/2021
"Coffman Truck Sales Inc",Services,"$ 43.00",08/18/2021
"Coffman Truck Sales Inc","Fuel/Parts Inventory","$ 8,605.81",08/25/2021
"Coffman Truck Sales Inc","Materials and Supplies","$ -250.00",08/25/2021
"Coffman Truck Sales Inc",Services,"$ 21.50",09/02/2021
"Coffman Truck Sales Inc","Fuel/Parts Inventory","$ 22,579.98",09/08/2021
"Coffman Truck Sales Inc","Fuel/Parts Inventory","$ 989.68",09/15/2021
"Coffman Truck Sales Inc","Fuel/Parts Inventory","$ 161.38",09/21/2021
"Coffman Truck Sales Inc","Fuel/Parts Inventory","$ 45,843.05",09/29/2021
"Coffman Truck Sales Inc","Fuel/Parts Inventory","$ 11,300.79",10/06/2021
"Coffman Truck Sales Inc","Materials and Supplies","$ 146.16",10/06/2021
"Coffman Truck Sales Inc","Fuel/Parts Inventory","$ 29,878.94",10/13/2021
"Coffman Truck Sales Inc","Materials and Supplies","$ 53.66",10/13/2021
"Coffman Truck Sales Inc","Fuel/Parts Inventory","$ 23,436.23",10/20/2021
"Coffman Truck Sales Inc","Fuel/Parts Inventory","$ 12,940.61",10/27/2021
"Coffman Truck Sales Inc","Fuel/Parts Inventory","$ 29,645.52",11/03/2021
"Coffman Truck Sales Inc","Fuel/Parts Inventory","$ 8,470.19",11/10/2021
"Coffman Truck Sales Inc","Fuel/Parts Inventory","$ 17,772.70",11/17/2021
"Coffman Truck Sales Inc","Fuel/Parts Inventory","$ 13,544.42",11/23/2021
"Coffman Truck Sales Inc","Fuel/Parts Inventory","$ 33,368.36",12/01/2021
"Coffman Truck Sales Inc","Fuel/Parts Inventory","$ 9,436.81",12/08/2021
"Coffman Truck Sales Inc",Services,"$ 280.00",12/08/2021
"Coffman Truck Sales Inc","Fuel/Parts Inventory","$ 1,465.16",12/21/2021
"Coffman Truck Sales Inc","Fuel/Parts Inventory","$ 27,293.15",12/29/2021
"Coffman Truck Sales Inc",Services,"$ 321.50",12/29/2021
"Colley Elevator Co",Services,"$ 635.00",02/10/2021
"Colley Elevator Co",Services,"$ 158.00",02/24/2021
"Colley Elevator Co",Services,"$ 310.00",03/10/2021
"Colley Elevator Co",Services,"$ 1,031.00",03/17/2021
"Colley Elevator Co",Services,"$ 158.00",03/24/2021
"Colley Elevator Co",Services,"$ 155.00",04/07/2021
"Colley Elevator Co",Services,"$ 155.00",05/26/2021
"Colley Elevator Co",Services,"$ 158.00",06/02/2021
"Colley Elevator Co",Services,"$ 934.00",06/09/2021
"Colley Elevator Co",Services,"$ 781.50",06/16/2021
"Colley Elevator Co",Services,"$ 158.00",06/23/2021
"Colley Elevator Co",Services,"$ 407.00",07/21/2021
"Colley Elevator Co",Services,"$ 155.00",08/04/2021
"Colley Elevator Co",Services,"$ 686.00",08/11/2021
"Colley Elevator Co",Services,"$ 169.00",09/08/2021
"Colley Elevator Co",Services,"$ 324.00",09/21/2021
"Colley Elevator Co",Services,"$ 313.00",10/13/2021
"Colley Elevator Co",Services,"$ 605.00",11/10/2021
"Colley Elevator Co",Services,"$ 483.00",12/21/2021
"Combined Sales Company","Materials and Supplies","$ 421.90",02/24/2021
"Combined Sales Company","Materials and Supplies","$ 564.00",03/10/2021
"Combined Sales Company","Materials and Supplies","$ 1,035.00",08/04/2021
"Combined Sales Company","Materials and Supplies","$ 1,797.25",10/13/2021
Comcast,Services,"$ 501.36",01/07/2021
Comcast,Utilities,"$ 1,183.21",01/07/2021
Comcast,Services,"$ 605.70",01/12/2021
Comcast,Services,"$ 839.41",01/20/2021
Comcast,Services,"$ 1,063.53",01/21/2021
Comcast,Utilities,"$ 404.39",01/28/2021
Comcast,Services,"$ 1,163.80",02/04/2021
Comcast,Services,"$ 108.64",02/11/2021
Comcast,Services,"$ 2,288.23",02/25/2021
Comcast,Services,"$ 217.85",03/04/2021
Comcast,Services,"$ 1,752.28",03/19/2021
Comcast,Services,"$ 278.19",03/25/2021
Comcast,Utilities,"$ 392.58",03/25/2021
Comcast,Services,"$ 217.85",04/08/2021
Comcast,Utilities,"$ 410.33",04/08/2021
Comcast,Services,"$ 832.40",04/15/2021
Comcast,Services,"$ 919.66",04/22/2021
Comcast,Utilities,"$ 400.21",04/29/2021
Comcast,Services,"$ 496.22",05/06/2021
Comcast,Services,"$ 1,988.91",05/27/2021
Comcast,Services,"$ 287.27",06/03/2021
Comcast,Services,"$ 271.62",06/10/2021
Comcast,Services,"$ 1,247.73",06/17/2021
Comcast,Utilities,"$ 788.12",06/17/2021
Comcast,Services,"$ 602.55",06/25/2021
Comcast,Services,"$ 218.04",07/01/2021
Comcast,Services,"$ 1,760.47",07/15/2021
Comcast,Services,"$ 278.20",07/29/2021
Comcast,Services,"$ 216.84",08/05/2021
Comcast,Services,"$ 1,016.15",08/12/2021
Comcast,Services,"$ 1,813.99",08/26/2021
Comcast,Services,"$ 216.84",09/02/2021
Comcast,Services,"$ 59.23",09/09/2021
Comcast,Services,"$ 1,014.03",09/16/2021
Comcast,Utilities,"$ 395.40",09/23/2021
Comcast,Services,"$ 967.15",09/30/2021
Comcast,Services,"$ 216.84",10/07/2021
Comcast,Services,"$ 1,604.90",10/14/2021
Comcast,Utilities,"$ 130.64",10/14/2021
Comcast,Services,"$ 59.23",10/21/2021
Comcast,Services,"$ 278.20",10/28/2021
Comcast,Utilities,"$ 388.63",10/28/2021
Comcast,Services,"$ 216.70",11/04/2021
Comcast,Services,"$ 59.23",11/11/2021
Comcast,Services,"$ 1,705.54",11/24/2021
Comcast,Utilities,"$ 388.63",11/24/2021
Comcast,Services,"$ 278.20",12/02/2021
Comcast,Services,"$ 1,046.01",12/09/2021
Comcast,Services,"$ 985.46",12/16/2021
Comcast,Services,"$ 288.20",12/22/2021
Comcast,Services,"$ 232.98",12/28/2021
Comcast,Utilities,"$ 388.63",12/28/2021
"Commercial Electronic Systems Inc",Services,"$ 565.00",01/07/2021
"Commercial Electronic Systems Inc",Services,"$ 2,378.79",12/16/2021
"Commercial Tire Services Inc","Materials and Supplies","$ 2,454.68",01/14/2021
"Commercial Tire Services Inc","Materials and Supplies","$ -2,454.68",12/03/2020
"Commercial Tire Services Inc","Materials and Supplies","$ 493.00",12/15/2021
"Commonwealth Edison",Utilities,"$ 20,012.30",01/07/2021
"Commonwealth Edison",Services,"$ 2,493.23",01/14/2021
"Commonwealth Edison",Utilities,"$ 36,960.33",01/14/2021
"Commonwealth Edison",Services,"$ 238.03",01/21/2021
"Commonwealth Edison",Utilities,"$ 17,655.41",01/21/2021
"Commonwealth Edison",Services,"$ 11,246.83",01/28/2021
"Commonwealth Edison",Utilities,"$ 50,843.57",01/28/2021
"Commonwealth Edison",Services,"$ 4,743.02",02/04/2021
"Commonwealth Edison",Utilities,"$ 25,464.91",02/04/2021
"Commonwealth Edison",Services,"$ 1,620.81",02/11/2021
"Commonwealth Edison",Utilities,"$ 6,644.74",02/11/2021
"Commonwealth Edison",Services,"$ 804.34",02/18/2021
"Commonwealth Edison",Utilities,"$ 27,815.10",02/18/2021
"Commonwealth Edison",Services,"$ 9,454.04",02/25/2021
"Commonwealth Edison",Utilities,"$ 33,261.30",02/25/2021
"Commonwealth Edison",Services,"$ 3,078.56",03/04/2021
"Commonwealth Edison",Utilities,"$ 25,122.16",03/04/2021
"Commonwealth Edison",Services,"$ 6,780.22",03/11/2021
"Commonwealth Edison",Utilities,"$ 2,829.96",03/11/2021
"Commonwealth Edison",Services,"$ 5,922.65",03/19/2021
"Commonwealth Edison",Utilities,"$ 28,839.74",03/19/2021
"Commonwealth Edison",Services,"$ 3,817.76",03/25/2021
"Commonwealth Edison",Utilities,"$ 42,271.02",03/25/2021
"Commonwealth Edison",Services,"$ 2,347.91",04/01/2021
"Commonwealth Edison",Utilities,"$ 6,600.99",04/01/2021
"Commonwealth Edison",Services,"$ 5,236.73",04/08/2021
"Commonwealth Edison",Utilities,"$ 15,742.50",04/08/2021
"Commonwealth Edison",Services,"$ 22,831.47",04/15/2021
"Commonwealth Edison",Utilities,"$ 99,978.18",04/15/2021
"Commonwealth Edison",Services,"$ 442.73",04/22/2021
"Commonwealth Edison",Utilities,"$ 14,363.90",04/22/2021
"Commonwealth Edison",Services,"$ 10,684.46",04/29/2021
"Commonwealth Edison",Utilities,"$ 53,415.49",04/29/2021
"Commonwealth Edison",Services,"$ 633.27",05/06/2021
"Commonwealth Edison",Utilities,"$ 14,709.21",05/06/2021
"Commonwealth Edison",Services,"$ 2,631.58",05/13/2021
"Commonwealth Edison",Utilities,"$ 10,082.77",05/13/2021
"Commonwealth Edison",Services,"$ 417.13",05/20/2021
"Commonwealth Edison",Utilities,"$ 12,325.25",05/20/2021
"Commonwealth Edison",Services,"$ 3,913.90",05/27/2021
"Commonwealth Edison",Utilities,"$ 44,617.82",05/27/2021
"Commonwealth Edison",Services,"$ 450.27",06/10/2021
"Commonwealth Edison",Utilities,"$ 18,965.15",06/10/2021
"Commonwealth Edison",Services,"$ 6,174.21",06/17/2021
"Commonwealth Edison",Utilities,"$ 26,467.10",06/17/2021
"Commonwealth Edison",Services,"$ 5,683.63",06/25/2021
"Commonwealth Edison",Utilities,"$ 87,773.13",06/25/2021
"Commonwealth Edison",Services,"$ 71.52",07/01/2021
"Commonwealth Edison",Utilities,"$ 7,159.47",07/01/2021
"Commonwealth Edison",Services,"$ 2,625.28",07/08/2021
"Commonwealth Edison",Utilities,"$ 9,826.94",07/08/2021
"Commonwealth Edison",Services,"$ 199.63",07/15/2021
"Commonwealth Edison",Utilities,"$ 16,000.39",07/15/2021
"Commonwealth Edison",Services,"$ 149.17",07/22/2021
"Commonwealth Edison",Utilities,"$ 12,367.82",07/22/2021
"Commonwealth Edison",Services,"$ 2,243.31",07/29/2021
"Commonwealth Edison",Utilities,"$ 57,378.67",07/29/2021
"Commonwealth Edison",Services,"$ 4,293.90",08/05/2021
"Commonwealth Edison",Utilities,"$ 16,214.40",08/05/2021
"Commonwealth Edison",Services,"$ 333.33",08/12/2021
"Commonwealth Edison",Utilities,"$ 28,664.40",08/12/2021
"Commonwealth Edison",Services,"$ 1,432.98",08/19/2021
"Commonwealth Edison",Utilities,"$ 45,870.99",08/19/2021
"Commonwealth Edison",Services,"$ 3,140.16",08/26/2021
"Commonwealth Edison",Utilities,"$ 41,960.43",08/26/2021
"Commonwealth Edison",Services,"$ 438.22",09/02/2021
"Commonwealth Edison",Utilities,"$ 6,496.22",09/02/2021
"Commonwealth Edison",Equipment,"$ 49,827.02",09/09/2021
"Commonwealth Edison",Utilities,"$ 5,648.45",09/09/2021
"Commonwealth Edison",Services,"$ 35.42",09/16/2021
"Commonwealth Edison",Utilities,"$ 1,173.35",09/16/2021
"Commonwealth Edison",Services,"$ 2,721.42",09/23/2021
"Commonwealth Edison",Utilities,"$ 55,194.22",09/23/2021
"Commonwealth Edison",Services,"$ 6,870.11",09/30/2021
"Commonwealth Edison",Utilities,"$ 42,450.73",09/30/2021
"Commonwealth Edison",Services,"$ 460.41",10/07/2021
"Commonwealth Edison",Utilities,"$ 26,636.07",10/07/2021
"Commonwealth Edison",Utilities,"$ 892.33",10/14/2021
"Commonwealth Edison",Services,"$ 36.19",10/21/2021
"Commonwealth Edison",Utilities,"$ 16,883.61",10/21/2021
"Commonwealth Edison",Services,"$ 5,754.49",10/28/2021
"Commonwealth Edison",Utilities,"$ 92,695.23",10/28/2021
"Commonwealth Edison",Services,"$ 2,431.30",11/04/2021
"Commonwealth Edison",Utilities,"$ 27,582.75",11/04/2021
"Commonwealth Edison",Utilities,"$ 9,723.47",11/11/2021
"Commonwealth Edison",Services,"$ 2,968.09",11/18/2021
"Commonwealth Edison",Utilities,"$ 71,421.80",11/18/2021
"Commonwealth Edison",Services,"$ 4,745.37",11/24/2021
"Commonwealth Edison",Utilities,"$ 39,972.16",11/24/2021
"Commonwealth Edison",Services,"$ 1,964.87",12/02/2021
"Commonwealth Edison",Utilities,"$ 5,186.00",12/02/2021
"Commonwealth Edison",Services,"$ 1,691.17",12/09/2021
"Commonwealth Edison",Utilities,"$ 18,097.13",12/09/2021
"Commonwealth Edison",Services,"$ 4,928.11",12/16/2021
"Commonwealth Edison",Utilities,"$ 65,703.17",12/16/2021
"Commonwealth Edison",Services,"$ 98.40",12/22/2021
"Commonwealth Edison",Utilities,"$ 49.97",12/22/2021
"Commonwealth Edison",Services,"$ 6,683.84",12/28/2021
"Commonwealth Edison",Utilities,"$ 30,941.69",12/28/2021
"Complete Landscaping LLC",Services,"$ 7,070.00",02/18/2021
"Complete Landscaping LLC",Services,"$ 4,000.00",04/29/2021
"Complete Landscaping LLC",Services,"$ 1,790.00",06/17/2021
"Complete Landscaping LLC",Services,"$ 1,790.00",07/22/2021
"Complete Landscaping LLC",Services,"$ 1,790.00",08/12/2021
"Complete Landscaping LLC",Services,"$ 1,790.00",09/02/2021
"Complex Network Solutions Inc",Services,"$ 567.00",10/21/2021
"Computer Aid Inc",Services,"$ 114,468.60",01/07/2021
"Computer Aid Inc",Services,"$ 228,937.20",01/20/2021
"Computer Aid Inc",Services,"$ 228,937.20",04/08/2021
"Computer Aid Inc",Services,"$ 334,738.80",06/11/2021
"Computer Aid Inc",Services,"$ 116,988.80",07/07/2021
"Computer Aid Inc",Services,"$ 116,988.80",07/21/2021
"Computer Aid Inc",Services,"$ 116,988.80",08/26/2021
"Computer Aid Inc",Services,"$ 116,988.80",09/21/2021
"Computer Aid Inc",Services,"$ 116,988.80",11/04/2021
"Computer Aid Inc",Services,"$ 116,988.80",11/18/2021
"Computer Aid Inc",Services,"$ 116,988.80",11/24/2021
"Computer Sciences Corporation",Services,"$ 6,270.00",01/27/2021
"Computer Sciences Corporation",Services,"$ 7,676.38",08/25/2021
"Computer Sciences Corporation",Services,"$ 1,443.75",11/03/2021
"Computer Sciences Corporation",Services,"$ 26,319.00",12/21/2021
"Concentra Medical Center",Services,"$ 191.00",01/20/2021
"Concentra Medical Center",Services,"$ 595.00",02/18/2021
"Concentra Medical Center",Services,"$ 119.00",03/17/2021
"Concentra Medical Center",Services,"$ 238.00",03/24/2021
"Concentra Medical Center",Services,"$ 476.00",07/07/2021
"Concentra Medical Center",Services,"$ 119.00",07/14/2021
"Concentra Medical Center",Services,"$ 238.00",07/21/2021
"Concentra Medical Center",Services,"$ 476.00",08/11/2021
"Concentra Medical Center",Services,"$ 119.00",09/02/2021
"Concentra Medical Center",Services,"$ 119.00",09/08/2021
"Concentra Medical Center",Services,"$ 595.00",10/13/2021
"Concentra Medical Center",Services,"$ 476.00",12/01/2021
"Concentra Medical Centers  Occupational",Services,"$ 388.50",01/06/2021
"Concentra Medical Centers  Occupational",Services,"$ 89.20",01/13/2021
"Concentra Medical Centers  Occupational",Services,"$ 1,066.00",01/20/2021
"Concentra Medical Centers  Occupational",Services,"$ 436.25",01/27/2021
"Concentra Medical Centers  Occupational",Services,"$ 116.24",02/10/2021
"Concentra Medical Centers  Occupational",Services,"$ 476.00",02/18/2021
"Concentra Medical Centers  Occupational",Services,"$ 207.61",03/03/2021
"Concentra Medical Centers  Occupational",Services,"$ 625.62",03/17/2021
"Concentra Medical Centers  Occupational",Services,"$ 5,179.01",03/31/2021
"Concentra Medical Centers  Occupational",Services,"$ 6,356.95",04/07/2021
"Concentra Medical Centers  Occupational",Services,"$ 1,098.01",04/21/2021
"Concentra Medical Centers  Occupational",Services,"$ 2,432.76",04/28/2021
"Concentra Medical Centers  Occupational",Services,"$ 46.77",05/05/2021
"Concentra Medical Centers  Occupational",Services,"$ 321.68",05/26/2021
"Concentra Medical Centers  Occupational",Services,"$ 239.65",06/02/2021
"Concentra Medical Centers  Occupational",Services,"$ 3,608.57",06/09/2021
"Concentra Medical Centers  Occupational",Services,"$ 395.79",06/23/2021
"Concentra Medical Centers  Occupational",Services,"$ 720.77",07/07/2021
"Concentra Medical Centers  Occupational",Services,"$ 4,374.15",07/14/2021
"Concentra Medical Centers  Occupational",Services,"$ 148.07",07/21/2021
"Concentra Medical Centers  Occupational",Services,"$ 325.46",07/28/2021
"Concentra Medical Centers  Occupational",Services,"$ 2,792.26",08/11/2021
"Concentra Medical Centers  Occupational",Services,"$ 403.85",08/18/2021
"Concentra Medical Centers  Occupational",Services,"$ 540.76",09/02/2021
"Concentra Medical Centers  Occupational",Services,"$ 3,616.25",09/08/2021
"Concentra Medical Centers  Occupational",Services,"$ 114.07",09/15/2021
"Concentra Medical Centers  Occupational",Services,"$ 1,076.49",09/21/2021
"Concentra Medical Centers  Occupational",Services,"$ 319.52",09/29/2021
"Concentra Medical Centers  Occupational",Services,"$ 1,300.28",10/13/2021
"Concentra Medical Centers  Occupational",Services,"$ 1,156.25",10/20/2021
"Concentra Medical Centers  Occupational",Services,"$ 44.60",10/27/2021
"Concentra Medical Centers  Occupational",Services,"$ 2,526.48",11/03/2021
"Concentra Medical Centers  Occupational",Services,"$ 142.05",11/23/2021
"Concentra Medical Centers  Occupational",Services,"$ 357.00",12/01/2021
"Concentra Medical Centers  Occupational",Services,"$ 2,433.53",12/15/2021
"Concentra Medical Centers  Occupational",Services,"$ 347.83",12/21/2021
"Contech MSI Co",Services,"$ 267.00",03/11/2021
"Contech MSI Co",Services,"$ 267.00",05/27/2021
"Continental Resources Inc",Services,"$ 15,163.00",05/19/2021
"Continental Resources Inc",Services,"$ 262.00",12/01/2021
"Cook County Clerk",Equipment,"$ 196.00",11/18/2021
"Cook County Treasurer",Taxes,"$ 29,785.72",02/11/2021
"Cook DuPage Transportation Co",Miscellaneous,"$ -2,208.60",01/05/2021
"Cook DuPage Transportation Co","Purchased Transportation","$ 641,038.90",01/05/2021
"Cook DuPage Transportation Co",Miscellaneous,"$ -9,813.65",02/09/2021
"Cook DuPage Transportation Co","Purchased Transportation","$ 3,642,065.53",02/09/2021
"Cook DuPage Transportation Co",Miscellaneous,"$ -8,002.72",02/25/2021
"Cook DuPage Transportation Co","Purchased Transportation","$ 2,965,787.98",02/25/2021
"Cook DuPage Transportation Co",Miscellaneous,"$ -2,238.30",03/17/2021
"Cook DuPage Transportation Co","Purchased Transportation","$ 660,465.33",03/17/2021
"Cook DuPage Transportation Co",Miscellaneous,"$ -9,823.65",04/07/2021
"Cook DuPage Transportation Co","Purchased Transportation","$ 3,430,989.40",04/07/2021
"Cook DuPage Transportation Co",Miscellaneous,"$ -10,166.86",05/05/2021
"Cook DuPage Transportation Co","Purchased Transportation","$ 3,791,813.23",05/05/2021
"Cook DuPage Transportation Co",Miscellaneous,"$ -7,918.66",05/28/2021
"Cook DuPage Transportation Co","Purchased Transportation","$ 3,057,884.48",05/28/2021
"Cook DuPage Transportation Co",Miscellaneous,"$ -2,248.20",06/10/2021
"Cook DuPage Transportation Co","Purchased Transportation","$ 573,614.37",06/10/2021
"Cook DuPage Transportation Co",Equipment,"$ 10,049.81",06/17/2021
"Cook DuPage Transportation Co",Miscellaneous,"$ -7,918.66",06/24/2021
"Cook DuPage Transportation Co","Purchased Transportation","$ 2,977,392.41",06/24/2021
"Cook DuPage Transportation Co",Equipment,"$ 2,957.65",06/25/2021
"Cook DuPage Transportation Co",Miscellaneous,"$ -2,248.20",07/02/2021
"Cook DuPage Transportation Co","Purchased Transportation","$ 556,261.16",07/02/2021
"Cook DuPage Transportation Co",Equipment,"$ 4,693.60",07/08/2021
"Cook DuPage Transportation Co",Miscellaneous,"$ -7,890.13",08/03/2021
"Cook DuPage Transportation Co","Purchased Transportation","$ 2,987,975.93",08/03/2021
"Cook DuPage Transportation Co",Miscellaneous,"$ -2,240.10",08/06/2021
"Cook DuPage Transportation Co","Purchased Transportation","$ 549,583.83",08/06/2021
"Cook DuPage Transportation Co",Equipment,"$ 8,162.40",09/02/2021
"Cook DuPage Transportation Co",Miscellaneous,"$ -7,890.13",09/02/2021
"Cook DuPage Transportation Co","Purchased Transportation","$ 2,750,257.56",09/02/2021
"Cook DuPage Transportation Co",Miscellaneous,"$ -2,240.10",09/17/2021
"Cook DuPage Transportation Co","Purchased Transportation","$ 559,148.50",09/17/2021
"Cook DuPage Transportation Co",Miscellaneous,"$ -7,890.13",10/06/2021
"Cook DuPage Transportation Co","Purchased Transportation","$ 2,730,215.15",10/06/2021
"Cook DuPage Transportation Co",Equipment,"$ 9,045.60",10/21/2021
"Cook DuPage Transportation Co",Miscellaneous,"$ -2,240.10",10/22/2021
"Cook DuPage Transportation Co","Purchased Transportation","$ 521,259.36",10/22/2021
"Cook DuPage Transportation Co",Miscellaneous,"$ -7,829.90",11/04/2021
"Cook DuPage Transportation Co","Purchased Transportation","$ 2,642,625.10",11/04/2021
"Cook DuPage Transportation Co",Miscellaneous,"$ -2,850.20",11/15/2021
"Cook DuPage Transportation Co","Purchased Transportation","$ 497,193.11",11/15/2021
"Cook DuPage Transportation Co",Miscellaneous,"$ -7,804.54",12/13/2021
"Cook DuPage Transportation Co","Purchased Transportation","$ 2,741,637.40",12/13/2021
"Cook DuPage Transportation Co",Miscellaneous,"$ -2,658.80",12/22/2021
"Cook DuPage Transportation Co","Purchased Transportation","$ 504,772.65",12/22/2021
"Cook DuPage Transportation Co",Miscellaneous,"$ -7,810.88",12/30/2021
"Cook DuPage Transportation Co","Purchased Transportation","$ 2,686,131.13",12/30/2021
"Cosmopolitan Building Services Inc","Materials and Supplies","$ 5,151.00",02/24/2021
"Cosmopolitan Building Services Inc",Services,"$ 3,856.66",02/24/2021
"Cosmopolitan Building Services Inc","Materials and Supplies","$ 2,575.50",03/31/2021
"Cosmopolitan Building Services Inc",Services,"$ 1,928.33",03/31/2021
"Cosmopolitan Building Services Inc","Materials and Supplies","$ 2,575.50",04/28/2021
"Cosmopolitan Building Services Inc",Services,"$ 1,928.33",04/28/2021
"Cosmopolitan Building Services Inc","Materials and Supplies","$ 2,575.50",05/26/2021
"Cosmopolitan Building Services Inc",Services,"$ 1,928.33",05/26/2021
"Cosmopolitan Building Services Inc","Materials and Supplies","$ 2,575.50",07/15/2021
"Cosmopolitan Building Services Inc",Services,"$ 1,928.33",07/15/2021
"Cosmopolitan Building Services Inc","Materials and Supplies","$ 2,575.50",07/28/2021
"Cosmopolitan Building Services Inc",Services,"$ 1,928.33",07/28/2021
"Cosmopolitan Building Services Inc","Materials and Supplies","$ 2,575.50",09/02/2021
"Cosmopolitan Building Services Inc",Services,"$ 1,928.33",09/02/2021
"Cosmopolitan Building Services Inc","Materials and Supplies","$ 2,575.50",09/29/2021
"Cosmopolitan Building Services Inc",Services,"$ 1,928.33",09/29/2021
"Cosmopolitan Building Services Inc","Materials and Supplies","$ 2,575.50",11/03/2021
"Cosmopolitan Building Services Inc",Services,"$ 1,928.33",11/03/2021
"Cosmopolitan Building Services Inc","Materials and Supplies","$ 2,575.50",12/01/2021
"Cosmopolitan Building Services Inc",Services,"$ 1,928.33",12/01/2021
"Cosmopolitan Building Services Inc","Materials and Supplies","$ 2,575.50",12/29/2021
"Cosmopolitan Building Services Inc",Services,"$ 1,928.33",12/29/2021
"Crawford Murphy & Tilly Inc","Building/Bldg Improvement","$ 337,378.48",01/07/2021
"Crawford Murphy & Tilly Inc","Building/Bldg Improvement","$ 12,586.12",01/14/2021
"Crawford Murphy & Tilly Inc","Building/Bldg Improvement","$ 405,173.42",01/21/2021
"Crawford Murphy & Tilly Inc","Building/Bldg Improvement","$ 353,033.06",04/01/2021
"Crawford Murphy & Tilly Inc","Building/Bldg Improvement","$ 18,887.52",07/09/2021
"Crawford Murphy & Tilly Inc","Building/Bldg Improvement","$ 941.12",07/15/2021
"Crawford Murphy & Tilly Inc","Building/Bldg Improvement","$ 5,533.12",08/04/2021
"Crawford Murphy & Tilly Inc","Building/Bldg Improvement","$ 169,922.88",08/27/2021
"Crawford Murphy & Tilly Inc","Building/Bldg Improvement","$ 21,683.32",10/08/2021
"Crawford Murphy & Tilly Inc","Building/Bldg Improvement","$ 1,681.87",11/10/2021
"Crawford Murphy & Tilly Inc","Building/Bldg Improvement","$ 487,605.86",12/30/2021
"Crossline Supply LLC","Fuel/Parts Inventory","$ 444.00",10/14/2021
"Crossline Supply LLC","Fuel/Parts Inventory","$ 584.00",10/28/2021
"Crossline Supply LLC","Fuel/Parts Inventory","$ 867.60",11/23/2021
"Crossline Supply LLC","Fuel/Parts Inventory","$ 634.25",12/15/2021
"Crown Castle International Corp",Services,"$ 1,721.84",01/20/2021
"Crown Castle International Corp",Services,"$ 860.92",02/18/2021
"Crown Castle International Corp",Services,"$ 1,721.84",03/31/2021
"Crown Castle International Corp",Services,"$ 860.92",05/19/2021
"Crown Castle International Corp",Services,"$ 886.75",06/23/2021
"Crown Castle International Corp",Services,"$ 2,660.25",09/10/2021
"Crown Castle International Corp",Services,"$ 1,773.50",11/17/2021
"Crystal Car Wash Services LTD",Services,"$ 1,257.80",02/04/2021
"Crystal Car Wash Services LTD",Services,"$ 2,100.00",02/18/2021
"Crystal Car Wash Services LTD",Services,"$ 560.21",02/25/2021
"Crystal Car Wash Services LTD",Services,"$ 280.83",04/01/2021
"Crystal Car Wash Services LTD",Services,"$ 175.92",05/06/2021
"Crystal Car Wash Services LTD",Services,"$ 738.97",05/13/2021
"Crystal Car Wash Services LTD",Services,"$ 3,835.20",05/20/2021
"Crystal Car Wash Services LTD",Services,"$ 836.68",11/04/2021
"Crystal Maintenance Services Corp",Services,"$ 7,365.00",01/13/2021
"Crystal Maintenance Services Corp","Materials and Supplies","$ 3,900.00",02/10/2021
"Crystal Maintenance Services Corp",Services,"$ 7,365.00",02/10/2021
"Crystal Maintenance Services Corp","Materials and Supplies","$ 1,950.00",03/17/2021
"Crystal Maintenance Services Corp",Services,"$ 7,365.00",03/17/2021
"Crystal Maintenance Services Corp","Materials and Supplies","$ 1,950.00",04/28/2021
"Crystal Maintenance Services Corp",Services,"$ 7,365.00",04/28/2021
"Crystal Maintenance Services Corp","Materials and Supplies","$ 1,950.00",05/12/2021
"Crystal Maintenance Services Corp",Services,"$ 7,365.00",05/12/2021
"Crystal Maintenance Services Corp","Materials and Supplies","$ 1,950.00",06/23/2021
"Crystal Maintenance Services Corp",Services,"$ 7,365.00",06/23/2021
"Crystal Maintenance Services Corp","Materials and Supplies","$ 1,769.75",08/04/2021
"Crystal Maintenance Services Corp",Services,"$ 7,365.00",08/04/2021
"Crystal Maintenance Services Corp","Materials and Supplies","$ 1,950.00",08/11/2021
"Crystal Maintenance Services Corp",Services,"$ 7,365.00",08/11/2021
"Crystal Maintenance Services Corp","Materials and Supplies","$ 1,950.00",08/25/2021
"Crystal Maintenance Services Corp",Services,"$ 7,365.00",08/25/2021
"Crystal Maintenance Services Corp","Materials and Supplies","$ 1,573.00",09/15/2021
"Crystal Maintenance Services Corp",Services,"$ 7,365.00",09/15/2021
"Crystal Maintenance Services Corp","Materials and Supplies","$ 1,950.00",10/13/2021
"Crystal Maintenance Services Corp",Services,"$ 7,365.00",10/13/2021
"Crystal Maintenance Services Corp","Materials and Supplies","$ 1,950.00",11/23/2021
"Crystal Maintenance Services Corp",Services,"$ 7,365.00",11/23/2021
"Cubic Transportation Systems",Services,"$ 702,144.69",01/04/2021
"Cubic Transportation Systems",Services,"$ 16,704.63",01/14/2021
"Cubic Transportation Systems",Services,"$ 129,391.35",01/19/2021
"Cubic Transportation Systems",Services,"$ 4,469.86",02/10/2021
"Cubic Transportation Systems",Services,"$ 163,002.56",02/11/2021
"Cubic Transportation Systems",Services,"$ 3,564.00",03/10/2021
"Cubic Transportation Systems",Services,"$ 174,357.36",03/17/2021
"Cubic Transportation Systems",Services,"$ 3,564.00",03/24/2021
"Cubic Transportation Systems",Services,"$ 166,047.48",04/13/2021
"Cubic Transportation Systems",Services,"$ 7,706.55",04/27/2021
"Cubic Transportation Systems",Services,"$ 17,190.63",05/19/2021
"Cubic Transportation Systems",Services,"$ 6,278.21",06/08/2021
"Cubic Transportation Systems",Services,"$ 20,610.63",06/15/2021
"Cubic Transportation Systems",Services,"$ 1,595.01",06/22/2021
"Cubic Transportation Systems",Services,"$ 20,895.03",07/14/2021
"Cubic Transportation Systems",Services,"$ 8,319.81",07/27/2021
"Cubic Transportation Systems",Services,"$ 232,048.03",08/10/2021
"Cubic Transportation Systems",Services,"$ 17,514.63",08/24/2021
"Cubic Transportation Systems",Services,"$ 189,429.87",09/09/2021
"Cubic Transportation Systems",Services,"$ 10,326.17",09/15/2021
"Cubic Transportation Systems",Services,"$ 128,992.29",09/20/2021
"Cubic Transportation Systems",Services,"$ 21,368.71",09/28/2021
"Cubic Transportation Systems",Services,"$ 17,190.63",10/12/2021
"Cubic Transportation Systems",Services,"$ 140,343.92",10/26/2021
"Cubic Transportation Systems",Services,"$ 18,000.63",11/16/2021
"Cubic Transportation Systems",Equipment,"$ 23,483.41",11/30/2021
"Cubic Transportation Systems",Services,"$ 6,691.08",11/30/2021
"Cubic Transportation Systems",Services,"$ 17,352.63",12/20/2021
"Cubic Transportation Systems",Services,"$ 12,136.31",12/28/2021
"Cumberland Service Center",Services,"$ 2,300.00",05/19/2021
"Cumberland Service Center",Services,"$ 460.00",09/29/2021
"Cumberland Service Center",Services,"$ 2,300.00",12/15/2021
"Cummins Sales and Service",Services,"$ 9,882.79",01/20/2021
"Cummins Sales and Service","Materials and Supplies","$ -366.24",02/03/2021
"Cummins Sales and Service",Services,"$ 25,914.08",02/03/2021
"Cummins Sales and Service","Fuel/Parts Inventory","$ 9,696.99",02/10/2021
"Cummins Sales and Service","Materials and Supplies","$ 366.24",02/10/2021
"Cummins Sales and Service",Services,"$ 36,283.86",02/10/2021
"Cummins Sales and Service",Services,"$ 43,319.72",03/17/2021
"Cummins Sales and Service",Equipment,"$ 26,756.94",03/25/2021
"Cummins Sales and Service",Services,"$ 2,835.99",04/07/2021
"Cummins Sales and Service",Services,"$ 9,179.82",05/12/2021
"Cummins Sales and Service",Services,"$ 7,238.45",05/19/2021
"Cummins Sales and Service",Services,"$ 12,039.85",05/26/2021
"Cummins Sales and Service",Services,"$ 13,863.10",06/09/2021
"Cummins Sales and Service",Services,"$ 3,043.04",06/16/2021
"Cummins Sales and Service","Materials and Supplies","$ -2,940.00",07/07/2021
"Cummins Sales and Service",Services,"$ 4,632.72",07/07/2021
"Cummins Sales and Service",Services,"$ 22,243.69",07/14/2021
"Cummins Sales and Service",Services,"$ 37,745.92",08/04/2021
"Cummins Sales and Service",Services,"$ 20,962.51",08/18/2021
"Cummins Sales and Service",Services,"$ 29,401.67",08/25/2021
"Cummins Sales and Service",Services,"$ 421.05",09/08/2021
"Cummins Sales and Service",Services,"$ 30,198.51",09/30/2021
"Cummins Sales and Service","Materials and Supplies","$ 201.91",10/06/2021
"Cummins Sales and Service",Services,"$ 5,047.65",10/06/2021
"Cummins Sales and Service",Services,"$ 10,359.57",10/13/2021
"Cummins Sales and Service",Services,"$ 10,495.88",11/10/2021
"Cummins Sales and Service",Services,"$ 18,639.44",11/23/2021
"D & K Truck Safety Lane",Services,"$ 40.00",01/20/2021
"D & K Truck Safety Lane",Services,"$ 900.00",01/27/2021
"D & K Truck Safety Lane",Services,"$ 1,710.00",02/24/2021
"D & K Truck Safety Lane",Services,"$ 690.00",03/24/2021
"D & K Truck Safety Lane",Services,"$ 870.00",04/21/2021
"D & K Truck Safety Lane",Services,"$ 780.00",05/19/2021
"D & K Truck Safety Lane",Services,"$ 660.00",06/16/2021
"D & K Truck Safety Lane",Services,"$ 190.00",06/30/2021
"D & K Truck Safety Lane",Services,"$ 780.00",07/14/2021
"D & K Truck Safety Lane",Services,"$ 660.00",08/18/2021
"D & K Truck Safety Lane",Services,"$ 660.00",09/15/2021
"D & K Truck Safety Lane",Services,"$ 825.00",11/10/2021
"D & K Truck Safety Lane",Services,"$ 957.00",11/18/2021
"D & K Truck Safety Lane",Services,"$ 726.00",12/15/2021
"DT Taxi Express Inc","Purchased Transportation","$ 1,735.75",12/29/2021
"Dartco Transmission Sales and Service Inc",Services,"$ 5,200.00",09/29/2021
"Dartco Transmission Sales and Service Inc",Services,"$ 8,800.00",11/23/2021
"Data-Tec Systems Inc",Services,"$ 673.00",01/13/2021
"Data-Tec Systems Inc",Services,"$ 589.00",05/05/2021
"Data-Tec Systems Inc",Services,"$ 673.00",07/28/2021
"Data-Tec Systems Inc",Services,"$ 336.00",12/01/2021
"Dataskill Inc",Services,"$ 37,255.44",01/21/2021
"Delfs Garage",Services,"$ 798.50",04/08/2021
"Delfs Garage",Services,"$ 211.50",04/14/2021
"Delfs Garage",Services,"$ 188.00",05/05/2021
"Delfs Garage",Services,"$ 680.50",06/16/2021
"Delfs Garage",Services,"$ 23.50",07/14/2021
"Delfs Garage",Services,"$ 188.00",08/18/2021
"Delfs Garage",Services,"$ 188.00",09/21/2021
"Delfs Garage",Services,"$ 164.50",10/20/2021
"Delfs Garage",Services,"$ 258.50",12/01/2021
"Dell Marketing LP",Services,"$ 505,052.01",02/18/2021
"Delta Sonic Car Wash",Services,"$ 242.50",01/21/2021
"Delta Sonic Car Wash",Services,"$ 257.50",02/18/2021
"Delta Sonic Car Wash",Services,"$ 1,050.00",02/25/2021
"Delta Sonic Car Wash",Services,"$ 135.00",03/11/2021
"Delta Sonic Car Wash",Services,"$ 45.00",04/01/2021
"Delta Sonic Car Wash",Services,"$ 667.50",04/15/2021
"Delta Sonic Car Wash",Services,"$ 210.00",05/13/2021
"Delta Sonic Car Wash",Services,"$ 47.50",05/20/2021
"Delta Sonic Car Wash",Services,"$ 217.50",06/10/2021
"Delta Sonic Car Wash",Services,"$ 429.00",07/15/2021
"Delta Sonic Car Wash",Services,"$ 234.50",08/12/2021
"Delta Sonic Car Wash",Miscellaneous,"$ 62.00",08/26/2021
"Delta Sonic Car Wash",Services,"$ 110.00",08/26/2021
"Delta Sonic Car Wash",Services,"$ 120.00",09/02/2021
"Delta Sonic Car Wash",Services,"$ 204.50",09/16/2021
"Delta Sonic Car Wash",Services,"$ 440.00",10/07/2021
"Delta Sonic Car Wash",Services,"$ 162.50",10/14/2021
"Delta Sonic Car Wash",Services,"$ 20.00",11/04/2021
"Delta Sonic Car Wash",Services,"$ 357.00",11/18/2021
"DemandTrans Solutions Inc",Services,"$ 4,000.00",01/27/2021
"DemandTrans Solutions Inc",Services,"$ 4,000.00",03/03/2021
"DemandTrans Solutions Inc",Services,"$ 4,000.00",03/31/2021
"DemandTrans Solutions Inc",Services,"$ 4,000.00",04/28/2021
"DemandTrans Solutions Inc",Services,"$ 8,000.00",06/23/2021
"DemandTrans Solutions Inc",Services,"$ 4,000.00",08/25/2021
"DemandTrans Solutions Inc",Services,"$ 4,000.00",09/29/2021
"DemandTrans Solutions Inc",Services,"$ 4,000.00",10/13/2021
"DemandTrans Solutions Inc",Services,"$ 4,000.00",10/27/2021
"DemandTrans Solutions Inc",Services,"$ 4,000.00",11/23/2021
"DemandTrans Solutions Inc",Services,"$ 4,000.00",12/21/2021
"Dependable Fire Equipment",Miscellaneous,"$ 245.00",07/22/2021
"Dependable Fire Equipment",Miscellaneous,"$ 213.00",11/18/2021
"Diesel Emissions Service","Fuel/Parts Inventory","$ 3,575.00",06/17/2021
"Diesel Emissions Service","Fuel/Parts Inventory","$ 2,925.00",07/01/2021
"Diesel Emissions Service","Fuel/Parts Inventory","$ 5,061.60",10/07/2021
"Doors Done Right Inc",Services,"$ 10,660.00",01/06/2021
"Drive Construction Inc","Building/Bldg Improvement","$ 103,618.48",01/28/2021
"Drive Construction Inc","Building/Bldg Improvement","$ 13,524.02",05/19/2021
"Drive Construction Inc","Building/Bldg Improvement","$ 117,273.81",06/24/2021
"Drive Construction Inc","Building/Bldg Improvement","$ 82,728.45",09/23/2021
"Drive Construction Inc","Building/Bldg Improvement","$ 269,705.87",11/18/2021
"Drive Construction Inc","Building/Bldg Improvement","$ 146,831.18",12/30/2021
"Duff & Phelps LLC","Casualty and Liability","$ 2,450.00",01/06/2021
"Duff & Phelps LLC","Casualty and Liability","$ 1,500.00",12/21/2021
"Dundee Ford","Materials and Supplies","$ 450.06",01/21/2021
"Dundee Ford","Materials and Supplies","$ 260.57",02/11/2021
"Dundee Ford","Materials and Supplies","$ 190.70",02/25/2021
"Dundee Ford","Materials and Supplies","$ 5.21",03/04/2021
"Dundee Ford","Materials and Supplies","$ 204.67",06/03/2021
"Dundee Ford","Materials and Supplies","$ 1,806.94",06/25/2021
"Dundee Ford","Materials and Supplies","$ 81.62",07/01/2021
"Dundee Ford","Materials and Supplies","$ 36.14",07/22/2021
"Dundee Ford","Materials and Supplies","$ 200.72",08/19/2021
"Dundee Ford","Materials and Supplies","$ 78.20",08/26/2021
"Dundee Ford","Materials and Supplies","$ 435.13",09/16/2021
"Dundee Ford","Materials and Supplies","$ 56.20",11/04/2021
"Dundee Ford","Materials and Supplies","$ 265.12",12/16/2021
"E vergent.com LLC",Services,"$ 1,910.00",01/21/2021
"E vergent.com LLC",Services,"$ 1,910.00",02/11/2021
"E vergent.com LLC",Services,"$ 1,910.00",03/11/2021
"E vergent.com LLC",Services,"$ 1,910.00",04/15/2021
"E vergent.com LLC",Services,"$ 1,910.00",05/13/2021
"E vergent.com LLC",Services,"$ 1,910.00",06/25/2021
"E vergent.com LLC",Services,"$ 1,910.00",07/29/2021
"E vergent.com LLC",Services,"$ 1,910.00",08/19/2021
"E vergent.com LLC",Services,"$ 1,910.00",09/16/2021
"E vergent.com LLC",Services,"$ 1,910.00",10/21/2021
"E vergent.com LLC",Services,"$ 1,910.00",11/18/2021
"EDCO Skokie LLC",Equipment,"$ 8,400.00",10/21/2021
"ERC Delivery Service Inc",Miscellaneous,"$ 96.00",03/11/2021
"ERC Delivery Service Inc",Miscellaneous,"$ 48.00",03/17/2021
"ERC Delivery Service Inc",Miscellaneous,"$ 48.00",04/08/2021
"ERC Delivery Service Inc",Miscellaneous,"$ 48.00",05/05/2021
"ERC Delivery Service Inc",Miscellaneous,"$ 112.00",07/22/2021
"ERC Delivery Service Inc",Miscellaneous,"$ 176.00",09/29/2021
"ERC Delivery Service Inc",Miscellaneous,"$ 64.00",11/10/2021
"ERC Delivery Service Inc",Miscellaneous,"$ 64.00",12/08/2021
"ESRI Inc",Services,"$ 26,000.00",08/18/2021
"Eco Lighting Services and Technology LLC",Services,"$ 1,482.00",01/13/2021
"Eco Lighting Services and Technology LLC",Services,"$ 1,268.29",01/27/2021
"Eco Lighting Services and Technology LLC",Services,"$ 1,857.23",02/03/2021
"Eco Lighting Services and Technology LLC",Services,"$ 4,328.33",02/10/2021
"Eco Lighting Services and Technology LLC",Services,"$ 639.50",02/17/2021
"Eco Lighting Services and Technology LLC",Services,"$ 1,482.00",03/03/2021
"Eco Lighting Services and Technology LLC",Services,"$ 379.48",03/10/2021
"Eco Lighting Services and Technology LLC",Services,"$ 4,919.53",03/24/2021
"Eco Lighting Services and Technology LLC",Services,"$ 1,443.30",04/08/2021
"Eco Lighting Services and Technology LLC",Services,"$ 1,530.10",04/28/2021
"Eco Lighting Services and Technology LLC",Services,"$ 2,598.53",05/05/2021
"Eco Lighting Services and Technology LLC",Services,"$ 1,530.10",05/19/2021
"Eco Lighting Services and Technology LLC",Services,"$ 1,804.10",05/26/2021
"Eco Lighting Services and Technology LLC",Services,"$ 2,388.85",06/23/2021
"Eco Lighting Services and Technology LLC",Services,"$ 533.39",07/14/2021
"Eco Lighting Services and Technology LLC",Services,"$ 2,675.00",07/28/2021
"Eco Lighting Services and Technology LLC",Services,"$ 909.32",08/04/2021
"Eco Lighting Services and Technology LLC",Services,"$ 2,389.43",08/25/2021
"Eco Lighting Services and Technology LLC",Services,"$ 3,302.82",09/15/2021
"Eco Lighting Services and Technology LLC",Services,"$ 3,181.05",10/13/2021
"Eco Lighting Services and Technology LLC",Services,"$ 246.90",11/10/2021
"Eco Lighting Services and Technology LLC",Services,"$ 2,345.83",11/23/2021
"Eco Lighting Services and Technology LLC",Services,"$ 1,378.00",12/15/2021
"Edwards Engineering Inc",Services,"$ 1,209.01",01/20/2021
"Edwards Engineering Inc",Services,"$ 1,902.00",02/03/2021
"Edwards Engineering Inc",Services,"$ 6,824.00",02/17/2021
"Edwards Engineering Inc",Services,"$ 3,635.14",03/10/2021
"Edwards Engineering Inc",Services,"$ 1,842.08",03/17/2021
"Edwards Engineering Inc",Services,"$ 2,272.00",04/08/2021
"Edwards Engineering Inc",Services,"$ 2,845.00",04/28/2021
"Edwards Engineering Inc",Services,"$ 4,823.00",06/09/2021
"Edwards Engineering Inc",Services,"$ 4,785.75",07/21/2021
"Edwards Engineering Inc",Services,"$ 9,030.00",08/11/2021
"Edwards Engineering Inc",Services,"$ 601.97",09/08/2021
"Edwards Engineering Inc",Services,"$ 1,182.00",09/29/2021
"Edwards Engineering Inc",Services,"$ 1,736.00",12/01/2021
"Edwards Engineering Inc",Services,"$ 3,916.00",12/21/2021
"ElDorado National (California) Inc","Fuel/Parts Inventory","$ 28,236.92",01/06/2021
"ElDorado National (California) Inc","Fuel/Parts Inventory","$ 41,780.75",01/13/2021
"ElDorado National (California) Inc","Fuel/Parts Inventory","$ 2,641.17",01/21/2021
"ElDorado National (California) Inc",Vehicle,"$ 4,890,970.00",01/21/2021
"ElDorado National (California) Inc",Services,"$ 7,050.00",01/27/2021
"ElDorado National (California) Inc","Fuel/Parts Inventory","$ 62,582.65",02/04/2021
"ElDorado National (California) Inc","Fuel/Parts Inventory","$ 74,785.98",02/11/2021
"ElDorado National (California) Inc","Fuel/Parts Inventory","$ 39,915.86",02/17/2021
"ElDorado National (California) Inc","Fuel/Parts Inventory","$ 27,188.97",02/24/2021
"ElDorado National (California) Inc","Fuel/Parts Inventory","$ 98,511.68",03/04/2021
"ElDorado National (California) Inc","Fuel/Parts Inventory","$ 11,699.27",03/10/2021
"ElDorado National (California) Inc","Fuel/Parts Inventory","$ 72,461.47",03/18/2021
"ElDorado National (California) Inc","Fuel/Parts Inventory","$ 99,530.04",03/24/2021
"ElDorado National (California) Inc","Fuel/Parts Inventory","$ 45,995.49",03/31/2021
"ElDorado National (California) Inc",Vehicle,"$ 489,097.00",04/01/2021
"ElDorado National (California) Inc","Fuel/Parts Inventory","$ 20,643.02",04/08/2021
"ElDorado National (California) Inc","Fuel/Parts Inventory","$ 2,813.17",04/15/2021
"ElDorado National (California) Inc","Materials and Supplies","$ 538,261.32",04/15/2021
"ElDorado National (California) Inc","Fuel/Parts Inventory","$ 50,463.44",04/21/2021
"ElDorado National (California) Inc","Materials and Supplies","$ -3.26",04/21/2021
"ElDorado National (California) Inc","Fuel/Parts Inventory","$ 23,767.02",04/29/2021
"ElDorado National (California) Inc","Fuel/Parts Inventory","$ 70,173.39",05/05/2021
"ElDorado National (California) Inc",Equipment,"$ 538,261.32",05/07/2021
"ElDorado National (California) Inc","Fuel/Parts Inventory","$ 18,965.25",05/07/2021
"ElDorado National (California) Inc","Materials and Supplies","$ -538,261.32",05/07/2021
"ElDorado National (California) Inc","Fuel/Parts Inventory","$ 23,433.00",05/12/2021
"ElDorado National (California) Inc","Fuel/Parts Inventory","$ 23,589.22",05/19/2021
"ElDorado National (California) Inc","Materials and Supplies","$ -.14",05/19/2021
"ElDorado National (California) Inc","Fuel/Parts Inventory","$ 55,583.08",05/27/2021
"ElDorado National (California) Inc","Fuel/Parts Inventory","$ 49,148.59",06/02/2021
"ElDorado National (California) Inc","Materials and Supplies","$ -.26",06/02/2021
"ElDorado National (California) Inc","Fuel/Parts Inventory","$ 3,914.99",06/09/2021
"ElDorado National (California) Inc",Equipment,"$ 186,526.20",06/18/2021
"ElDorado National (California) Inc",Equipment,"$ 282,453.96",06/23/2021
"ElDorado National (California) Inc",Equipment,"$ 559,578.60",06/24/2021
"ElDorado National (California) Inc","Fuel/Parts Inventory","$ 32,809.54",06/24/2021
"ElDorado National (California) Inc","Fuel/Parts Inventory","$ 25,268.05",07/07/2021
"ElDorado National (California) Inc",Equipment,"$ 143,891.64",07/09/2021
"ElDorado National (California) Inc","Fuel/Parts Inventory","$ 32,987.80",07/21/2021
"ElDorado National (California) Inc","Materials and Supplies","$ -1,152.00",07/21/2021
"ElDorado National (California) Inc",Equipment,"$ 437,004.24",07/30/2021
"ElDorado National (California) Inc","Fuel/Parts Inventory","$ 23,208.93",08/04/2021
"ElDorado National (California) Inc","Materials and Supplies","$ -10,722.23",08/04/2021
"ElDorado National (California) Inc",Equipment,"$ 111,915.72",08/11/2021
"ElDorado National (California) Inc","Fuel/Parts Inventory","$ 4,290.19",08/11/2021
"ElDorado National (California) Inc","Materials and Supplies","$ -2,421.79",08/11/2021
"ElDorado National (California) Inc","Fuel/Parts Inventory","$ 139,854.30",08/18/2021
"ElDorado National (California) Inc","Materials and Supplies","$ 1,308.50",08/18/2021
"ElDorado National (California) Inc","Fuel/Parts Inventory","$ 74,495.18",08/26/2021
"ElDorado National (California) Inc","Fuel/Parts Inventory","$ 63,898.23",09/02/2021
"ElDorado National (California) Inc",Equipment,"$ 5,329.32",09/03/2021
"ElDorado National (California) Inc","Fuel/Parts Inventory","$ 29,115.53",09/08/2021
"ElDorado National (California) Inc","Fuel/Parts Inventory","$ 29,388.47",09/15/2021
"ElDorado National (California) Inc","Materials and Supplies","$ -.36",09/15/2021
"ElDorado National (California) Inc","Fuel/Parts Inventory","$ 5,910.11",09/21/2021
"ElDorado National (California) Inc","Fuel/Parts Inventory","$ 12,055.18",09/30/2021
"ElDorado National (California) Inc","Fuel/Parts Inventory","$ 28,988.91",10/06/2021
"ElDorado National (California) Inc","Fuel/Parts Inventory","$ 22,490.44",10/13/2021
"ElDorado National (California) Inc","Fuel/Parts Inventory","$ 11,131.02",10/20/2021
"ElDorado National (California) Inc","Fuel/Parts Inventory","$ 46,475.83",10/27/2021
"ElDorado National (California) Inc","Fuel/Parts Inventory","$ 22,981.44",11/03/2021
"ElDorado National (California) Inc","Fuel/Parts Inventory","$ 13,322.60",11/10/2021
"ElDorado National (California) Inc","Materials and Supplies","$ 1,152.00",11/10/2021
"ElDorado National (California) Inc","Fuel/Parts Inventory","$ 11,596.46",11/17/2021
"ElDorado National (California) Inc","Fuel/Parts Inventory","$ 31,229.95",11/23/2021
"ElDorado National (California) Inc","Fuel/Parts Inventory","$ 1,576.89",12/01/2021
"ElDorado National (California) Inc","Fuel/Parts Inventory","$ 113,684.30",12/09/2021
"ElDorado National (California) Inc","Fuel/Parts Inventory","$ 20,382.97",12/15/2021
"ElDorado National (California) Inc","Fuel/Parts Inventory","$ 25,458.24",12/21/2021
"ElDorado National (California) Inc","Fuel/Parts Inventory","$ 29,914.11",12/29/2021
Employee,"Employee - Expense Reimbursement","$ 125.00",01/08/2021
Employee,"Employee - Expense Reimbursement","$ 4,202.69",01/15/2021
Employee,"Employee - Expense Reimbursement","$ 401.84",01/22/2021
Employee,"Employee - Expense Reimbursement","$ 5,442.60",01/29/2021
Employee,"Employee - Expense Reimbursement","$ 1,514.02",02/12/2021
Employee,"Employee - Expense Reimbursement","$ 1,699.87",02/19/2021
Employee,"Employee - Expense Reimbursement","$ 1,004.50",02/26/2021
Employee,"Employee - Expense Reimbursement","$ 2,259.37",03/12/2021
Employee,"Employee - Expense Reimbursement","$ 817.75",03/19/2021
Employee,"Employee - Expense Reimbursement","$ 413.37",03/26/2021
Employee,"Employee - Expense Reimbursement","$ 1,274.08",04/09/2021
Employee,"Employee - Expense Reimbursement","$ 650.00",04/16/2021
Employee,"Employee - Expense Reimbursement","$ 2,842.05",04/23/2021
Employee,"Employee - Expense Reimbursement","$ 360.00",04/30/2021
Employee,"Employee - Expense Reimbursement","$ 958.62",05/07/2021
Employee,"Employee - Expense Reimbursement","$ 1,257.60",05/21/2021
Employee,"Employee - Expense Reimbursement","$ 778.02",05/28/2021
Employee,"Employee - Expense Reimbursement","$ 336.49",06/04/2021
Employee,"Employee - Expense Reimbursement","$ 1,512.57",06/18/2021
Employee,"Employee - Expense Reimbursement","$ 1,180.65",07/02/2021
Employee,"Employee - Expense Reimbursement","$ 1,154.99",07/16/2021
Employee,"Employee - Expense Reimbursement","$ 523.40",07/30/2021
Employee,"Employee - Expense Reimbursement","$ 1,112.70",08/13/2021
Employee,"Employee - Expense Reimbursement","$ 1,993.12",08/27/2021
Employee,"Employee - Expense Reimbursement","$ 1,339.03",09/10/2021
Employee,"Employee - Expense Reimbursement","$ 473.28",09/24/2021
Employee,"Employee - Expense Reimbursement","$ 125.00",10/01/2021
Employee,"Employee - Expense Reimbursement","$ 3,626.12",10/08/2021
Employee,"Employee - Expense Reimbursement","$ 2,200.00",10/14/2021
Employee,"Employee - Expense Reimbursement","$ 1,544.76",10/22/2021
Employee,"Employee - Expense Reimbursement","$ 915.00",10/29/2021
Employee,"Employee - Expense Reimbursement","$ 500.00",11/04/2021
Employee,"Employee - Expense Reimbursement","$ 1,994.04",11/05/2021
Employee,"Employee - Expense Reimbursement","$ 125.00",11/12/2021
Employee,"Employee - Expense Reimbursement","$ 847.35",11/19/2021
Employee,"Employee - Expense Reimbursement","$ 1,314.99",11/26/2021
Employee,"Employee - Expense Reimbursement","$ 11,206.99",12/03/2021
Employee,"Employee - Expense Reimbursement","$ 1,443.34",12/10/2021
Employee,"Employee - Expense Reimbursement","$ 7,074.01",12/17/2021
Employee,"Employee - Expense Reimbursement","$ 250.00",12/24/2021
Employee,"Employee - Expense Reimbursement","$ 2,868.68",12/30/2021
"Endeavor Business Media LLC",Miscellaneous,"$ 150.00",10/07/2021
"Endeavor Business Media LLC",Miscellaneous,"$ 150.00",11/11/2021
"Energy Intelligence Group Inc",Miscellaneous,"$ 7,160.00",02/11/2021
"Engineering Systems Inc",Services,"$ 22,032.11",01/25/2021
"Equity Industrial Supply","Materials and Supplies","$ 1,378.27",02/03/2021
"Equity Industrial Supply","Materials and Supplies","$ 4,727.83",02/17/2021
"Equity Industrial Supply","Materials and Supplies","$ 2,463.42",03/31/2021
"Equity Industrial Supply","Materials and Supplies","$ 1,045.46",04/21/2021
"Equity Industrial Supply","Materials and Supplies","$ 395.20",05/26/2021
"Equity Industrial Supply","Materials and Supplies","$ 2,350.43",06/09/2021
"Equity Industrial Supply","Materials and Supplies","$ 1,026.58",06/30/2021
"Equity Industrial Supply","Materials and Supplies","$ 1,877.20",07/21/2021
"Equity Industrial Supply","Materials and Supplies","$ 2,376.95",08/04/2021
"Equity Industrial Supply","Materials and Supplies","$ 1,287.39",09/29/2021
"Equity Industrial Supply","Materials and Supplies","$ 189.00",10/13/2021
"Equity Industrial Supply","Materials and Supplies","$ 6,168.92",10/27/2021
"Equity Industrial Supply","Materials and Supplies","$ 985.39",11/23/2021
"Equity Industrial Supply","Materials and Supplies","$ 2,726.51",12/15/2021
Everlights,Services,"$ 143.76",01/28/2021
Everlights,Services,"$ 359.07",04/15/2021
Everlights,Services,"$ 136.70",06/17/2021
Everlights,Services,"$ 2,371.60",11/04/2021
"Evoque Data Center Solutions","Leases and Rentals","$ 11,851.10",01/27/2021
"Evoque Data Center Solutions","Leases and Rentals","$ 11,851.10",02/18/2021
"Evoque Data Center Solutions","Leases and Rentals","$ 11,851.10",03/03/2021
"Evoque Data Center Solutions","Leases and Rentals","$ 11,851.10",03/10/2021
"Evoque Data Center Solutions","Leases and Rentals","$ 11,851.10",04/08/2021
"Evoque Data Center Solutions","Leases and Rentals","$ 11,851.10",04/28/2021
"Evoque Data Center Solutions","Leases and Rentals","$ 11,851.10",06/16/2021
"Evoque Data Center Solutions","Leases and Rentals","$ 11,851.10",07/07/2021
"Evoque Data Center Solutions","Leases and Rentals","$ 11,851.10",08/04/2021
"Evoque Data Center Solutions","Leases and Rentals","$ 11,851.10",09/29/2021
"Evoque Data Center Solutions","Leases and Rentals","$ 11,851.10",10/20/2021
"Evoque Data Center Solutions","Leases and Rentals","$ 11,851.10",10/27/2021
"Evoque Data Center Solutions","Leases and Rentals","$ 237,022.00",11/03/2021
"ExamWorks Compliance Solutions LLC",Services,"$ 600.00",01/06/2021
"ExamWorks Compliance Solutions LLC",Services,"$ 600.00",02/03/2021
"ExamWorks Compliance Solutions LLC",Services,"$ 600.00",03/03/2021
"ExamWorks Compliance Solutions LLC",Services,"$ 600.00",03/31/2021
"ExamWorks Compliance Solutions LLC",Services,"$ 600.00",05/05/2021
"ExamWorks Compliance Solutions LLC",Services,"$ 600.00",05/26/2021
"ExamWorks Compliance Solutions LLC",Services,"$ 600.00",06/23/2021
"ExamWorks Compliance Solutions LLC",Services,"$ 600.00",07/28/2021
"ExamWorks Compliance Solutions LLC",Services,"$ 600.00",09/02/2021
"ExamWorks Compliance Solutions LLC",Services,"$ 600.00",10/06/2021
"ExamWorks Compliance Solutions LLC",Services,"$ 600.00",11/03/2021
"ExamWorks Compliance Solutions LLC",Services,"$ 600.00",12/01/2021
"ExamWorks Compliance Solutions LLC",Services,"$ 600.00",12/29/2021
Fastenal,"Materials and Supplies","$ 156.22",05/12/2021
Fastenal,"Materials and Supplies","$ 336.31",05/19/2021
Fastenal,"Materials and Supplies","$ 268.33",11/10/2021
"FedResults Inc",Miscellaneous,"$ 2,365.84",02/03/2021
"FedResults Inc",Miscellaneous,"$ 2,365.84",02/17/2021
"FedResults Inc",Miscellaneous,"$ 4,731.68",03/03/2021
"FedResults Inc",Miscellaneous,"$ 2,365.84",03/17/2021
"FedResults Inc",Miscellaneous,"$ 4,731.68",04/21/2021
"FedResults Inc",Miscellaneous,"$ 2,365.84",05/19/2021
"FedResults Inc",Miscellaneous,"$ 2,365.84",07/28/2021
"FedResults Inc",Miscellaneous,"$ 4,873.64",08/25/2021
"FedResults Inc",Miscellaneous,"$ 2,436.82",09/15/2021
"FedResults Inc",Miscellaneous,"$ 2,436.82",10/27/2021
"FedResults Inc",Miscellaneous,"$ 2,436.82",11/17/2021
"Ferrellgas LP","Materials and Supplies","$ 64.00",01/06/2021
"Ferrellgas LP","Materials and Supplies","$ 106.60",01/27/2021
"Ferrellgas LP","Materials and Supplies","$ 438.00",02/03/2021
"Ferrellgas LP","Materials and Supplies","$ 295.80",02/10/2021
"Ferrellgas LP","Materials and Supplies","$ 369.60",02/17/2021
"Ferrellgas LP","Materials and Supplies","$ 190.40",03/03/2021
"Ferrellgas LP","Materials and Supplies","$ 374.40",03/31/2021
"Ferrellgas LP","Materials and Supplies","$ 451.74",04/21/2021
"Ferrellgas LP","Materials and Supplies","$ 80.00",05/05/2021
"Ferrellgas LP","Materials and Supplies","$ 251.43",05/19/2021
"Ferrellgas LP","Materials and Supplies","$ 177.15",06/09/2021
"Ferrellgas LP","Materials and Supplies","$ 439.37",06/23/2021
"Ferrellgas LP","Materials and Supplies","$ 415.58",07/28/2021
"Ferrellgas LP","Materials and Supplies","$ 72.00",08/04/2021
"Ferrellgas LP","Materials and Supplies","$ 268.65",08/11/2021
"Ferrellgas LP","Materials and Supplies","$ 93.75",08/18/2021
"Ferrellgas LP","Materials and Supplies","$ 266.63",09/08/2021
"Ferrellgas LP","Materials and Supplies","$ 234.00",09/15/2021
"Ferrellgas LP","Materials and Supplies","$ 180.68",10/06/2021
"Ferrellgas LP","Materials and Supplies","$ 321.75",10/27/2021
"Ferrellgas LP","Materials and Supplies","$ 344.48",11/23/2021
"Ferrellgas LP","Materials and Supplies","$ 258.08",12/15/2021
"Fidelity National Title Company LLC",Equipment,"$ 5,331.00",10/07/2021
"Fidelity Security Life Insurance Eye","Health Insurance","$ 2,201.76",01/29/2021
"Fidelity Security Life Insurance Eye","Health Insurance","$ 2,208.32",02/26/2021
"Fidelity Security Life Insurance Eye","Health Insurance","$ 2,187.52",03/26/2021
"Fidelity Security Life Insurance Eye","Health Insurance","$ 2,159.84",04/29/2021
"Fidelity Security Life Insurance Eye","Health Insurance","$ 2,178.08",05/25/2021
"Fidelity Security Life Insurance Eye","Health Insurance","$ 2,184.96",06/24/2021
"Fidelity Security Life Insurance Eye","Health Insurance","$ 2,132.48",07/23/2021
"Fidelity Security Life Insurance Eye","Health Insurance","$ 2,137.92",08/25/2021
"Fidelity Security Life Insurance Eye","Health Insurance","$ 2,107.68",09/30/2021
"Fidelity Security Life Insurance Eye","Health Insurance","$ 2,119.36",11/02/2021
"Fidelity Security Life Insurance Eye","Health Insurance","$ 2,142.40",12/01/2021
"Fidelity Security Life Insurance Eye","Health Insurance","$ 2,093.44",12/22/2021
"Filter Services Illinois","Fuel/Parts Inventory","$ 5,186.00",02/17/2021
"Filter Services Illinois","Fuel/Parts Inventory","$ 5,482.00",02/24/2021
"Filter Services Illinois","Fuel/Parts Inventory","$ 6,482.00",03/31/2021
"Filter Services Illinois","Fuel/Parts Inventory","$ 117.12",04/07/2021
"Filter Services Illinois","Fuel/Parts Inventory","$ 8,743.72",04/21/2021
"Filter Services Illinois","Fuel/Parts Inventory","$ 1,500.00",06/02/2021
"Filter Services Illinois","Fuel/Parts Inventory","$ 12,074.28",07/15/2021
"Filter Services Illinois","Fuel/Parts Inventory","$ 4,105.00",08/11/2021
"Filter Services Illinois","Fuel/Parts Inventory","$ 4,956.00",09/02/2021
"Filter Services Illinois","Fuel/Parts Inventory","$ 1,550.00",11/03/2021
"Filter Services Illinois","Fuel/Parts Inventory","$ 1,420.00",11/17/2021
"Filter Services Illinois","Materials and Supplies","$ 1,434.72",11/17/2021
"FinishMaster Inc","Materials and Supplies","$ 549.10",05/06/2021
"First Student Inc","Purchased Transportation","$ 29,030.58",08/11/2021
"First Student Inc","Purchased Transportation","$ 25,907.07",09/10/2021
"First Student Inc","Purchased Transportation","$ 25,004.10",10/13/2021
"First Student Inc","Purchased Transportation","$ 31,255.13",11/10/2021
"First Student Inc","Purchased Transportation","$ 33,012.81",12/13/2021
"First Transit Inc","Purchased Transportation","$ 265,335.39",01/05/2021
"First Transit Inc","Purchased Transportation","$ 113,883.49",01/26/2021
"First Transit Inc",Equipment,"$ 2,860.00",01/28/2021
"First Transit Inc",Miscellaneous,"$ -4,700.43",02/02/2021
"First Transit Inc","Purchased Transportation","$ 1,643,073.44",02/02/2021
"First Transit Inc","Purchased Transportation","$ 233,437.93",02/03/2021
"First Transit Inc","Purchased Transportation","$ 157,804.97",02/09/2021
"First Transit Inc","Purchased Transportation","$ 42,489.19",02/25/2021
"First Transit Inc","Purchased Transportation","$ 54,071.64",02/26/2021
"First Transit Inc","Purchased Transportation","$ 202,429.88",03/02/2021
"First Transit Inc",Miscellaneous,"$ -1,044.54",03/04/2021
"First Transit Inc","Purchased Transportation","$ 172,055.12",03/04/2021
"First Transit Inc",Miscellaneous,"$ -945.06",03/10/2021
"First Transit Inc","Purchased Transportation","$ 236,255.79",03/10/2021
"First Transit Inc",Miscellaneous,"$ -4,103.55",03/17/2021
"First Transit Inc","Purchased Transportation","$ 1,338,683.14",03/17/2021
"First Transit Inc","Purchased Transportation","$ 127,558.39",03/19/2021
"First Transit Inc","Purchased Transportation","$ 31,738.51",03/23/2021
"First Transit Inc","Purchased Transportation","$ 37,934.55",03/24/2021
"First Transit Inc","Purchased Transportation","$ 41,391.95",03/25/2021
"First Transit Inc",Miscellaneous,"$ -4,700.43",04/01/2021
"First Transit Inc","Purchased Transportation","$ 1,398,406.88",04/01/2021
"First Transit Inc",Miscellaneous,"$ -1,989.60",04/07/2021
"First Transit Inc","Purchased Transportation","$ 464,819.02",04/07/2021
"First Transit Inc",Equipment,"$ 2,857.65",04/08/2021
"First Transit Inc",Miscellaneous,"$ -1,989.60",04/08/2021
"First Transit Inc","Purchased Transportation","$ 176,457.36",04/08/2021
"First Transit Inc","Purchased Transportation","$ 80,744.77",04/22/2021
"First Transit Inc","Purchased Transportation","$ 29,050.05",04/23/2021
"First Transit Inc",Miscellaneous,"$ -599.52",04/30/2021
"First Transit Inc","Purchased Transportation","$ 90,793.54",04/30/2021
"First Transit Inc",Miscellaneous,"$ -9,208.38",05/05/2021
"First Transit Inc","Purchased Transportation","$ 2,044,553.39",05/05/2021
"First Transit Inc",Miscellaneous,"$ -1,049.16",05/07/2021
"First Transit Inc","Purchased Transportation","$ 183,370.07",05/07/2021
"First Transit Inc",Miscellaneous,"$ -4,121.70",05/25/2021
"First Transit Inc","Purchased Transportation","$ 1,451,769.02",05/25/2021
"First Transit Inc",Miscellaneous,"$ -2,997.60",06/01/2021
"First Transit Inc","Purchased Transportation","$ 679,304.36",06/01/2021
"First Transit Inc",Miscellaneous,"$ -1,648.68",06/09/2021
"First Transit Inc","Purchased Transportation","$ 250,245.52",06/09/2021
"First Transit Inc","Purchased Transportation","$ 95,371.15",06/22/2021
"First Transit Inc",Equipment,"$ 14,988.00",06/25/2021
"First Transit Inc",Miscellaneous,"$ -6,769.58",07/02/2021
"First Transit Inc","Purchased Transportation","$ 1,795,637.16",07/02/2021
"First Transit Inc",Miscellaneous,"$ -1,049.16",07/07/2021
"First Transit Inc","Purchased Transportation","$ 138,096.63",07/07/2021
"First Transit Inc",Miscellaneous,"$ -949.24",07/08/2021
"First Transit Inc","Purchased Transportation","$ 261,305.44",07/08/2021
"First Transit Inc","Purchased Transportation","$ 60,032.10",07/21/2021
"First Transit Inc","Purchased Transportation","$ 46,394.61",07/28/2021
"First Transit Inc",Miscellaneous,"$ -3,584.16",08/03/2021
"First Transit Inc","Purchased Transportation","$ 758,155.47",08/03/2021
"First Transit Inc",Miscellaneous,"$ -1,045.38",08/11/2021
"First Transit Inc","Purchased Transportation","$ 118,144.11",08/11/2021
"First Transit Inc",Miscellaneous,"$ -4,106.85",08/19/2021
"First Transit Inc","Purchased Transportation","$ 1,262,939.15",08/19/2021
"First Transit Inc","Purchased Transportation","$ 101,531.35",08/25/2021
"First Transit Inc",Miscellaneous,"$ -1,045.38",09/02/2021
"First Transit Inc","Purchased Transportation","$ 132,700.00",09/02/2021
"First Transit Inc",Miscellaneous,"$ -1,592.96",09/07/2021
"First Transit Inc","Purchased Transportation","$ 335,655.05",09/07/2021
"First Transit Inc",Miscellaneous,"$ -6,197.61",09/17/2021
"First Transit Inc","Purchased Transportation","$ 1,645,683.16",09/17/2021
"First Transit Inc","Purchased Transportation","$ 108,351.46",09/23/2021
"First Transit Inc",Miscellaneous,"$ -1,045.38",10/13/2021
"First Transit Inc","Purchased Transportation","$ 114,274.80",10/13/2021
"First Transit Inc",Miscellaneous,"$ -7,193.21",10/15/2021
"First Transit Inc","Purchased Transportation","$ 1,813,237.35",10/15/2021
"First Transit Inc",Equipment,"$ 3,158.00",10/21/2021
"First Transit Inc","Purchased Transportation","$ 101,487.36",10/21/2021
"First Transit Inc",Miscellaneous,"$ -1,045.38",11/03/2021
"First Transit Inc","Purchased Transportation","$ 119,376.22",11/03/2021
"First Transit Inc",Miscellaneous,"$ -2,178.16",11/08/2021
"First Transit Inc","Purchased Transportation","$ 311,271.10",11/08/2021
"First Transit Inc",Miscellaneous,"$ -1,045.38",11/10/2021
"First Transit Inc","Purchased Transportation","$ 111,291.38",11/10/2021
"First Transit Inc",Miscellaneous,"$ -938.60",11/15/2021
"First Transit Inc","Purchased Transportation","$ 248,917.17",11/15/2021
"First Transit Inc",Miscellaneous,"$ -4,075.50",11/17/2021
"First Transit Inc","Purchased Transportation","$ 1,351,680.07",11/17/2021
"First Transit Inc","Purchased Transportation","$ 102,357.65",11/19/2021
"First Transit Inc","Purchased Transportation","$ 720,073.00",11/24/2021
"First Transit Inc",Equipment,"$ 1,725.00",12/01/2021
"First Transit Inc",Miscellaneous,"$ -2,018.84",12/09/2021
"First Transit Inc","Purchased Transportation","$ 370,308.42",12/09/2021
"First Transit Inc",Miscellaneous,"$ -5,107.68",12/13/2021
"First Transit Inc","Purchased Transportation","$ 1,504,369.14",12/13/2021
"First Transit Inc",Miscellaneous,"$ -1,526.44",12/21/2021
"First Transit Inc","Purchased Transportation","$ 363,242.81",12/21/2021
"First Transit Inc","Purchased Transportation","$ 102,389.83",12/29/2021
"Five Star Kleen",Services,"$ 4,805.50",01/27/2021
"Five Star Kleen",Services,"$ 6,905.00",03/17/2021
"Five Star Kleen",Services,"$ 9,441.25",04/21/2021
"Five Star Kleen",Services,"$ 4,454.50",07/07/2021
"Five Star Kleen",Services,"$ 11,679.00",07/14/2021
"Five Star Kleen",Services,"$ 4,436.00",08/04/2021
"Five Star Kleen",Services,"$ 10,017.75",10/06/2021
"Five Star Kleen",Services,"$ 5,265.75",11/03/2021
"Five Star Kleen",Services,"$ 4,437.00",12/01/2021
"Flash Cab Company","Purchased Transportation","$ 310,341.65",01/14/2021
"Flash Cab Company","Purchased Transportation","$ 165,917.52",01/19/2021
"Flash Cab Company","Purchased Transportation","$ 449,297.85",02/08/2021
"Flash Cab Company","Purchased Transportation","$ 151,427.25",02/22/2021
"Flash Cab Company","Purchased Transportation","$ 163,989.85",03/04/2021
"Flash Cab Company","Purchased Transportation","$ 3,245.75",03/10/2021
"Flash Cab Company","Purchased Transportation","$ 151,204.25",03/15/2021
"Flash Cab Company","Purchased Transportation","$ 281,717.52",03/31/2021
"Flash Cab Company","Purchased Transportation","$ 168,627.37",04/01/2021
"Flash Cab Company","Purchased Transportation","$ 129,861.25",04/08/2021
"Flash Cab Company","Purchased Transportation","$ 495,942.25",04/29/2021
"Flash Cab Company","Purchased Transportation","$ 482,472.87",05/05/2021
"Flash Cab Company","Purchased Transportation","$ 338,459.30",05/27/2021
"Flash Cab Company","Purchased Transportation","$ 544,477.85",06/11/2021
"Flash Cab Company","Purchased Transportation","$ 589.48",06/16/2021
"Flash Cab Company","Purchased Transportation","$ 334,495.47",07/01/2021
"Flash Cab Company","Purchased Transportation","$ 171,430.55",07/07/2021
"Flash Cab Company","Purchased Transportation","$ 183,382.90",07/15/2021
"Flash Cab Company","Purchased Transportation","$ 171,368.92",07/22/2021
"Flash Cab Company","Purchased Transportation","$ 189,993.60",07/29/2021
"Flash Cab Company","Purchased Transportation","$ 169,148.84",08/11/2021
"Flash Cab Company","Purchased Transportation","$ 174,097.16",08/12/2021
"Flash Cab Company","Purchased Transportation","$ 353,978.70",08/18/2021
"Flash Cab Company","Purchased Transportation","$ 168,138.75",09/02/2021
"Flash Cab Company","Purchased Transportation","$ 345,058.35",09/08/2021
"Flash Cab Company","Purchased Transportation","$ 173,984.94",09/28/2021
"Flash Cab Company","Purchased Transportation","$ 184,449.45",10/06/2021
"Flash Cab Company","Purchased Transportation","$ 179,290.56",10/18/2021
"Flash Cab Company","Purchased Transportation","$ 82.14",10/20/2021
"Flash Cab Company","Purchased Transportation","$ 398,159.80",10/22/2021
"Flash Cab Company","Purchased Transportation","$ 409,337.39",11/04/2021
"Flash Cab Company","Purchased Transportation","$ 301.18",11/10/2021
"Flash Cab Company","Purchased Transportation","$ 204,411.85",11/15/2021
"Flash Cab Company","Purchased Transportation","$ 27,000.00",11/19/2021
"Flash Cab Company","Purchased Transportation","$ 230,762.30",11/24/2021
"Flash Cab Company","Purchased Transportation","$ 191.66",12/01/2021
"Flash Cab Company","Purchased Transportation","$ 449,945.67",12/09/2021
"Flash Cab Company","Purchased Transportation","$ 233,298.49",12/16/2021
"Flash Cab Company","Purchased Transportation","$ 479,212.43",12/22/2021
"Flash Cab Company","Purchased Transportation","$ 730,019.87",12/30/2021
"Fleet Analytics LLC",Services,"$ 2,232.00",01/20/2021
"Fleet Analytics LLC",Services,"$ 2,700.00",02/17/2021
"Fleet Analytics LLC",Services,"$ 9,396.00",03/04/2021
"Fleet Analytics LLC",Services,"$ 2,232.00",04/28/2021
"Fleet Analytics LLC",Services,"$ 2,040.00",05/12/2021
"Fleet Analytics LLC",Services,"$ 2,040.00",06/23/2021
"Fleet Analytics LLC",Services,"$ 2,040.00",07/15/2021
"Fleet Analytics LLC",Services,"$ 1,980.00",09/02/2021
"Fleet Analytics LLC",Services,"$ 1,980.00",10/13/2021
"Fleet Analytics LLC",Services,"$ 6,192.00",10/27/2021
"Fleet Analytics LLC",Services,"$ 1,980.00",11/23/2021
"Fleet Analytics LLC",Services,"$ 1,980.00",12/21/2021
"Fleet Response","Casualty and Liability","$ 6,025.22",02/03/2021
"Fleet Response","Casualty and Liability","$ 10,326.56",02/17/2021
"Fleet Response","Casualty and Liability","$ 28,056.71",03/31/2021
"Fleet Response","Casualty and Liability","$ 6,307.32",04/28/2021
"Fleet Response","Casualty and Liability","$ 8,900.69",05/12/2021
"Fleet Response","Casualty and Liability","$ 11,199.66",05/19/2021
"Fleet Response","Casualty and Liability","$ 10,935.84",06/09/2021
"Fleet Response","Casualty and Liability","$ 4,447.70",06/30/2021
"Fleet Response","Casualty and Liability","$ 2,495.05",08/04/2021
"Fleet Response","Casualty and Liability","$ 2,785.76",08/18/2021
"Fleet Response","Casualty and Liability","$ 2,277.20",08/25/2021
"Fleet Response","Casualty and Liability","$ 4,317.66",09/29/2021
"Fleet Response","Casualty and Liability","$ 1,127.14",10/20/2021
"Fleet Response","Casualty and Liability","$ 6,311.69",11/03/2021
"Fleet Response","Casualty and Liability","$ 1,251.48",11/17/2021
"Fleet Response","Casualty and Liability","$ 2,429.57",12/01/2021
"Fleet Response","Casualty and Liability","$ 6,031.34",12/21/2021
"Fox Metro Water Reclamation District",Utilities,"$ 620.35",02/18/2021
"Fox Metro Water Reclamation District",Utilities,"$ 711.77",06/17/2021
"Fox Metro Water Reclamation District",Utilities,"$ 535.46",07/15/2021
"Fox Metro Water Reclamation District",Utilities,"$ 888.08",09/09/2021
"Fox Metro Water Reclamation District",Utilities,"$ 888.08",11/04/2021
"Fox River Crossing LP",Miscellaneous,"$ 211.69",04/01/2021
"Fox Valley Auto Paints Inc","Materials and Supplies","$ 1,694.83",02/11/2021
"Fox Valley Fire & Safety",Services,"$ 858.00",01/06/2021
"Fox Valley Fire & Safety",Services,"$ 71.00",02/10/2021
"Fox Valley Fire & Safety",Services,"$ 1,310.50",02/24/2021
"Fox Valley Fire & Safety",Services,"$ 412.40",03/03/2021
"Fox Valley Fire & Safety",Services,"$ 8,285.00",03/10/2021
"Fox Valley Fire & Safety",Services,"$ 71.00",03/31/2021
"Fox Valley Fire & Safety",Services,"$ 6,416.65",04/07/2021
"Fox Valley Fire & Safety",Services,"$ 570.00",04/14/2021
"Fox Valley Fire & Safety",Services,"$ 1,385.00",04/21/2021
"Fox Valley Fire & Safety",Services,"$ 4,946.70",04/28/2021
"Fox Valley Fire & Safety",Services,"$ 3,474.50",05/12/2021
"Fox Valley Fire & Safety",Services,"$ 100.00",05/26/2021
"Fox Valley Fire & Safety",Services,"$ 2,219.10",06/16/2021
"Fox Valley Fire & Safety",Services,"$ 71.00",06/23/2021
"Fox Valley Fire & Safety Company",Services,"$ 70.00",07/07/2021
"Fox Valley Fire & Safety Company",Services,"$ 537.50",07/28/2021
"Fox Valley Fire & Safety Company",Services,"$ 2,736.60",08/04/2021
"Fox Valley Fire & Safety Company",Services,"$ 378.20",08/11/2021
"Fox Valley Fire & Safety Company",Services,"$ 674.00",08/18/2021
"Fox Valley Fire & Safety Company",Services,"$ 142.00",08/25/2021
"Fox Valley Fire & Safety Company",Services,"$ 1,041.30",09/21/2021
"Fox Valley Fire & Safety Company",Services,"$ 70.00",09/29/2021
"Fox Valley Fire & Safety Company",Services,"$ 984.00",10/08/2021
"Fox Valley Fire & Safety Company",Services,"$ 659.00",10/13/2021
"Fox Valley Fire & Safety Company",Services,"$ 228.00",10/27/2021
"Fox Valley Fire & Safety Company",Services,"$ 1,068.00",11/17/2021
"Fox Valley Fire & Safety Company",Services,"$ 141.00",12/01/2021
"Francis Donal O'Brien",Services,"$ 2,250.00",12/16/2021
"Francotyp Postalia Inc - FP Mailing Solution",Services,"$ 274.86",01/27/2021
"Francotyp Postalia Inc - FP Mailing Solution",Services,"$ 1,099.44",03/25/2021
"Francotyp Postalia Inc - FP Mailing Solution",Services,"$ 274.86",04/01/2021
"Francotyp Postalia Inc - FP Mailing Solution",Services,"$ 274.86",05/12/2021
"Francotyp Postalia Inc - FP Mailing Solution",Services,"$ 274.86",06/30/2021
"Francotyp Postalia Inc - FP Mailing Solution",Services,"$ 274.86",08/11/2021
"Francotyp Postalia Inc - FP Mailing Solution",Services,"$ 274.86",10/20/2021
"Francotyp Postalia Inc - FP Mailing Solution",Services,"$ 274.86",12/01/2021
"Frank M Pawlak P C",Services,"$ 7,434.00",02/18/2021
"Frank M Pawlak P C",Miscellaneous,"$ 4,100.50",03/11/2021
"Frank M Pawlak P C",Services,"$ 10,649.50",06/03/2021
"Frank M Pawlak P C",Services,"$ 10,826.50",08/12/2021
"Frank M Pawlak P C",Miscellaneous,"$ 9,292.50",08/19/2021
"Frank M Pawlak P C",Miscellaneous,"$ 2,979.50",10/28/2021
"Frank M Pawlak P C",Services,"$ 4,838.00",11/18/2021
"Freedom 1st Transportation LLC","Purchased Transportation","$ 57,548.02",01/27/2021
"Freedom 1st Transportation LLC","Purchased Transportation","$ 28,702.01",03/02/2021
"Freedom 1st Transportation LLC","Purchased Transportation","$ 19,451.76",03/05/2021
"Freedom 1st Transportation LLC","Purchased Transportation","$ 48,670.68",03/29/2021
"Freedom 1st Transportation LLC","Purchased Transportation","$ 58,648.43",04/30/2021
"Freedom 1st Transportation LLC","Purchased Transportation","$ 7,049.97",05/25/2021
"Freedom 1st Transportation LLC","Purchased Transportation","$ 56,104.82",05/28/2021
"Freedom 1st Transportation LLC","Purchased Transportation","$ 48,279.23",06/24/2021
"Freedom 1st Transportation LLC","Purchased Transportation","$ 19,383.72",07/09/2021
"Freedom 1st Transportation LLC","Purchased Transportation","$ 66,894.88",08/03/2021
"Freedom 1st Transportation LLC","Purchased Transportation","$ 3,384.31",08/18/2021
"Freedom 1st Transportation LLC","Purchased Transportation","$ 26,018.25",09/02/2021
"Freedom 1st Transportation LLC","Purchased Transportation","$ 46,976.83",09/07/2021
"Freedom 1st Transportation LLC","Purchased Transportation","$ 3,936.54",09/23/2021
"Freedom 1st Transportation LLC","Purchased Transportation","$ 35,396.15",09/29/2021
"Freedom 1st Transportation LLC","Purchased Transportation","$ 18,202.02",10/13/2021
"Freedom 1st Transportation LLC","Purchased Transportation","$ 37,600.24",10/22/2021
"Freedom 1st Transportation LLC","Purchased Transportation","$ 93,699.10",10/27/2021
"Freedom 1st Transportation LLC","Purchased Transportation","$ 54,134.98",11/24/2021
"Freedom 1st Transportation LLC","Purchased Transportation","$ 30,366.70",12/02/2021
"Freedom 1st Transportation LLC","Purchased Transportation","$ 32,837.45",12/21/2021
"FyterTech Nonwovens Formrly NPS","Materials and Supplies","$ 441.75",07/07/2021
"G&O Thermal Supply Company",Services,"$ 708.30",12/02/2021
"GR Consulting LLC",Services,"$ 3,000.00",01/21/2021
"GR Consulting LLC",Services,"$ 3,000.00",02/11/2021
"GR Consulting LLC",Services,"$ 3,000.00",03/11/2021
"GR Consulting LLC",Services,"$ 3,000.00",04/01/2021
"GR Consulting LLC",Services,"$ 3,000.00",06/03/2021
"GR Consulting LLC",Services,"$ 3,000.00",06/10/2021
"GR Consulting LLC",Services,"$ 6,000.00",08/05/2021
"GR Consulting LLC",Services,"$ 6,000.00",10/21/2021
"GRM Information Management Services",Miscellaneous,"$ 922.99",01/20/2021
"GRM Information Management Services",Services,"$ 1,128.04",01/20/2021
"GRM Information Management Services",Miscellaneous,"$ 1,196.62",02/24/2021
"GRM Information Management Services",Services,"$ 964.89",02/24/2021
"GRM Information Management Services",Miscellaneous,"$ 1,159.01",03/24/2021
"GRM Information Management Services",Services,"$ 741.24",03/24/2021
"GRM Information Management Services",Miscellaneous,"$ 1,006.95",04/21/2021
"GRM Information Management Services",Services,"$ 2,092.84",04/21/2021
"GRM Information Management Services",Miscellaneous,"$ 1,172.77",05/19/2021
"GRM Information Management Services",Services,"$ 806.41",05/19/2021
"GRM Information Management Services",Services,"$ 363.10",05/26/2021
"GRM Information Management Services",Miscellaneous,"$ 957.28",06/23/2021
"GRM Information Management Services",Services,"$ 1,228.95",06/23/2021
"GRM Information Management Services",Miscellaneous,"$ 1,083.11",07/21/2021
"GRM Information Management Services",Services,"$ 1,447.04",07/21/2021
"GRM Information Management Services",Miscellaneous,"$ 1,043.71",08/18/2021
"GRM Information Management Services",Services,"$ 931.23",08/18/2021
"GRM Information Management Services",Miscellaneous,"$ 836.81",09/21/2021
"GRM Information Management Services",Services,"$ 842.06",09/21/2021
"GRM Information Management Services",Miscellaneous,"$ 879.61",10/27/2021
"GRM Information Management Services",Services,"$ 783.81",10/27/2021
"GRM Information Management Services",Services,"$ 385.05",11/03/2021
"GRM Information Management Services",Services,"$ 803.25",11/17/2021
"GRM Information Management Services",Miscellaneous,"$ 1,029.62",12/01/2021
"GRM Information Management Services",Services,"$ 895.61",12/01/2021
"GRM Information Management Services",Services,"$ 387.00",12/15/2021
"Galls LLC","Fringe Benefits","$ 6,114.76",01/13/2021
"Galls LLC","Fringe Benefits","$ 4,183.67",01/21/2021
"Galls LLC","Fringe Benefits","$ 10,803.09",01/28/2021
"Galls LLC","Fringe Benefits","$ 8,437.18",02/03/2021
"Galls LLC","Fringe Benefits","$ 8,376.35",02/10/2021
"Galls LLC","Fringe Benefits","$ 10,978.84",02/18/2021
"Galls LLC","Fringe Benefits","$ 7,082.02",02/24/2021
"Galls LLC","Fringe Benefits","$ 6,287.96",03/04/2021
"Galls LLC","Fringe Benefits","$ 13,492.25",03/10/2021
"Galls LLC","Fringe Benefits","$ 14,193.09",03/17/2021
"Galls LLC","Fringe Benefits","$ 6,281.79",03/24/2021
"Galls LLC","Fringe Benefits","$ 21,588.73",03/31/2021
"Galls LLC","Fringe Benefits","$ 10,786.49",04/08/2021
"Galls LLC","Fringe Benefits","$ 13,318.44",04/15/2021
"Galls LLC","Fringe Benefits","$ 15,660.89",04/21/2021
"Galls LLC","Fringe Benefits","$ 2,515.43",04/28/2021
"Galls LLC","Fringe Benefits","$ 5,977.57",05/05/2021
"Galls LLC","Fringe Benefits","$ 958.03",05/12/2021
"Galls LLC","Fringe Benefits","$ 5,993.24",05/19/2021
"Galls LLC","Fringe Benefits","$ 1,721.64",05/27/2021
"Galls LLC","Fringe Benefits","$ 9,448.14",06/02/2021
"Galls LLC","Fringe Benefits","$ 2,951.25",06/09/2021
"Galls LLC","Fringe Benefits","$ 6,414.43",06/16/2021
"Galls LLC","Fringe Benefits","$ 13,296.07",06/23/2021
"Galls LLC","Fringe Benefits","$ 8,440.00",07/01/2021
"Galls LLC","Fringe Benefits","$ 968.94",07/07/2021
"Galls LLC","Fringe Benefits","$ 116.71",07/14/2021
"Galls LLC","Fringe Benefits","$ 13,292.77",07/22/2021
"Galls LLC","Fringe Benefits","$ 6,317.44",07/28/2021
"Galls LLC","Fringe Benefits","$ 4,015.12",08/04/2021
"Galls LLC","Fringe Benefits","$ 16,361.74",08/12/2021
"Galls LLC","Fringe Benefits","$ 4,557.90",08/18/2021
"Galls LLC","Fringe Benefits","$ 4,223.63",08/25/2021
"Galls LLC","Fringe Benefits","$ 8,490.66",09/02/2021
"Galls LLC","Fringe Benefits","$ 3,873.41",09/08/2021
"Galls LLC","Fringe Benefits","$ 4,612.77",09/15/2021
"Galls LLC","Fringe Benefits","$ 4,293.53",09/21/2021
"Galls LLC","Fringe Benefits","$ 2,562.03",09/29/2021
"Galls LLC","Fringe Benefits","$ 8,911.08",10/06/2021
"Galls LLC","Fringe Benefits","$ 1,234.83",10/13/2021
"Galls LLC","Fringe Benefits","$ 8,455.12",10/21/2021
"Galls LLC","Fringe Benefits","$ 3,394.96",10/27/2021
"Galls LLC","Fringe Benefits","$ 7,777.05",11/03/2021
"Galls LLC","Fringe Benefits","$ 6,310.53",11/10/2021
"Galls LLC","Fringe Benefits","$ 5,999.25",11/17/2021
"Galls LLC","Fringe Benefits","$ 1,303.22",11/24/2021
"Galls LLC","Fringe Benefits","$ 3,095.42",12/01/2021
"Galls LLC","Fringe Benefits","$ 12,245.41",12/08/2021
"Galls LLC","Fringe Benefits","$ 15,370.23",12/15/2021
"Galls LLC","Fringe Benefits","$ 246.36",12/21/2021
"Galls LLC","Fringe Benefits","$ 3,796.54",12/29/2021
"Garda CL Great Lakes Inc",Services,"$ 14,203.58",01/13/2021
"Garda CL Great Lakes Inc",Services,"$ 16,430.31",02/03/2021
"Garda CL Great Lakes Inc",Services,"$ 42,248.73",04/29/2021
"Garda CL Great Lakes Inc",Services,"$ 17,082.88",05/26/2021
"Garda CL Great Lakes Inc",Services,"$ 16,261.00",06/23/2021
"Garda CL Great Lakes Inc",Services,"$ 34,624.34",10/20/2021
"Garda CL Great Lakes Inc",Services,"$ 41,673.20",12/01/2021
"Garveys Office Products Inc",Services,"$ 3,852.58",04/08/2021
"Gatesman Inc",Services,"$ 143,610.85",02/04/2021
"Gatesman Inc",Operating,"$ 15,750.00",02/24/2021
"Gatesman Inc",Services,"$ 11,988.00",02/24/2021
"Gatesman Inc",Services,"$ 19,088.13",03/03/2021
"Gatesman Inc",Services,"$ 65,269.94",04/08/2021
"Gatesman Inc",Services,"$ 55,363.00",04/22/2021
"Gatesman Inc",Services,"$ 24,631.64",04/29/2021
"Gatesman Inc","Building/Bldg Improvement","$ 7,163.31",05/13/2021
"Gatesman Inc",Services,"$ 6,106.69",05/13/2021
"Gatesman Inc",Services,"$ 77,613.94",05/20/2021
"Gatesman Inc",Services,"$ 250.00",06/02/2021
"Gatesman Inc",Services,"$ 95,269.56",06/16/2021
"Gatesman Inc",Services,"$ 92,044.21",06/30/2021
"Gatesman Inc",Services,"$ 97,894.00",07/07/2021
"Gatesman Inc",Services,"$ 45,469.52",07/14/2021
"Gatesman Inc",Services,"$ 49,564.22",08/04/2021
"Gatesman Inc",Operating,"$ 15,332.50",08/26/2021
"Gatesman Inc",Services,"$ 85,390.74",09/02/2021
"Gatesman Inc",Services,"$ 32,120.00",09/29/2021
"Gatesman Inc",Operating,"$ 6,817.50",09/30/2021
"Gatesman Inc",Services,"$ 248,591.94",10/06/2021
"Gatesman Inc",Services,"$ 69,858.75",10/21/2021
"Gatesman Inc",Miscellaneous,"$ 4,712.50",12/02/2021
"Gatesman Inc",Operating,"$ 13,158.75",12/02/2021
"Gatesman Inc",Services,"$ 194,237.96",12/02/2021
Genfare,"Fuel/Parts Inventory","$ 2,920.90",01/27/2021
Genfare,"Materials and Supplies","$ 2,883.85",02/10/2021
Genfare,"Fuel/Parts Inventory","$ 2,333.60",02/17/2021
Genfare,"Fuel/Parts Inventory","$ 2,001.60",04/07/2021
Genfare,"Fuel/Parts Inventory","$ 7,704.05",04/21/2021
Genfare,"Materials and Supplies","$ 6.20",04/21/2021
Genfare,"Fuel/Parts Inventory","$ 1,770.85",07/07/2021
Genfare,"Materials and Supplies","$ 48.19",07/07/2021
Genfare,"Fuel/Parts Inventory","$ 11,672.45",07/28/2021
Genfare,"Materials and Supplies","$ 1,894.03",08/25/2021
Genfare,"Fuel/Parts Inventory","$ 198.00",10/06/2021
Genfare,"Fuel/Parts Inventory","$ 250.00",11/03/2021
Genfare,"Materials and Supplies","$ 131.40",11/10/2021
Genfare,"Fuel/Parts Inventory","$ 8,325.00",11/23/2021
Genfare,"Materials and Supplies","$ 2,756.08",12/02/2021
"George T Roumell Jr P C",Services,"$ 1,750.00",02/04/2021
"Ghedam Trans Inc","Purchased Transportation","$ 74.00",10/20/2021
"Ghedam Trans Inc","Purchased Transportation","$ 234.00",11/03/2021
"Ghedam Trans Inc","Purchased Transportation","$ 82.00",11/17/2021
"Gillig LLC","Fuel/Parts Inventory","$ 16,431.77",01/06/2021
"Gillig LLC","Fuel/Parts Inventory","$ 21,919.99",01/13/2021
"Gillig LLC","Fuel/Parts Inventory","$ 5,437.51",01/20/2021
"Gillig LLC","Fuel/Parts Inventory","$ 10,192.39",01/27/2021
"Gillig LLC","Fuel/Parts Inventory","$ 23,366.81",02/10/2021
"Gillig LLC","Fuel/Parts Inventory","$ 835.71",02/17/2021
"Gillig LLC","Fuel/Parts Inventory","$ 5,813.28",02/24/2021
"Gillig LLC","Fuel/Parts Inventory","$ 5,002.04",03/03/2021
"Gillig LLC","Fuel/Parts Inventory","$ 12,133.35",03/10/2021
"Gillig LLC","Fuel/Parts Inventory","$ 27,129.16",03/17/2021
"Gillig LLC","Fuel/Parts Inventory","$ 12,538.59",03/24/2021
"Gillig LLC","Fuel/Parts Inventory","$ 8,584.07",04/01/2021
"Gillig LLC","Fuel/Parts Inventory","$ 11,095.61",04/07/2021
"Gillig LLC","Fuel/Parts Inventory","$ 8,671.43",04/14/2021
"Gillig LLC","Fuel/Parts Inventory","$ 6,590.36",04/21/2021
"Gillig LLC","Fuel/Parts Inventory","$ 353.08",04/28/2021
"Gillig LLC","Fuel/Parts Inventory","$ 32,918.05",05/12/2021
"Gillig LLC","Fuel/Parts Inventory","$ 384.78",05/19/2021
"Gillig LLC","Fuel/Parts Inventory","$ 23,643.26",06/02/2021
"Gillig LLC","Fuel/Parts Inventory","$ 28,697.97",06/16/2021
"Gillig LLC","Fuel/Parts Inventory","$ 11,243.60",06/23/2021
"Gillig LLC","Fuel/Parts Inventory","$ 22,872.00",07/07/2021
"Gillig LLC","Fuel/Parts Inventory","$ 4,326.52",07/14/2021
"Gillig LLC","Fuel/Parts Inventory","$ 18,222.73",07/28/2021
"Gillig LLC","Fuel/Parts Inventory","$ 3,872.64",08/04/2021
"Gillig LLC","Fuel/Parts Inventory","$ 10,363.77",08/11/2021
"Gillig LLC","Fuel/Parts Inventory","$ 35,945.85",08/18/2021
"Gillig LLC","Fuel/Parts Inventory","$ 11,554.57",09/02/2021
"Gillig LLC","Fuel/Parts Inventory","$ 22,671.18",09/09/2021
"Gillig LLC","Fuel/Parts Inventory","$ 3,970.01",09/15/2021
"Gillig LLC","Fuel/Parts Inventory","$ 2,526.80",09/29/2021
"Gillig LLC","Fuel/Parts Inventory","$ 22,697.11",10/06/2021
"Gillig LLC","Fuel/Parts Inventory","$ 26,498.73",10/20/2021
"Gillig LLC","Fuel/Parts Inventory","$ 22,671.65",11/03/2021
"Gillig LLC","Fuel/Parts Inventory","$ 16,692.46",11/10/2021
"Gillig LLC","Fuel/Parts Inventory","$ 7,184.40",11/17/2021
"Gillig LLC","Fuel/Parts Inventory","$ 17,145.69",12/01/2021
"Gillig LLC","Fuel/Parts Inventory","$ 22,407.11",12/08/2021
"Gillig LLC","Fuel/Parts Inventory","$ 8,451.22",12/15/2021
"Giro Inc",Services,"$ 156,369.00",02/10/2021
"Global Knowledge",Services,"$ 2,995.00",02/25/2021
"Global Petroleum Products LLC","Fuel/Parts Inventory","$ 871.00",01/07/2021
"Global Petroleum Products LLC","Fuel/Parts Inventory","$ 14,278.00",01/14/2021
"Global Petroleum Products LLC","Fuel/Parts Inventory","$ 5,259.80",02/04/2021
"Global Petroleum Products LLC","Fuel/Parts Inventory","$ 7,128.00",03/04/2021
"Global Petroleum Products LLC","Fuel/Parts Inventory","$ 3,646.70",03/11/2021
"Global Petroleum Products LLC","Fuel/Parts Inventory","$ 2,865.60",03/19/2021
"Global Petroleum Products LLC","Fuel/Parts Inventory","$ 1,747.90",04/01/2021
"Global Petroleum Products LLC","Fuel/Parts Inventory","$ 792.00",04/15/2021
"Global Petroleum Products LLC","Fuel/Parts Inventory","$ 1,699.90",05/13/2021
"Global Petroleum Products LLC","Fuel/Parts Inventory","$ 4,806.00",05/27/2021
"Global Petroleum Products LLC","Fuel/Parts Inventory","$ 6,072.00",06/25/2021
"Global Petroleum Products LLC","Fuel/Parts Inventory","$ 3,505.60",08/12/2021
"Global Petroleum Products LLC","Fuel/Parts Inventory","$ 4,192.40",10/28/2021
"Global Petroleum Products LLC","Fuel/Parts Inventory","$ 2,857.60",11/18/2021
"Globalinx Communications Inc",Services,"$ 2,533.77",02/03/2021
"Globalinx Communications Inc",Services,"$ 1,498.18",04/14/2021
"Globalinx Communications Inc",Services,"$ 1,353.70",04/21/2021
"Globalinx Communications Inc",Services,"$ 3,154.23",06/04/2021
"Globalinx Communications Inc",Services,"$ 1,154.88",07/28/2021
"Globalinx Communications Inc",Services,"$ 1,290.35",08/04/2021
"Globalinx Communications Inc",Services,"$ 2,084.37",10/27/2021
"Globalinx Communications Inc",Services,"$ 690.35",11/10/2021
"Globe Taxi Association","Purchased Transportation","$ 23,587.25",01/14/2021
"Globe Taxi Association","Purchased Transportation","$ 13,522.75",01/20/2021
"Globe Taxi Association","Purchased Transportation","$ 46,778.25",02/17/2021
"Globe Taxi Association","Purchased Transportation","$ 10,113.00",02/24/2021
"Globe Taxi Association","Purchased Transportation","$ 16,113.75",03/10/2021
"Globe Taxi Association","Purchased Transportation","$ 18,805.50",03/17/2021
"Globe Taxi Association","Purchased Transportation","$ 16,627.25",03/31/2021
"Globe Taxi Association","Purchased Transportation","$ 27,780.25",04/08/2021
"Globe Taxi Association","Purchased Transportation","$ 29,384.00",05/12/2021
"Globe Taxi Association","Purchased Transportation","$ 26,662.00",05/26/2021
"Globe Taxi Association","Purchased Transportation","$ 42,483.25",06/23/2021
"Globe Taxi Association","Purchased Transportation","$ 34,714.25",07/28/2021
"Globe Taxi Association","Purchased Transportation","$ 18,721.50",08/25/2021
"Globe Taxi Association","Purchased Transportation","$ 35,452.25",09/21/2021
"Globe Taxi Association","Purchased Transportation","$ 39,509.75",10/20/2021
"Globe Taxi Association","Purchased Transportation","$ 81,024.40",11/24/2021
"Globe Taxi Association","Purchased Transportation","$ 40,098.00",12/30/2021
"Globetrotters Engineering Corp","Building/Bldg Improvement","$ 55,285.31",02/04/2021
"Globetrotters Engineering Corp","Building/Bldg Improvement","$ 31,182.39",03/19/2021
"Globetrotters Engineering Corp","Building/Bldg Improvement","$ 22,820.37",03/25/2021
"Globetrotters Engineering Corp","Building/Bldg Improvement","$ 24,279.90",04/22/2021
"Globetrotters Engineering Corp","Building/Bldg Improvement","$ 2,635.84",06/25/2021
"Globetrotters Engineering Corp","Building/Bldg Improvement","$ 9,521.71",08/05/2021
"Globetrotters Engineering Corp","Building/Bldg Improvement","$ 191,874.59",12/22/2021
"GovHR USA LLC",Services,"$ 16,200.00",09/15/2021
"Government Consulting Services of Illinois LLC",Services,"$ 3,000.00",01/20/2021
"Government Consulting Services of Illinois LLC",Services,"$ 3,000.00",02/24/2021
"Government Consulting Services of Illinois LLC",Services,"$ 3,000.00",03/24/2021
"Government Consulting Services of Illinois LLC",Services,"$ 3,000.00",04/21/2021
"Government Consulting Services of Illinois LLC",Services,"$ 3,000.00",05/19/2021
"Government Consulting Services of Illinois LLC",Services,"$ 3,000.00",06/16/2021
"Government Consulting Services of Illinois LLC",Services,"$ 3,000.00",07/28/2021
"Government Consulting Services of Illinois LLC",Services,"$ 3,000.00",08/11/2021
"Government Consulting Services of Illinois LLC",Services,"$ 3,000.00",09/15/2021
"Government Consulting Services of Illinois LLC",Services,"$ 3,000.00",10/27/2021
"Government Consulting Services of Illinois LLC",Services,"$ 3,000.00",12/08/2021
"Government Consulting Services of Illinois LLC",Services,"$ 3,000.00",12/21/2021
"Government Finance Officers Association",Miscellaneous,"$ 725.00",02/16/2021
"Grainger Inc","Materials and Supplies","$ 2,573.54",01/20/2021
"Grainger Inc","Materials and Supplies","$ 2,129.74",01/27/2021
"Grainger Inc","Materials and Supplies","$ 2,981.63",02/03/2021
"Grainger Inc","Materials and Supplies","$ 6,189.51",02/10/2021
"Grainger Inc","Materials and Supplies","$ 5,405.04",02/17/2021
"Grainger Inc","Materials and Supplies","$ 4,127.46",02/24/2021
"Grainger Inc","Materials and Supplies","$ 3,382.48",03/03/2021
"Grainger Inc","Materials and Supplies","$ 6,693.76",03/17/2021
"Grainger Inc","Materials and Supplies","$ 4,814.31",03/24/2021
"Grainger Inc","Materials and Supplies","$ 5,011.25",03/31/2021
"Grainger Inc","Materials and Supplies","$ 2,513.01",04/07/2021
"Grainger Inc",Services,"$ 504.50",04/07/2021
"Grainger Inc","Materials and Supplies","$ 1,260.30",04/14/2021
"Grainger Inc","Materials and Supplies","$ 3,409.20",04/21/2021
"Grainger Inc","Materials and Supplies","$ 3,078.18",04/28/2021
"Grainger Inc","Materials and Supplies","$ 695.37",05/12/2021
"Grainger Inc","Materials and Supplies","$ 10,517.81",05/26/2021
"Grainger Inc","Materials and Supplies","$ 2,714.24",06/09/2021
"Grainger Inc","Materials and Supplies","$ 8,325.82",06/16/2021
"Grainger Inc","Materials and Supplies","$ 1,653.33",06/23/2021
"Grainger Inc","Materials and Supplies","$ 1,271.28",06/30/2021
"Grainger Inc","Materials and Supplies","$ 5,640.26",07/07/2021
"Grainger Inc",Services,"$ 1,178.81",07/07/2021
"Grainger Inc","Materials and Supplies","$ 1,759.75",07/14/2021
"Grainger Inc","Materials and Supplies","$ 6,768.67",07/21/2021
"Grainger Inc","Materials and Supplies","$ 1,288.44",07/28/2021
"Grainger Inc","Materials and Supplies","$ 1,748.76",08/04/2021
"Grainger Inc","Materials and Supplies","$ 10,297.83",08/11/2021
"Grainger Inc","Materials and Supplies","$ 399.00",08/18/2021
"Grainger Inc","Materials and Supplies","$ 7,500.58",09/02/2021
"Grainger Inc",Services,"$ 696.99",09/02/2021
"Grainger Inc","Materials and Supplies","$ 3,086.27",09/08/2021
"Grainger Inc",Services,"$ 517.14",09/08/2021
"Grainger Inc","Materials and Supplies","$ 4,998.04",09/15/2021
"Grainger Inc",Services,"$ 358.54",09/15/2021
"Grainger Inc","Materials and Supplies","$ 1,150.67",09/29/2021
"Grainger Inc","Materials and Supplies","$ 7,316.13",10/06/2021
"Grainger Inc","Materials and Supplies","$ 7,752.71",10/13/2021
"Grainger Inc",Services,"$ 144.72",10/13/2021
"Grainger Inc","Materials and Supplies","$ 378.60",10/20/2021
"Grainger Inc",Services,"$ 57.89",10/20/2021
"Grainger Inc","Materials and Supplies","$ 6,383.09",11/03/2021
"Grainger Inc","Materials and Supplies","$ 3,867.33",11/10/2021
"Grainger Inc","Materials and Supplies","$ 3,921.16",11/17/2021
"Grainger Inc","Materials and Supplies","$ 210.90",11/23/2021
"Grainger Inc","Materials and Supplies","$ 373.53",12/01/2021
"Grainger Inc","Materials and Supplies","$ 4,056.63",12/08/2021
"Grainger Inc",Services,"$ 28.14",12/08/2021
"Grainger Inc","Materials and Supplies","$ 1,688.05",12/15/2021
"Grainger Inc","Materials and Supplies","$ 967.01",12/21/2021
"Grainger Inc","Materials and Supplies","$ 1,510.03",12/29/2021
"Graphic Partners Inc",Services,"$ 1,598.00",08/05/2021
"Great Lakes Metals Corp",Services,"$ 1,961.27",03/25/2021
"Great Lakes Metals Corp",Services,"$ 1,448.62",07/01/2021
"Great West Life & Annuity Ins","401k/Pension EE/ER Contribution","$ 6,054.16",01/11/2021
"Great West Life & Annuity Ins","401k/Pension EE/ER Contribution","$ 100,412.92",01/19/2021
"Great West Life & Annuity Ins","401k/Pension EE/ER Contribution","$ 6,137.56",01/25/2021
"Great West Life & Annuity Ins","401k/Pension EE/ER Contribution","$ 97,594.97",02/01/2021
"Great West Life & Annuity Ins","401k/Pension EE/ER Contribution","$ 6,015.00",02/08/2021
"Great West Life & Annuity Ins","401k/Pension EE/ER Contribution","$ 100,585.81",02/16/2021
"Great West Life & Annuity Ins","401k/Pension EE/ER Contribution","$ 6,043.50",02/22/2021
"Great West Life & Annuity Ins","401k/Pension EE/ER Contribution","$ 100,578.14",03/01/2021
"Great West Life & Annuity Ins","Fringe Benefits","$ 261,850.51",03/02/2021
"Great West Life & Annuity Ins","401k/Pension EE/ER Contribution","$ 6,068.72",03/08/2021
"Great West Life & Annuity Ins","401k/Pension EE/ER Contribution","$ 102,696.72",03/15/2021
"Great West Life & Annuity Ins",Services,"$ 19,780.00",03/15/2021
"Great West Life & Annuity Ins","401k/Pension EE/ER Contribution","$ 6,234.61",03/22/2021
"Great West Life & Annuity Ins","401k/Pension EE/ER Contribution","$ 100,840.72",03/29/2021
"Great West Life & Annuity Ins","401k/Pension EE/ER Contribution","$ 6,254.79",04/02/2021
"Great West Life & Annuity Ins","401k/Pension EE/ER Contribution","$ 101,122.71",04/12/2021
"Great West Life & Annuity Ins",Services,"$ 19,768.50",04/15/2021
"Great West Life & Annuity Ins","401k/Pension EE/ER Contribution","$ 6,254.79",04/19/2021
"Great West Life & Annuity Ins","401k/Pension EE/ER Contribution","$ 98,531.03",04/26/2021
"Great West Life & Annuity Ins","401k/Pension EE/ER Contribution","$ 6,612.47",05/03/2021
"Great West Life & Annuity Ins","401k/Pension EE/ER Contribution","$ 101,312.34",05/10/2021
"Great West Life & Annuity Ins","401k/Pension EE/ER Contribution","$ 6,603.25",05/17/2021
"Great West Life & Annuity Ins","401k/Pension EE/ER Contribution","$ 100,934.45",05/24/2021
"Great West Life & Annuity Ins","401k/Pension EE/ER Contribution","$ 6,837.86",06/01/2021
"Great West Life & Annuity Ins","401k/Pension EE/ER Contribution","$ 134,410.31",06/07/2021
"Great West Life & Annuity Ins","401k/Pension EE/ER Contribution","$ 6,809.46",06/14/2021
"Great West Life & Annuity Ins","401k/Pension EE/ER Contribution","$ 100,103.48",06/21/2021
"Great West Life & Annuity Ins","401k/Pension EE/ER Contribution","$ 6,917.01",06/28/2021
"Great West Life & Annuity Ins","401k/Pension EE/ER Contribution","$ 97,658.73",07/06/2021
"Great West Life & Annuity Ins","401k/Pension EE/ER Contribution","$ 6,916.42",07/12/2021
"Great West Life & Annuity Ins",Services,"$ 19,647.75",07/12/2021
"Great West Life & Annuity Ins","401k/Pension EE/ER Contribution","$ 99,986.49",07/19/2021
"Great West Life & Annuity Ins","401k/Pension EE/ER Contribution","$ 6,671.83",07/26/2021
"Great West Life & Annuity Ins","401k/Pension EE/ER Contribution","$ 100,016.93",08/02/2021
"Great West Life & Annuity Ins","401k/Pension EE/ER Contribution","$ 7,099.84",08/09/2021
"Great West Life & Annuity Ins","401k/Pension EE/ER Contribution","$ 100,105.42",08/16/2021
"Great West Life & Annuity Ins","401k/Pension EE/ER Contribution","$ 6,970.92",08/23/2021
"Great West Life & Annuity Ins","401k/Pension EE/ER Contribution","$ 99,697.27",08/30/2021
"Great West Life & Annuity Ins","401k/Pension EE/ER Contribution","$ 6,658.31",09/07/2021
"Great West Life & Annuity Ins","401k/Pension EE/ER Contribution","$ 99,078.97",09/13/2021
"Great West Life & Annuity Ins","401k/Pension EE/ER Contribution","$ 6,634.19",09/20/2021
"Great West Life & Annuity Ins","401k/Pension EE/ER Contribution","$ 98,872.22",09/27/2021
"Great West Life & Annuity Ins","401k/Pension EE/ER Contribution","$ 6,634.19",10/04/2021
"Great West Life & Annuity Ins","401k/Pension EE/ER Contribution","$ 97,738.50",10/12/2021
"Great West Life & Annuity Ins","401k/Pension EE/ER Contribution","$ 6,739.18",10/18/2021
"Great West Life & Annuity Ins","401k/Pension EE/ER Contribution","$ 114,785.14",10/25/2021
"Great West Life & Annuity Ins",Services,"$ 19,745.50",10/28/2021
"Great West Life & Annuity Ins","401k/Pension EE/ER Contribution","$ 11,837.02",11/01/2021
"Great West Life & Annuity Ins","401k/Pension EE/ER Contribution","$ 93,560.57",11/08/2021
"Great West Life & Annuity Ins","401k/Pension EE/ER Contribution","$ 6,596.33",11/15/2021
"Great West Life & Annuity Ins","401k/Pension EE/ER Contribution","$ 95,460.27",11/22/2021
"Great West Life & Annuity Ins","401k/Pension EE/ER Contribution","$ 6,535.68",11/29/2021
"Great West Life & Annuity Ins","401k/Pension EE/ER Contribution","$ 108,163.86",12/06/2021
"Great West Life & Annuity Ins","401k/Pension EE/ER Contribution","$ 6,732.23",12/13/2021
"Great West Life & Annuity Ins","401k/Pension EE/ER Contribution","$ 97,782.36",12/20/2021
"Great West Life & Annuity Ins","401k/Pension EE/ER Contribution","$ 6,566.69",12/24/2021
"Groot Recycling & Waste Service Inc",Services,"$ 1,294.26",01/28/2021
"Groot Recycling & Waste Service Inc",Services,"$ 678.04",02/18/2021
"Groot Recycling & Waste Service Inc",Services,"$ 143.87",03/11/2021
"Groot Recycling & Waste Service Inc",Services,"$ 524.30",03/25/2021
"Groot Recycling & Waste Service Inc",Services,"$ 339.10",04/15/2021
"Groot Recycling & Waste Service Inc",Services,"$ 329.07",04/22/2021
"Groot Recycling & Waste Service Inc",Services,"$ 581.20",05/13/2021
"Groot Recycling & Waste Service Inc",Services,"$ 430.97",06/17/2021
"Groot Recycling & Waste Service Inc",Services,"$ 1,145.23",07/15/2021
"Groot Recycling & Waste Service Inc",Services,"$ 472.84",07/22/2021
"Groot Recycling & Waste Service Inc",Services,"$ 915.17",08/12/2021
"Groot Recycling & Waste Service Inc",Services,"$ 251.23",09/23/2021
"Groot Recycling & Waste Service Inc",Services,"$ 326.97",09/30/2021
"Groot Recycling & Waste Service Inc",Services,"$ 544.00",10/14/2021
"Groot Recycling & Waste Service Inc",Services,"$ 195.23",11/18/2021
"Groot Recycling & Waste Service Inc",Services,"$ 354.92",11/24/2021
"Groot Recycling & Waste Service Inc",Services,"$ 251.23",12/22/2021
"Groot Recycling & Waste Service Inc",Services,"$ 360.24",12/28/2021
"Guardian Medical Logistics",Services,"$ 1,458.00",01/06/2021
"Guardian Medical Logistics",Services,"$ 1,545.00",01/13/2021
"Guardian Medical Logistics",Services,"$ 4,164.00",01/20/2021
"Guardian Medical Logistics",Services,"$ 1,458.00",02/03/2021
"Guardian Medical Logistics",Services,"$ 1,167.00",02/24/2021
"Guardian Medical Logistics",Services,"$ 212.00",03/03/2021
"Guardian Medical Logistics",Services,"$ 186.00",03/10/2021
"Guardian Medical Logistics",Services,"$ 1,385.00",03/24/2021
"Guardian Medical Logistics",Services,"$ 913.00",03/31/2021
"Guardian Medical Logistics",Services,"$ 584.00",04/07/2021
"Guardian Medical Logistics",Services,"$ 212.00",04/21/2021
"Guardian Medical Logistics",Services,"$ 660.00",05/05/2021
"Guardian Medical Logistics",Services,"$ 4,002.00",05/13/2021
"Guardian Medical Logistics",Services,"$ 236.00",05/26/2021
"Guardian Medical Logistics",Services,"$ 498.00",06/09/2021
"Guardian Medical Logistics",Services,"$ 819.00",06/30/2021
"Guardian Medical Logistics",Services,"$ 5,408.00",07/07/2021
"Guardian Medical Logistics",Services,"$ 926.00",07/14/2021
"Guardian Medical Logistics",Services,"$ 896.00",07/28/2021
"Guardian Medical Logistics",Services,"$ 1,419.00",08/04/2021
"Guardian Medical Logistics",Services,"$ 586.00",08/11/2021
"Guardian Medical Logistics",Services,"$ 307.00",08/18/2021
"Guardian Medical Logistics",Services,"$ 1,324.00",08/25/2021
"Guardian Medical Logistics",Services,"$ 1,547.00",09/08/2021
"Guardian Medical Logistics",Services,"$ 422.00",09/15/2021
"Guardian Medical Logistics",Services,"$ 236.00",10/06/2021
"Guardian Medical Logistics",Services,"$ 976.00",10/13/2021
"Guardian Medical Logistics",Services,"$ 1,311.00",10/20/2021
"Guardian Medical Logistics",Services,"$ 569.00",10/27/2021
"Guardian Medical Logistics",Services,"$ 902.00",11/17/2021
"Guardian Medical Logistics",Services,"$ 920.00",12/01/2021
"Guardian Medical Logistics",Services,"$ 2,514.00",12/16/2021
"Guardian Medical Logistics",Services,"$ 569.00",12/21/2021
"H E S S Caulking and Restoration",Services,"$ 4,500.00",12/22/2021
"HDR Engineering Inc",Equipment,"$ 8,267.30",03/12/2021
"HNTB Corporation",Services,"$ 12,234.11",01/13/2021
"HNTB Corporation",Operating,"$ 12,791.36",01/20/2021
"HNTB Corporation",Operating,"$ 20,382.44",02/05/2021
"HNTB Corporation",Services,"$ 24,173.72",02/10/2021
"HNTB Corporation",Services,"$ 16,983.62",03/10/2021
"HNTB Corporation",Operating,"$ 6,382.32",03/12/2021
"HNTB Corporation",Services,"$ 17,049.48",04/07/2021
"HNTB Corporation",Operating,"$ 4,755.86",04/08/2021
"HNTB Corporation",Services,"$ 16,958.09",05/26/2021
"HNTB Corporation",Operating,"$ 6,868.85",06/09/2021
"HNTB Corporation",Services,"$ 16,503.58",06/23/2021
"HNTB Corporation",Operating,"$ 1,695.45",06/24/2021
"HNTB Corporation",Services,"$ 18,257.17",06/24/2021
"HNTB Corporation",Services,"$ 30,770.47",07/14/2021
"HNTB Corporation",Services,"$ 24,831.11",08/11/2021
"HNTB Corporation",Services,"$ 26,145.94",09/15/2021
"HNTB Corporation",Services,"$ 16,169.25",09/29/2021
"HNTB Corporation",Services,"$ 15,188.80",10/27/2021
"HNTB Corporation",Services,"$ 24,530.34",12/08/2021
"HP Products Corp A Ferguson Enterprise","Materials and Supplies","$ 1,012.50",04/29/2021
"HT Strenger Inc",Services,"$ 934.00",03/04/2021
"HT Strenger Inc",Services,"$ 180.00",06/03/2021
"HT Strenger Inc",Services,"$ 5,023.00",09/09/2021
"Hallagan Business Machines","Materials and Supplies","$ 138.00",05/06/2021
"Hallagan Business Machines","Materials and Supplies","$ 138.00",05/20/2021
"Hampton Lenzini and Renwick Inc",Services,"$ 2,500.00",11/11/2021
"Harris Mackessy & Brennan Inc",Services,"$ 5,200.00",08/05/2021
"Hawley Commons Shopping Center",Miscellaneous,"$ 211.69",03/25/2021
"Hazal Transit Inc","Purchased Transportation","$ 909.75",05/27/2021
"Hazal Transit Inc","Purchased Transportation","$ 129.25",06/25/2021
"Hazal Transit Inc","Purchased Transportation","$ 86.25",10/21/2021
"Hazal Transit Inc","Purchased Transportation","$ 100.25",10/28/2021
"Hazal Transit Inc","Purchased Transportation","$ 45.25",11/23/2021
"Hazal Transit Inc","Purchased Transportation","$ 134.00",12/21/2021
"Hewlett Packard Enterprise Company",Services,"$ 1,399.93",02/18/2021
"Hewlett Packard Enterprise Company",Services,"$ 26,072.71",05/26/2021
"Hewlett Packard Enterprise Company",Services,"$ 3,877.56",07/21/2021
"Hewlett Packard Inc",Services,"$ 1,350.00",01/06/2021
"Hillcrest Shopping Center",Miscellaneous,"$ 211.69",03/25/2021
"Hillside Auto Body & Service",Services,"$ 1,062.50",01/06/2021
"Hillside Auto Body & Service",Services,"$ 621.25",01/20/2021
"Hillside Auto Body & Service",Services,"$ 1,531.25",01/27/2021
"Hillside Auto Body & Service",Services,"$ 585.00",02/03/2021
"Hillside Auto Body & Service",Services,"$ 1,512.50",02/10/2021
"Hillside Auto Body & Service",Services,"$ 2,186.25",02/18/2021
"Hillside Auto Body & Service",Services,"$ 5,686.25",03/03/2021
"Hillside Auto Body & Service",Services,"$ 871.25",03/10/2021
"Hillside Auto Body & Service",Services,"$ 1,151.25",03/17/2021
"Hillside Auto Body & Service",Services,"$ 438.75",03/24/2021
"Hillside Auto Body & Service",Services,"$ 843.75",04/07/2021
"Hillside Auto Body & Service",Services,"$ 1,950.75",04/28/2021
"Hillside Auto Body & Service",Services,"$ 929.50",05/05/2021
"Hillside Auto Body & Service",Services,"$ 3,816.25",05/12/2021
"Hillside Auto Body & Service",Services,"$ 1,827.50",05/19/2021
"Hillside Auto Body & Service",Services,"$ 4,380.00",05/26/2021
"Hillside Auto Body & Service",Services,"$ 417.50",06/02/2021
"Hillside Auto Body & Service",Services,"$ 592.50",06/09/2021
"Hillside Auto Body & Service",Services,"$ 187.50",06/16/2021
"Hillside Auto Body & Service",Services,"$ 2,170.00",06/30/2021
"Hillside Auto Body & Service",Services,"$ 1,375.00",07/21/2021
"Hillside Auto Body & Service",Services,"$ 7,145.25",07/28/2021
"Hillside Auto Body & Service",Services,"$ 375.00",08/04/2021
"Hillside Auto Body & Service",Services,"$ 2,840.50",08/11/2021
"Hillside Auto Body & Service",Services,"$ 687.50",08/19/2021
"Hillside Auto Body & Service",Services,"$ 2,137.50",09/02/2021
"Hillside Auto Body & Service",Services,"$ 5,896.25",09/08/2021
"Hillside Auto Body & Service",Services,"$ 3,877.50",09/15/2021
"Hillside Auto Body & Service",Services,"$ 4,371.75",09/21/2021
"Hillside Auto Body & Service",Services,"$ 5,566.25",10/13/2021
"Hillside Auto Body & Service",Services,"$ 750.00",10/20/2021
"Hillside Auto Body & Service",Services,"$ 3,501.25",10/27/2021
"Hillside Auto Body & Service",Services,"$ 1,300.00",11/10/2021
"Hillside Auto Body & Service",Services,"$ 3,462.50",11/23/2021
"Hillside Auto Body & Service",Services,"$ 690.00",12/01/2021
"Hillside Auto Body & Service",Services,"$ 1,062.50",12/08/2021
"Hillside Auto Body & Service",Services,"$ 812.50",12/15/2021
"Holabird & Root LLC","Building/Bldg Improvement","$ 132,225.73",04/23/2021
"Holabird & Root LLC","Building/Bldg Improvement","$ 71,308.57",08/27/2021
"Holabird & Root LLC","Building/Bldg Improvement","$ 76,004.18",11/04/2021
"Honey Bucket",Services,"$ 225.00",04/29/2021
"Honey Bucket",Services,"$ 470.00",09/02/2021
"Hudson Boiler & Tank Company","Building/Bldg Improvement","$ 43,986.21",04/08/2021
"Humana EAP and Work Life Services",Services,"$ 2,093.28",01/13/2021
"Humana EAP and Work Life Services",Services,"$ 750.00",01/27/2021
"Humana EAP and Work Life Services",Services,"$ 2,093.28",02/10/2021
"Humana EAP and Work Life Services",Services,"$ 3,100.00",03/17/2021
"Humana EAP and Work Life Services",Services,"$ 2,093.28",03/31/2021
"Humana EAP and Work Life Services",Services,"$ 750.00",04/14/2021
"Humana EAP and Work Life Services",Services,"$ 2,093.28",04/21/2021
"Humana EAP and Work Life Services",Services,"$ 7,138.28",05/05/2021
"Humana EAP and Work Life Services",Services,"$ 1,234.84",09/08/2021
"Humana EAP and Work Life Services",Services,"$ 6,279.84",11/10/2021
"Humana EAP and Work Life Services",Services,"$ 2,093.28",12/15/2021
"Hydraulic Electric Component Supply Inc","Fuel/Parts Inventory","$ 2,991.86",01/06/2021
"Hydraulic Electric Component Supply Inc","Fuel/Parts Inventory","$ 2,090.75",01/13/2021
"Hydraulic Electric Component Supply Inc","Fuel/Parts Inventory","$ 130.00",01/27/2021
"Hydraulic Electric Component Supply Inc","Fuel/Parts Inventory","$ 9,040.00",02/10/2021
"Hydraulic Electric Component Supply Inc","Fuel/Parts Inventory","$ 21,045.93",02/18/2021
"Hydraulic Electric Component Supply Inc","Fuel/Parts Inventory","$ 7,116.50",03/03/2021
"Hydraulic Electric Component Supply Inc","Fuel/Parts Inventory","$ 8,200.52",03/10/2021
"Hydraulic Electric Component Supply Inc","Fuel/Parts Inventory","$ 13,577.34",03/17/2021
"Hydraulic Electric Component Supply Inc","Fuel/Parts Inventory","$ 13,153.56",03/31/2021
"Hydraulic Electric Component Supply Inc","Fuel/Parts Inventory","$ 24,065.45",04/21/2021
"Hydraulic Electric Component Supply Inc","Fuel/Parts Inventory","$ 413.45",04/28/2021
"Hydraulic Electric Component Supply Inc","Fuel/Parts Inventory","$ 3,876.00",05/05/2021
"Hydraulic Electric Component Supply Inc","Fuel/Parts Inventory","$ 3,706.40",05/19/2021
"Hydraulic Electric Component Supply Inc","Fuel/Parts Inventory","$ 1,445.00",05/26/2021
"Hydraulic Electric Component Supply Inc","Fuel/Parts Inventory","$ 17,440.84",06/09/2021
"Hydraulic Electric Component Supply Inc","Fuel/Parts Inventory","$ 41.10",06/23/2021
"Hydraulic Electric Component Supply Inc","Fuel/Parts Inventory","$ 3,060.35",07/07/2021
"Hydraulic Electric Component Supply Inc","Fuel/Parts Inventory","$ 1,248.60",07/28/2021
"Hydraulic Electric Component Supply Inc","Fuel/Parts Inventory","$ 1,413.50",08/04/2021
"Hydraulic Electric Component Supply Inc","Fuel/Parts Inventory","$ 89.00",08/19/2021
"Hydraulic Electric Component Supply Inc","Fuel/Parts Inventory","$ 6,377.96",08/25/2021
"Hydraulic Electric Component Supply Inc","Fuel/Parts Inventory","$ 1,460.00",09/02/2021
"Hydraulic Electric Component Supply Inc","Fuel/Parts Inventory","$ 1,720.94",09/08/2021
"Hydraulic Electric Component Supply Inc","Fuel/Parts Inventory","$ 5,228.10",09/21/2021
"Hydraulic Electric Component Supply Inc","Fuel/Parts Inventory","$ 1,019.00",09/29/2021
"Hydraulic Electric Component Supply Inc","Fuel/Parts Inventory","$ 4,150.00",10/13/2021
"Hydraulic Electric Component Supply Inc","Fuel/Parts Inventory","$ 8,416.50",10/20/2021
"Hydraulic Electric Component Supply Inc","Fuel/Parts Inventory","$ 1,058.75",10/27/2021
"Hydraulic Electric Component Supply Inc","Fuel/Parts Inventory","$ 6,501.00",11/03/2021
"Hydraulic Electric Component Supply Inc","Fuel/Parts Inventory","$ 899.00",11/10/2021
"Hydraulic Electric Component Supply Inc","Fuel/Parts Inventory","$ 6,717.74",12/01/2021
"Hydraulic Electric Component Supply Inc","Fuel/Parts Inventory","$ 1,484.50",12/08/2021
"Hydraulic Electric Component Supply Inc","Fuel/Parts Inventory","$ 1,150.00",12/29/2021
"I/O Controls Corporation","Fuel/Parts Inventory","$ 4,740.48",02/03/2021
"I/O Controls Corporation","Fuel/Parts Inventory","$ 6,403.62",04/14/2021
"I/O Controls Corporation","Fuel/Parts Inventory","$ 2,453.22",05/12/2021
"I/O Controls Corporation","Fuel/Parts Inventory","$ 2,879.58",07/07/2021
"I/O Controls Corporation","Fuel/Parts Inventory","$ 3,270.96",09/08/2021
"I/O Controls Corporation","Fuel/Parts Inventory","$ 1,226.61",09/29/2021
"I/O Controls Corporation","Fuel/Parts Inventory","$ 1,177.74",10/20/2021
"I/O Controls Corporation","Fuel/Parts Inventory","$ 2,355.48",11/02/2021
"I/O Controls Corporation","Fuel/Parts Inventory","$ 6,133.05",11/17/2021
"I/O Controls Corporation","Fuel/Parts Inventory","$ 3,563.89",11/23/2021
"Illinois Auto Central","Fuel/Parts Inventory","$ 2,945.63",01/12/2021
"Illinois Auto Central","Fuel/Parts Inventory","$ 2,088.90",01/19/2021
"Illinois Auto Central","Fuel/Parts Inventory","$ 3,852.16",02/02/2021
"Illinois Auto Central","Fuel/Parts Inventory","$ 3,741.20",02/23/2021
"Illinois Auto Central","Fuel/Parts Inventory","$ 941.54",03/09/2021
"Illinois Auto Central","Fuel/Parts Inventory","$ 4,683.60",04/06/2021
"Illinois Auto Central","Fuel/Parts Inventory","$ 1,389.94",04/20/2021
"Illinois Auto Central","Fuel/Parts Inventory","$ 14,080.52",05/18/2021
"Illinois Auto Central","Fuel/Parts Inventory","$ 31,537.26",05/25/2021
"Illinois Auto Central","Fuel/Parts Inventory","$ 19,664.21",06/01/2021
"Illinois Auto Central","Fuel/Parts Inventory","$ 2,947.08",06/15/2021
"Illinois Auto Central","Fuel/Parts Inventory","$ 14.90",06/22/2021
"Illinois Auto Central","Fuel/Parts Inventory","$ 20,849.79",06/29/2021
"Illinois Auto Central","Fuel/Parts Inventory","$ 19,471.72",07/06/2021
"Illinois Auto Central",Services,"$ 3,106.44",07/06/2021
"Illinois Auto Central","Fuel/Parts Inventory","$ 8,796.81",08/03/2021
"Illinois Auto Central",Services,"$ 1,174.84",08/03/2021
"Illinois Auto Central","Fuel/Parts Inventory","$ 3,645.36",08/10/2021
"Illinois Auto Central","Fuel/Parts Inventory","$ 5,749.57",08/18/2021
"Illinois Auto Central","Fuel/Parts Inventory","$ 8,289.15",08/24/2021
"Illinois Auto Central","Fuel/Parts Inventory","$ 4,154.40",09/14/2021
"Illinois Auto Central","Fuel/Parts Inventory","$ 29,924.91",10/12/2021
"Illinois Auto Central","Fuel/Parts Inventory","$ 4,389.31",10/20/2021
"Illinois Auto Central","Fuel/Parts Inventory","$ 4,900.15",11/02/2021
"Illinois Auto Central","Fuel/Parts Inventory","$ 22,318.01",11/16/2021
"Illinois Auto Central","Fuel/Parts Inventory","$ 10,980.82",12/14/2021
"Illinois Department of Human Services","Purchased Transportation","$ 1,040.00",03/19/2021
"Illinois Dept of Transportation",Services,"$ 967.75",05/13/2021
"Illinois Tollway",Miscellaneous,"$ 8,784.57",01/28/2021
"Illinois Tollway",Miscellaneous,"$ 16,223.37",02/04/2021
"Illinois Tollway",Miscellaneous,"$ 10,188.95",03/04/2021
"Illinois Tollway",Miscellaneous,"$ 3,944.00",04/22/2021
"Illinois Tollway",Miscellaneous,"$ 6,968.00",05/13/2021
"Illinois Tollway",Miscellaneous,"$ 56.00",06/10/2021
"Illinois Tollway",Miscellaneous,"$ 4,191.07",07/15/2021
"Illinois Tollway",Miscellaneous,"$ 4,866.18",08/12/2021
"Illinois Tollway",Miscellaneous,"$ 304.00",08/26/2021
"Illinois Tollway",Miscellaneous,"$ 12,418.86",11/18/2021
"Impact Networking LLC","Leases and Rentals","$ 4,036.52",05/12/2021
"Impact Networking LLC","Leases and Rentals","$ 1,018.25",05/19/2021
"Impact Networking LLC","Materials and Supplies","$ 232.14",05/19/2021
"Impact Networking LLC","Leases and Rentals","$ 1,009.13",06/09/2021
"Impact Networking LLC","Leases and Rentals","$ 1,009.13",06/23/2021
"Impact Networking LLC","Materials and Supplies","$ 1,009.13",09/15/2021
"Insurance Information Exchange IIX",Services,"$ 1,859.75",01/13/2021
"Insurance Information Exchange IIX",Services,"$ 145.65",02/10/2021
"Insurance Information Exchange IIX",Services,"$ 1,447.85",03/17/2021
"Insurance Information Exchange IIX",Services,"$ 207.15",04/07/2021
"Insurance Information Exchange IIX",Services,"$ 329.20",05/12/2021
"Insurance Information Exchange IIX",Services,"$ 373.60",06/16/2021
"Insurance Information Exchange IIX",Services,"$ 407.30",07/28/2021
"Insurance Information Exchange IIX",Services,"$ 617.30",08/11/2021
"Insurance Information Exchange IIX",Services,"$ 1,961.95",09/15/2021
"Insurance Information Exchange IIX",Services,"$ 345.00",10/20/2021
"Integrated Controls Technologies LLC",Services,"$ 300.00",01/06/2021
"Integrated Controls Technologies LLC",Services,"$ 1,534.89",01/27/2021
